Body Name,Date Paid,Transaction Number,Amount,Supplier Name,Supplier Type,Expense Area,Cost Centre Description,Expense Type
Cambridgeshire County Council,30-Apr-20,51301328171,"-329,000.10",Action For Children Services Ltd,EDUCATION,Disabled Services,AFC - Short Break,Joint Partnership Funding
Cambridgeshire County Council,30-Apr-20,51301328149,"-329,000.10",Action For Children Services Ltd,EDUCATION,Disabled Services,AFC - Short Break,Joint Partnership Funding
Cambridgeshire County Council,30-Apr-20,51301327829,"-188,000.10",Action For Children Services Ltd,EDUCATION,Disabled Services,AFC - Short Break,Joint Partnership Funding
Cambridgeshire County Council,30-Apr-20,51301328148,"-188,000.10",Action For Children Services Ltd,EDUCATION,Disabled Services,AFC - Short Break,Joint Partnership Funding
Cambridgeshire County Council,30-Apr-20,51301327816,"-187,999.80",Action For Children Services Ltd,EDUCATION,Disabled Services,AFC - Short Break,Joint Partnership Funding
Cambridgeshire County Council,30-Apr-20,51301327832,"-187,999.80",Action For Children Services Ltd,EDUCATION,Disabled Services,AFC - Short Break,Joint Partnership Funding
Cambridgeshire County Council,24-Apr-20,51301291405,"-136,078.17",FENLAND DISTRICT COUNCIL,OTHER PUBLIC BODIES,Waste Disposal incl PFI,FDC Waste disposal,Recycling Claims
Cambridgeshire County Council,30-Apr-20,51301343292,"-55,998.08",CAMBRIDGE CITY COUNCIL,OTHER PUBLIC BODIES,OP - City & South Locality - Cost of Care,Older People - City & South - Care,Supported Living
Cambridgeshire County Council,21-Apr-20,51301346917,"-31,652.11",PETER BRETT ASSOCIATES LLP,TRADE SUPPLIER,Combined Authority Schemes,Combined Authority Schemes,Construction - External Professional Fees
Cambridgeshire County Council,28-Apr-20,51301311098,"-22,567.80",METROPOLITAN HOUSING TRUST LTD,TRUST (OTHER),Mental Health Commissioning,Mental Health Commissioning,Residential Care - Property Voids
Cambridgeshire County Council,27-Apr-20,51301351569,"-22,084.44",CHS GROUP,CARE ESTABLISHMENT,OP - City & South Locality - Cost of Care,Older People - City & South - Care,Supported Living
Cambridgeshire County Council,30-Apr-20,51301327823,"-12,000.00",Action For Children Services Ltd,EDUCATION,Disabled Services,AFC Property Leases Contract,Joint Partnership Funding
Cambridgeshire County Council,30-Apr-20,51301328147,"-12,000.00",Action For Children Services Ltd,EDUCATION,Disabled Services,AFC Property Leases Contract,Joint Partnership Funding
Cambridgeshire County Council,30-Apr-20,51301327831,"-11,000.00",Action For Children Services Ltd,EDUCATION,Disabled Services,AFC Property Leases Contract,Joint Partnership Funding
Cambridgeshire County Council,30-Apr-20,51301327820,"-11,000.00",Action For Children Services Ltd,EDUCATION,Disabled Services,AFC Property Leases Contract,Joint Partnership Funding
Cambridgeshire County Council,17-Apr-20,51301353034,"-10,283.43",LYNCROFT RESIDENTIAL HOME,CARE ESTABLISHMENT,OP - Fenland Locality - Cost of Care,Older People - Fenland - Care,Residential Care
Cambridgeshire County Council,09-Apr-20,51301346772,"-9,104.09",HEALTH MANAGEMENT LTD,TRADE SUPPLIER,Health & Safety,Occupational Health,Staff health & welfare Costs
Cambridgeshire County Council,28-Apr-20,51301310584,"-7,839.32",METROPOLITAN HOUSING TRUST LTD,TRUST (OTHER),Mental Health Commissioning,Mental Health Commissioning,Residential Care - Property Voids
Cambridgeshire County Council,16-Apr-20,51301347843,"-6,002.24",CAMBRIDGESHIRE AND PETERBOROUGH NHS FOUNDATION TRUST,TRUST (OTHER),Falls Prevention,"PH, Falls, Therapy Assistants",Professional Fees and Hired Services
Cambridgeshire County Council,03-Apr-20,51301347735,"-5,806.97",GLENHOLME HEALTHCARE LTD,CARE ESTABLISHMENT,LD - Young Adults Team,LD - Young Adults - Special Needs,Residential Care
Cambridgeshire County Council,03-Apr-20,51301347735,"-5,806.97",GLENHOLME HEALTHCARE LTD,CARE ESTABLISHMENT,LD - Young Adults Team,LD - Young Adults - Special Needs,Residential Care
Cambridgeshire County Council,03-Apr-20,51301347735,"-5,806.97",GLENHOLME HEALTHCARE LTD,CARE ESTABLISHMENT,LD - Young Adults Team,LD - Young Adults - Special Needs,Residential Care
Cambridgeshire County Council,03-Apr-20,51301347735,"-5,806.97",GLENHOLME HEALTHCARE LTD,CARE ESTABLISHMENT,LD - Young Adults Team,LD - Young Adults - Special Needs,Residential Care
Cambridgeshire County Council,03-Apr-20,51301347735,"-5,806.97",GLENHOLME HEALTHCARE LTD,CARE ESTABLISHMENT,LD - Young Adults Team,LD - Young Adults - Special Needs,Residential Care
Cambridgeshire County Council,03-Apr-20,51301347735,"-5,806.97",GLENHOLME HEALTHCARE LTD,CARE ESTABLISHMENT,LD - Young Adults Team,LD - Young Adults - Special Needs,Residential Care
Cambridgeshire County Council,03-Apr-20,51301347735,"-5,806.97",GLENHOLME HEALTHCARE LTD,CARE ESTABLISHMENT,LD - Young Adults Team,LD - Young Adults - Special Needs,Residential Care
Cambridgeshire County Council,03-Apr-20,51301347735,"-5,806.97",GLENHOLME HEALTHCARE LTD,CARE ESTABLISHMENT,LD - Young Adults Team,LD - Young Adults - Special Needs,Residential Care
Cambridgeshire County Council,03-Apr-20,51301347735,"-5,806.97",GLENHOLME HEALTHCARE LTD,CARE ESTABLISHMENT,LD - Young Adults Team,LD - Young Adults - Special Needs,Residential Care
Cambridgeshire County Council,03-Apr-20,51301347735,"-5,806.97",GLENHOLME HEALTHCARE LTD,CARE ESTABLISHMENT,LD - Young Adults Team,LD - Young Adults - Special Needs,Residential Care
Cambridgeshire County Council,03-Apr-20,51301347735,"-5,806.97",GLENHOLME HEALTHCARE LTD,CARE ESTABLISHMENT,LD - Young Adults Team,LD - Young Adults - Special Needs,Residential Care
Cambridgeshire County Council,03-Apr-20,51301347735,"-5,806.97",GLENHOLME HEALTHCARE LTD,CARE ESTABLISHMENT,LD - Young Adults Team,LD - Young Adults - Special Needs,Residential Care
Cambridgeshire County Council,03-Apr-20,51301347735,"-5,806.97",GLENHOLME HEALTHCARE LTD,CARE ESTABLISHMENT,LD - Young Adults Team,LD - Young Adults - Special Needs,Residential Care
Cambridgeshire County Council,03-Apr-20,51301347735,"-5,806.97",GLENHOLME HEALTHCARE LTD,CARE ESTABLISHMENT,LD - Young Adults Team,LD - Young Adults - Special Needs,Residential Care
Cambridgeshire County Council,03-Apr-20,51301347735,"-5,806.97",GLENHOLME HEALTHCARE LTD,CARE ESTABLISHMENT,LD - Young Adults Team,LD - Young Adults - Special Needs,Residential Care
Cambridgeshire County Council,03-Apr-20,51301347735,"-5,806.97",GLENHOLME HEALTHCARE LTD,CARE ESTABLISHMENT,LD - Young Adults Team,LD - Young Adults - Special Needs,Residential Care
Cambridgeshire County Council,03-Apr-20,51301347735,"-5,806.97",GLENHOLME HEALTHCARE LTD,CARE ESTABLISHMENT,LD - Young Adults Team,LD - Young Adults - Special Needs,Residential Care
Cambridgeshire County Council,03-Apr-20,51301347735,"-5,806.97",GLENHOLME HEALTHCARE LTD,CARE ESTABLISHMENT,LD - Young Adults Team,LD - Young Adults - Special Needs,Residential Care
Cambridgeshire County Council,03-Apr-20,51301347735,"-5,806.97",GLENHOLME HEALTHCARE LTD,CARE ESTABLISHMENT,LD - Young Adults Team,LD - Young Adults - Special Needs,Residential Care
Cambridgeshire County Council,03-Apr-20,51301347735,"-5,806.97",GLENHOLME HEALTHCARE LTD,CARE ESTABLISHMENT,LD - Young Adults Team,LD - Young Adults - Special Needs,Residential Care
Cambridgeshire County Council,03-Apr-20,51301347735,"-5,806.97",GLENHOLME HEALTHCARE LTD,CARE ESTABLISHMENT,LD - Young Adults Team,LD - Young Adults - Special Needs,Residential Care
Cambridgeshire County Council,03-Apr-20,51301347735,"-5,806.97",GLENHOLME HEALTHCARE LTD,CARE ESTABLISHMENT,LD - Young Adults Team,LD - Young Adults - Special Needs,Residential Care
Cambridgeshire County Council,03-Apr-20,51301347735,"-5,806.97",GLENHOLME HEALTHCARE LTD,CARE ESTABLISHMENT,LD - Young Adults Team,LD - Young Adults - Special Needs,Residential Care
Cambridgeshire County Council,30-Apr-20,51301327835,"-5,500.00",Action For Children Services Ltd,EDUCATION,Disabled Services,AFC Property Leases Contract,Joint Partnership Funding
Cambridgeshire County Council,30-Apr-20,51301327827,"-5,500.00",Action For Children Services Ltd,EDUCATION,Disabled Services,AFC Property Leases Contract,Joint Partnership Funding
Cambridgeshire County Council,28-Apr-20,51301354453,"-4,574.70",CCS MEDIA LIMITED,TRADE SUPPLIER,ICT Service,ICT Service Business Support,Equipment and Tools
Cambridgeshire County Council,14-Apr-20,51301347867,"-3,560.78",KEY2 FUTURES LTD,TRADE SUPPLIER,Unaccompanied Asylum Seeking Children,Unaccompanied Asylum Seeking Children <18,Asylum Seekers
Cambridgeshire County Council,30-Apr-20,51301362542,"-3,103.15",KISIMUL SCHOOL,CARE ESTABLISHMENT,LD - Young Adults Team,LD - Young Adults - Care,Residential Care
Cambridgeshire County Council,30-Apr-20,51301362542,"-3,103.15",KISIMUL SCHOOL,CARE ESTABLISHMENT,LD - Young Adults Team,LD - Young Adults - Care,Residential Care
Cambridgeshire County Council,30-Apr-20,51301362542,"-3,103.15",KISIMUL SCHOOL,CARE ESTABLISHMENT,LD - Young Adults Team,LD - Young Adults - Care,Residential Care
Cambridgeshire County Council,30-Apr-20,51301362542,"-3,103.15",KISIMUL SCHOOL,CARE ESTABLISHMENT,LD - Young Adults Team,LD - Young Adults - Care,Residential Care
Cambridgeshire County Council,30-Apr-20,51301362542,"-3,103.15",KISIMUL SCHOOL,CARE ESTABLISHMENT,LD - Young Adults Team,LD - Young Adults - Care,Residential Care
Cambridgeshire County Council,30-Apr-20,51301362542,"-3,103.15",KISIMUL SCHOOL,CARE ESTABLISHMENT,LD - Young Adults Team,LD - Young Adults - Care,Residential Care
Cambridgeshire County Council,30-Apr-20,51301362542,"-3,103.15",KISIMUL SCHOOL,CARE ESTABLISHMENT,LD - Young Adults Team,LD - Young Adults - Care,Residential Care
Cambridgeshire County Council,30-Apr-20,51301362542,"-3,103.15",KISIMUL SCHOOL,CARE ESTABLISHMENT,LD - Young Adults Team,LD - Young Adults - Care,Residential Care
Cambridgeshire County Council,30-Apr-20,51301362542,"-3,103.15",KISIMUL SCHOOL,CARE ESTABLISHMENT,LD - Young Adults Team,LD - Young Adults - Care,Residential Care
Cambridgeshire County Council,30-Apr-20,51301362542,"-3,103.15",KISIMUL SCHOOL,CARE ESTABLISHMENT,LD - Young Adults Team,LD - Young Adults - Care,Residential Care
Cambridgeshire County Council,30-Apr-20,51301362542,"-3,103.15",KISIMUL SCHOOL,CARE ESTABLISHMENT,LD - Young Adults Team,LD - Young Adults - Care,Residential Care
Cambridgeshire County Council,30-Apr-20,51301362542,"-3,103.15",KISIMUL SCHOOL,CARE ESTABLISHMENT,LD - Young Adults Team,LD - Young Adults - Care,Residential Care
Cambridgeshire County Council,30-Apr-20,51301362542,"-3,103.15",KISIMUL SCHOOL,CARE ESTABLISHMENT,LD - Young Adults Team,LD - Young Adults - Care,Residential Care
Cambridgeshire County Council,30-Apr-20,51301362542,"-3,103.15",KISIMUL SCHOOL,CARE ESTABLISHMENT,LD - Young Adults Team,LD - Young Adults - Care,Residential Care
Cambridgeshire County Council,30-Apr-20,51301362542,"-3,103.15",KISIMUL SCHOOL,CARE ESTABLISHMENT,LD - Young Adults Team,LD - Young Adults - Care,Residential Care
Cambridgeshire County Council,30-Apr-20,51301362542,"-3,103.15",KISIMUL SCHOOL,CARE ESTABLISHMENT,LD - Young Adults Team,LD - Young Adults - Care,Residential Care
Cambridgeshire County Council,30-Apr-20,51301362542,"-3,103.15",KISIMUL SCHOOL,CARE ESTABLISHMENT,LD - Young Adults Team,LD - Young Adults - Care,Residential Care
Cambridgeshire County Council,30-Apr-20,51301362542,"-3,103.15",KISIMUL SCHOOL,CARE ESTABLISHMENT,LD - Young Adults Team,LD - Young Adults - Care,Residential Care
Cambridgeshire County Council,30-Apr-20,51301362542,"-3,103.15",KISIMUL SCHOOL,CARE ESTABLISHMENT,LD - Young Adults Team,LD - Young Adults - Care,Residential Care
Cambridgeshire County Council,30-Apr-20,51301362542,"-3,103.15",KISIMUL SCHOOL,CARE ESTABLISHMENT,LD - Young Adults Team,LD - Young Adults - Care,Residential Care
Cambridgeshire County Council,30-Apr-20,51301362542,"-3,103.15",KISIMUL SCHOOL,CARE ESTABLISHMENT,LD - Young Adults Team,LD - Young Adults - Care,Residential Care
Cambridgeshire County Council,30-Apr-20,51301362542,"-3,103.15",KISIMUL SCHOOL,CARE ESTABLISHMENT,LD - Young Adults Team,LD - Young Adults - Care,Residential Care
Cambridgeshire County Council,30-Apr-20,51301362542,"-3,103.15",KISIMUL SCHOOL,CARE ESTABLISHMENT,LD - Young Adults Team,LD - Young Adults - Care,Residential Care
Cambridgeshire County Council,30-Apr-20,51301362542,"-3,103.15",KISIMUL SCHOOL,CARE ESTABLISHMENT,LD - Young Adults Team,LD - Young Adults - Care,Residential Care
Cambridgeshire County Council,30-Apr-20,51301362542,"-3,103.15",KISIMUL SCHOOL,CARE ESTABLISHMENT,LD - Young Adults Team,LD - Young Adults - Care,Residential Care
Cambridgeshire County Council,30-Apr-20,51301362542,"-3,103.15",KISIMUL SCHOOL,CARE ESTABLISHMENT,LD - Young Adults Team,LD - Young Adults - Care,Residential Care
Cambridgeshire County Council,30-Apr-20,51301362542,"-3,103.15",KISIMUL SCHOOL,CARE ESTABLISHMENT,LD - Young Adults Team,LD - Young Adults - Care,Residential Care
Cambridgeshire County Council,30-Apr-20,51301362542,"-3,103.15",KISIMUL SCHOOL,CARE ESTABLISHMENT,LD - Young Adults Team,LD - Young Adults - Care,Residential Care
Cambridgeshire County Council,30-Apr-20,51301362542,"-3,103.15",KISIMUL SCHOOL,CARE ESTABLISHMENT,LD - Young Adults Team,LD - Young Adults - Care,Residential Care
Cambridgeshire County Council,30-Apr-20,51301362542,"-3,103.15",KISIMUL SCHOOL,CARE ESTABLISHMENT,LD - Young Adults Team,LD - Young Adults - Care,Residential Care
Cambridgeshire County Council,30-Apr-20,51301362542,"-3,103.15",KISIMUL SCHOOL,CARE ESTABLISHMENT,LD - Young Adults Team,LD - Young Adults - Care,Residential Care
Cambridgeshire County Council,30-Apr-20,51301362542,"-3,103.15",KISIMUL SCHOOL,CARE ESTABLISHMENT,LD - Young Adults Team,LD - Young Adults - Care,Residential Care
Cambridgeshire County Council,20-Apr-20,51301355835,"-2,560.29",QUALITY HOMECARE,CARE ESTABLISHMENT,OP - City & South Locality - Cost of Care,Older People - City & South - Care,Domiciliary Care
Cambridgeshire County Council,03-Apr-20,51301347735,"-2,488.70",GLENHOLME HEALTHCARE LTD,CARE ESTABLISHMENT,LD - Young Adults Team,LD - Young Adults - Special Needs,Residential Care
Cambridgeshire County Council,20-Apr-20,51301358186,"-2,485.85",A CLASS CARE LTD,CARE ESTABLISHMENT,OP - City & South Locality - Cost of Care,Older People - City & South - Care,Domiciliary Care
Cambridgeshire County Council,15-Apr-20,51301349874,"-2,431.25",MILTON KEYNES COUNCIL,OTHER PUBLIC BODIES,Unaccompanied Asylum Seeking Children,Unaccompanied Asylum Seeking Children <18,Professional Fees and Hired Services
Cambridgeshire County Council,30-Apr-20,51301362540,"-2,338.82",KISIMUL SCHOOL,CARE ESTABLISHMENT,LD - Hunts Locality - Cost of Care,LD - Huntingdonshire - Special Needs,Residential Care
Cambridgeshire County Council,30-Apr-20,51301362540,"-2,338.82",KISIMUL SCHOOL,CARE ESTABLISHMENT,LD - Hunts Locality - Cost of Care,LD - Huntingdonshire - Special Needs,Residential Care
Cambridgeshire County Council,30-Apr-20,51301362540,"-2,338.82",KISIMUL SCHOOL,CARE ESTABLISHMENT,LD - Hunts Locality - Cost of Care,LD - Huntingdonshire - Special Needs,Residential Care
Cambridgeshire County Council,30-Apr-20,51301362540,"-2,338.82",KISIMUL SCHOOL,CARE ESTABLISHMENT,LD - Hunts Locality - Cost of Care,LD - Huntingdonshire - Special Needs,Residential Care
Cambridgeshire County Council,14-Apr-20,51301349892,"-2,317.19",KEY2 FUTURES LTD,TRADE SUPPLIER,Unaccompanied Asylum Seeking Children,Unaccompanied Asylum Seeking Children >18 Leaving Care,Living Spport Grants - Financial Assistance 18+
Cambridgeshire County Council,20-Apr-20,51301355719,"-2,230.16",CAMBRIDGESHIRE HOMECARE (J&M CARE LTD),CARE ESTABLISHMENT,OP - East Cambs Locality - Cost of Care,East Cambs - O P Team - Care,Domiciliary Care
Cambridgeshire County Council,30-Apr-20,51301362542,"-2,216.54",KISIMUL SCHOOL,CARE ESTABLISHMENT,LD - Young Adults Team,LD - Young Adults - Care,Residential Care
Cambridgeshire County Council,30-Apr-20,51301362534,"-2,134.16",KISIMUL SCHOOL,CARE ESTABLISHMENT,LD - Young Adults Team,LD - Young Adults - Care,Residential Care
Cambridgeshire County Council,30-Apr-20,51301362534,"-2,134.16",KISIMUL SCHOOL,CARE ESTABLISHMENT,LD - Young Adults Team,LD - Young Adults - Care,Residential Care
Cambridgeshire County Council,30-Apr-20,51301362534,"-2,134.16",KISIMUL SCHOOL,CARE ESTABLISHMENT,LD - Young Adults Team,LD - Young Adults - Care,Residential Care
Cambridgeshire County Council,30-Apr-20,51301362534,"-2,134.16",KISIMUL SCHOOL,CARE ESTABLISHMENT,LD - Young Adults Team,LD - Young Adults - Care,Residential Care
Cambridgeshire County Council,30-Apr-20,51301362534,"-2,134.16",KISIMUL SCHOOL,CARE ESTABLISHMENT,LD - Young Adults Team,LD - Young Adults - Care,Residential Care
Cambridgeshire County Council,30-Apr-20,51301362534,"-2,134.16",KISIMUL SCHOOL,CARE ESTABLISHMENT,LD - Young Adults Team,LD - Young Adults - Care,Residential Care
Cambridgeshire County Council,30-Apr-20,51301362534,"-2,134.16",KISIMUL SCHOOL,CARE ESTABLISHMENT,LD - Young Adults Team,LD - Young Adults - Care,Residential Care
Cambridgeshire County Council,30-Apr-20,51301362534,"-2,134.16",KISIMUL SCHOOL,CARE ESTABLISHMENT,LD - Young Adults Team,LD - Young Adults - Care,Residential Care
Cambridgeshire County Council,30-Apr-20,51301362534,"-2,134.16",KISIMUL SCHOOL,CARE ESTABLISHMENT,LD - Young Adults Team,LD - Young Adults - Care,Residential Care
Cambridgeshire County Council,30-Apr-20,51301362534,"-2,134.16",KISIMUL SCHOOL,CARE ESTABLISHMENT,LD - Young Adults Team,LD - Young Adults - Care,Residential Care
Cambridgeshire County Council,14-Apr-20,51301332118,"-2,126.59",Valtech Ltd,COMPANY,Customer Services,Contact Centre - Operations,Specialist Supplies and Materials
Cambridgeshire County Council,30-Apr-20,51301362540,"-2,004.70",KISIMUL SCHOOL,CARE ESTABLISHMENT,LD - Hunts Locality - Cost of Care,LD - Huntingdonshire - Special Needs,Residential Care
Cambridgeshire County Council,17-Apr-20,51301354005,"-1,880.52",CONQUEST CARE HOMES PETERBOROUGH,CARE ESTABLISHMENT,LD - Young Adults Team,LD - Young Adults - Special Needs,Residential Care
Cambridgeshire County Council,17-Apr-20,51301354005,"-1,880.52",CONQUEST CARE HOMES PETERBOROUGH,CARE ESTABLISHMENT,LD - Young Adults Team,LD - Young Adults - Special Needs,Residential Care
Cambridgeshire County Council,17-Apr-20,51301354005,"-1,880.52",CONQUEST CARE HOMES PETERBOROUGH,CARE ESTABLISHMENT,LD - Young Adults Team,LD - Young Adults - Special Needs,Residential Care
Cambridgeshire County Council,17-Apr-20,51301354005,"-1,880.52",CONQUEST CARE HOMES PETERBOROUGH,CARE ESTABLISHMENT,LD - Young Adults Team,LD - Young Adults - Special Needs,Residential Care
Cambridgeshire County Council,17-Apr-20,51301354005,"-1,880.52",CONQUEST CARE HOMES PETERBOROUGH,CARE ESTABLISHMENT,LD - Young Adults Team,LD - Young Adults - Special Needs,Residential Care
Cambridgeshire County Council,17-Apr-20,51301354005,"-1,880.52",CONQUEST CARE HOMES PETERBOROUGH,CARE ESTABLISHMENT,LD - Young Adults Team,LD - Young Adults - Special Needs,Residential Care
Cambridgeshire County Council,17-Apr-20,51301354005,"-1,880.52",CONQUEST CARE HOMES PETERBOROUGH,CARE ESTABLISHMENT,LD - Young Adults Team,LD - Young Adults - Special Needs,Residential Care
Cambridgeshire County Council,17-Apr-20,51301354005,"-1,880.52",CONQUEST CARE HOMES PETERBOROUGH,CARE ESTABLISHMENT,LD - Young Adults Team,LD - Young Adults - Special Needs,Residential Care
Cambridgeshire County Council,17-Apr-20,51301354005,"-1,880.52",CONQUEST CARE HOMES PETERBOROUGH,CARE ESTABLISHMENT,LD - Young Adults Team,LD - Young Adults - Special Needs,Residential Care
Cambridgeshire County Council,17-Apr-20,51301354005,"-1,880.52",CONQUEST CARE HOMES PETERBOROUGH,CARE ESTABLISHMENT,LD - Young Adults Team,LD - Young Adults - Special Needs,Residential Care
Cambridgeshire County Council,17-Apr-20,51301354005,"-1,880.52",CONQUEST CARE HOMES PETERBOROUGH,CARE ESTABLISHMENT,LD - Young Adults Team,LD - Young Adults - Special Needs,Residential Care
Cambridgeshire County Council,17-Apr-20,51301354005,"-1,880.52",CONQUEST CARE HOMES PETERBOROUGH,CARE ESTABLISHMENT,LD - Young Adults Team,LD - Young Adults - Special Needs,Residential Care
Cambridgeshire County Council,17-Apr-20,51301354005,"-1,880.52",CONQUEST CARE HOMES PETERBOROUGH,CARE ESTABLISHMENT,LD - Young Adults Team,LD - Young Adults - Special Needs,Residential Care
Cambridgeshire County Council,17-Apr-20,51301354005,"-1,880.52",CONQUEST CARE HOMES PETERBOROUGH,CARE ESTABLISHMENT,LD - Young Adults Team,LD - Young Adults - Special Needs,Residential Care
Cambridgeshire County Council,17-Apr-20,51301354005,"-1,880.52",CONQUEST CARE HOMES PETERBOROUGH,CARE ESTABLISHMENT,LD - Young Adults Team,LD - Young Adults - Special Needs,Residential Care
Cambridgeshire County Council,17-Apr-20,51301354005,"-1,880.52",CONQUEST CARE HOMES PETERBOROUGH,CARE ESTABLISHMENT,LD - Young Adults Team,LD - Young Adults - Special Needs,Residential Care
Cambridgeshire County Council,17-Apr-20,51301354005,"-1,880.52",CONQUEST CARE HOMES PETERBOROUGH,CARE ESTABLISHMENT,LD - Young Adults Team,LD - Young Adults - Special Needs,Residential Care
Cambridgeshire County Council,30-Apr-20,51301362534,"-1,829.28",KISIMUL SCHOOL,CARE ESTABLISHMENT,LD - Young Adults Team,LD - Young Adults - Care,Residential Care
Cambridgeshire County Council,03-Apr-20,51301347525,"-1,808.99",DIMENSIONS (UK) LTD,CARE ESTABLISHMENT,LD - South Locality - Cost of Care,LD - South Cambs - Care,Supported Living
Cambridgeshire County Council,03-Apr-20,51301347525,"-1,808.99",DIMENSIONS (UK) LTD,CARE ESTABLISHMENT,LD - South Locality - Cost of Care,LD - South Cambs - Care,Supported Living
Cambridgeshire County Council,03-Apr-20,51301347525,"-1,808.99",DIMENSIONS (UK) LTD,CARE ESTABLISHMENT,LD - South Locality - Cost of Care,LD - South Cambs - Care,Supported Living
Cambridgeshire County Council,03-Apr-20,51301347525,"-1,808.99",DIMENSIONS (UK) LTD,CARE ESTABLISHMENT,LD - South Locality - Cost of Care,LD - South Cambs - Care,Supported Living
Cambridgeshire County Council,03-Apr-20,51301347525,"-1,808.99",DIMENSIONS (UK) LTD,CARE ESTABLISHMENT,LD - South Locality - Cost of Care,LD - South Cambs - Care,Supported Living
Cambridgeshire County Council,03-Apr-20,51301347525,"-1,808.99",DIMENSIONS (UK) LTD,CARE ESTABLISHMENT,LD - South Locality - Cost of Care,LD - South Cambs - Care,Supported Living
Cambridgeshire County Council,03-Apr-20,51301347525,"-1,808.99",DIMENSIONS (UK) LTD,CARE ESTABLISHMENT,LD - South Locality - Cost of Care,LD - South Cambs - Care,Supported Living
Cambridgeshire County Council,03-Apr-20,51301347525,"-1,808.99",DIMENSIONS (UK) LTD,CARE ESTABLISHMENT,LD - South Locality - Cost of Care,LD - South Cambs - Care,Supported Living
Cambridgeshire County Council,03-Apr-20,51301347525,"-1,808.99",DIMENSIONS (UK) LTD,CARE ESTABLISHMENT,LD - South Locality - Cost of Care,LD - South Cambs - Care,Supported Living
Cambridgeshire County Council,03-Apr-20,51301347525,"-1,808.99",DIMENSIONS (UK) LTD,CARE ESTABLISHMENT,LD - South Locality - Cost of Care,LD - South Cambs - Care,Supported Living
Cambridgeshire County Council,03-Apr-20,51301347525,"-1,808.99",DIMENSIONS (UK) LTD,CARE ESTABLISHMENT,LD - South Locality - Cost of Care,LD - South Cambs - Care,Supported Living
Cambridgeshire County Council,20-Apr-20,51301354740,"-1,792.63",GUYATT HOUSE CARE LTD,CARE ESTABLISHMENT,LD - Young Adults Team,LD - Young Adults - Care,Supported Living
Cambridgeshire County Council,20-Apr-20,51301354740,"-1,792.63",GUYATT HOUSE CARE LTD,CARE ESTABLISHMENT,LD - Young Adults Team,LD - Young Adults - Care,Supported Living
Cambridgeshire County Council,20-Apr-20,51301354740,"-1,792.63",GUYATT HOUSE CARE LTD,CARE ESTABLISHMENT,LD - Young Adults Team,LD - Young Adults - Care,Supported Living
Cambridgeshire County Council,17-Apr-20,51301354005,"-1,774.12",CONQUEST CARE HOMES PETERBOROUGH,CARE ESTABLISHMENT,LD - Young Adults Team,LD - Young Adults - Special Needs,Residential Care
Cambridgeshire County Council,17-Apr-20,51301354005,"-1,774.12",CONQUEST CARE HOMES PETERBOROUGH,CARE ESTABLISHMENT,LD - Young Adults Team,LD - Young Adults - Special Needs,Residential Care
Cambridgeshire County Council,17-Apr-20,51301354005,"-1,774.12",CONQUEST CARE HOMES PETERBOROUGH,CARE ESTABLISHMENT,LD - Young Adults Team,LD - Young Adults - Special Needs,Residential Care
Cambridgeshire County Council,17-Apr-20,51301354005,"-1,774.12",CONQUEST CARE HOMES PETERBOROUGH,CARE ESTABLISHMENT,LD - Young Adults Team,LD - Young Adults - Special Needs,Residential Care
Cambridgeshire County Council,17-Apr-20,51301354005,"-1,774.12",CONQUEST CARE HOMES PETERBOROUGH,CARE ESTABLISHMENT,LD - Young Adults Team,LD - Young Adults - Special Needs,Residential Care
Cambridgeshire County Council,17-Apr-20,51301354005,"-1,774.12",CONQUEST CARE HOMES PETERBOROUGH,CARE ESTABLISHMENT,LD - Young Adults Team,LD - Young Adults - Special Needs,Residential Care
Cambridgeshire County Council,17-Apr-20,51301354005,"-1,774.12",CONQUEST CARE HOMES PETERBOROUGH,CARE ESTABLISHMENT,LD - Young Adults Team,LD - Young Adults - Special Needs,Residential Care
Cambridgeshire County Council,17-Apr-20,51301354005,"-1,774.12",CONQUEST CARE HOMES PETERBOROUGH,CARE ESTABLISHMENT,LD - Young Adults Team,LD - Young Adults - Special Needs,Residential Care
Cambridgeshire County Council,17-Apr-20,51301354005,"-1,774.12",CONQUEST CARE HOMES PETERBOROUGH,CARE ESTABLISHMENT,LD - Young Adults Team,LD - Young Adults - Special Needs,Residential Care
Cambridgeshire County Council,17-Apr-20,51301354005,"-1,774.12",CONQUEST CARE HOMES PETERBOROUGH,CARE ESTABLISHMENT,LD - Young Adults Team,LD - Young Adults - Special Needs,Residential Care
Cambridgeshire County Council,17-Apr-20,51301354005,"-1,774.12",CONQUEST CARE HOMES PETERBOROUGH,CARE ESTABLISHMENT,LD - Young Adults Team,LD - Young Adults - Special Needs,Residential Care
Cambridgeshire County Council,17-Apr-20,51301354005,"-1,774.12",CONQUEST CARE HOMES PETERBOROUGH,CARE ESTABLISHMENT,LD - Young Adults Team,LD - Young Adults - Special Needs,Residential Care
Cambridgeshire County Council,17-Apr-20,51301354005,"-1,774.12",CONQUEST CARE HOMES PETERBOROUGH,CARE ESTABLISHMENT,LD - Young Adults Team,LD - Young Adults - Special Needs,Residential Care
Cambridgeshire County Council,17-Apr-20,51301354005,"-1,774.12",CONQUEST CARE HOMES PETERBOROUGH,CARE ESTABLISHMENT,LD - Young Adults Team,LD - Young Adults - Special Needs,Residential Care
Cambridgeshire County Council,17-Apr-20,51301354005,"-1,774.12",CONQUEST CARE HOMES PETERBOROUGH,CARE ESTABLISHMENT,LD - Young Adults Team,LD - Young Adults - Special Needs,Residential Care
Cambridgeshire County Council,17-Apr-20,51301354005,"-1,774.12",CONQUEST CARE HOMES PETERBOROUGH,CARE ESTABLISHMENT,LD - Young Adults Team,LD - Young Adults - Special Needs,Residential Care
Cambridgeshire County Council,17-Apr-20,51301354005,"-1,774.12",CONQUEST CARE HOMES PETERBOROUGH,CARE ESTABLISHMENT,LD - Young Adults Team,LD - Young Adults - Special Needs,Residential Care
Cambridgeshire County Council,17-Apr-20,51301354005,"-1,774.12",CONQUEST CARE HOMES PETERBOROUGH,CARE ESTABLISHMENT,LD - Young Adults Team,LD - Young Adults - Special Needs,Residential Care
Cambridgeshire County Council,17-Apr-20,51301354005,"-1,774.12",CONQUEST CARE HOMES PETERBOROUGH,CARE ESTABLISHMENT,LD - Young Adults Team,LD - Young Adults - Special Needs,Residential Care
Cambridgeshire County Council,17-Apr-20,51301354005,"-1,774.12",CONQUEST CARE HOMES PETERBOROUGH,CARE ESTABLISHMENT,LD - Young Adults Team,LD - Young Adults - Special Needs,Residential Care
Cambridgeshire County Council,17-Apr-20,51301354005,"-1,774.12",CONQUEST CARE HOMES PETERBOROUGH,CARE ESTABLISHMENT,LD - Young Adults Team,LD - Young Adults - Special Needs,Residential Care
Cambridgeshire County Council,17-Apr-20,51301354005,"-1,774.12",CONQUEST CARE HOMES PETERBOROUGH,CARE ESTABLISHMENT,LD - Young Adults Team,LD - Young Adults - Special Needs,Residential Care
Cambridgeshire County Council,17-Apr-20,51301354005,"-1,774.12",CONQUEST CARE HOMES PETERBOROUGH,CARE ESTABLISHMENT,LD - Young Adults Team,LD - Young Adults - Special Needs,Residential Care
Cambridgeshire County Council,17-Apr-20,51301354005,"-1,774.12",CONQUEST CARE HOMES PETERBOROUGH,CARE ESTABLISHMENT,LD - Young Adults Team,LD - Young Adults - Special Needs,Residential Care
Cambridgeshire County Council,17-Apr-20,51301354005,"-1,774.12",CONQUEST CARE HOMES PETERBOROUGH,CARE ESTABLISHMENT,LD - Young Adults Team,LD - Young Adults - Special Needs,Residential Care
Cambridgeshire County Council,17-Apr-20,51301354005,"-1,774.12",CONQUEST CARE HOMES PETERBOROUGH,CARE ESTABLISHMENT,LD - Young Adults Team,LD - Young Adults - Special Needs,Residential Care
Cambridgeshire County Council,17-Apr-20,51301354005,"-1,774.12",CONQUEST CARE HOMES PETERBOROUGH,CARE ESTABLISHMENT,LD - Young Adults Team,LD - Young Adults - Special Needs,Residential Care
Cambridgeshire County Council,17-Apr-20,51301354005,"-1,774.12",CONQUEST CARE HOMES PETERBOROUGH,CARE ESTABLISHMENT,LD - Young Adults Team,LD - Young Adults - Special Needs,Residential Care
Cambridgeshire County Council,17-Apr-20,51301354005,"-1,774.12",CONQUEST CARE HOMES PETERBOROUGH,CARE ESTABLISHMENT,LD - Young Adults Team,LD - Young Adults - Special Needs,Residential Care
Cambridgeshire County Council,17-Apr-20,51301354005,"-1,774.12",CONQUEST CARE HOMES PETERBOROUGH,CARE ESTABLISHMENT,LD - Young Adults Team,LD - Young Adults - Special Needs,Residential Care
Cambridgeshire County Council,17-Apr-20,51301354005,"-1,774.12",CONQUEST CARE HOMES PETERBOROUGH,CARE ESTABLISHMENT,LD - Young Adults Team,LD - Young Adults - Special Needs,Residential Care
Cambridgeshire County Council,17-Apr-20,51301354005,"-1,774.12",CONQUEST CARE HOMES PETERBOROUGH,CARE ESTABLISHMENT,LD - Young Adults Team,LD - Young Adults - Special Needs,Residential Care
Cambridgeshire County Council,17-Apr-20,51301354005,"-1,774.12",CONQUEST CARE HOMES PETERBOROUGH,CARE ESTABLISHMENT,LD - Young Adults Team,LD - Young Adults - Special Needs,Residential Care
Cambridgeshire County Council,17-Apr-20,51301354005,"-1,774.12",CONQUEST CARE HOMES PETERBOROUGH,CARE ESTABLISHMENT,LD - Young Adults Team,LD - Young Adults - Special Needs,Residential Care
Cambridgeshire County Council,17-Apr-20,51301354005,"-1,774.12",CONQUEST CARE HOMES PETERBOROUGH,CARE ESTABLISHMENT,LD - Young Adults Team,LD - Young Adults - Special Needs,Residential Care
Cambridgeshire County Council,17-Apr-20,51301354005,"-1,774.12",CONQUEST CARE HOMES PETERBOROUGH,CARE ESTABLISHMENT,LD - Young Adults Team,LD - Young Adults - Special Needs,Residential Care
Cambridgeshire County Council,17-Apr-20,51301354005,"-1,774.12",CONQUEST CARE HOMES PETERBOROUGH,CARE ESTABLISHMENT,LD - Young Adults Team,LD - Young Adults - Special Needs,Residential Care
Cambridgeshire County Council,17-Apr-20,51301354005,"-1,774.12",CONQUEST CARE HOMES PETERBOROUGH,CARE ESTABLISHMENT,LD - Young Adults Team,LD - Young Adults - Special Needs,Residential Care
Cambridgeshire County Council,17-Apr-20,51301354005,"-1,774.12",CONQUEST CARE HOMES PETERBOROUGH,CARE ESTABLISHMENT,LD - Young Adults Team,LD - Young Adults - Special Needs,Residential Care
Cambridgeshire County Council,17-Apr-20,51301354005,"-1,774.12",CONQUEST CARE HOMES PETERBOROUGH,CARE ESTABLISHMENT,LD - Young Adults Team,LD - Young Adults - Special Needs,Residential Care
Cambridgeshire County Council,17-Apr-20,51301354005,"-1,774.12",CONQUEST CARE HOMES PETERBOROUGH,CARE ESTABLISHMENT,LD - Young Adults Team,LD - Young Adults - Special Needs,Residential Care
Cambridgeshire County Council,17-Apr-20,51301354005,"-1,774.12",CONQUEST CARE HOMES PETERBOROUGH,CARE ESTABLISHMENT,LD - Young Adults Team,LD - Young Adults - Special Needs,Residential Care
Cambridgeshire County Council,17-Apr-20,51301354005,"-1,774.12",CONQUEST CARE HOMES PETERBOROUGH,CARE ESTABLISHMENT,LD - Young Adults Team,LD - Young Adults - Special Needs,Residential Care
Cambridgeshire County Council,17-Apr-20,51301354005,"-1,774.12",CONQUEST CARE HOMES PETERBOROUGH,CARE ESTABLISHMENT,LD - Young Adults Team,LD - Young Adults - Special Needs,Residential Care
Cambridgeshire County Council,17-Apr-20,51301354005,"-1,774.12",CONQUEST CARE HOMES PETERBOROUGH,CARE ESTABLISHMENT,LD - Young Adults Team,LD - Young Adults - Special Needs,Residential Care
Cambridgeshire County Council,17-Apr-20,51301354005,"-1,774.12",CONQUEST CARE HOMES PETERBOROUGH,CARE ESTABLISHMENT,LD - Young Adults Team,LD - Young Adults - Special Needs,Residential Care
Cambridgeshire County Council,17-Apr-20,51301354005,"-1,774.12",CONQUEST CARE HOMES PETERBOROUGH,CARE ESTABLISHMENT,LD - Young Adults Team,LD - Young Adults - Special Needs,Residential Care
Cambridgeshire County Council,17-Apr-20,51301354005,"-1,774.12",CONQUEST CARE HOMES PETERBOROUGH,CARE ESTABLISHMENT,LD - Young Adults Team,LD - Young Adults - Special Needs,Residential Care
Cambridgeshire County Council,17-Apr-20,51301354005,"-1,774.12",CONQUEST CARE HOMES PETERBOROUGH,CARE ESTABLISHMENT,LD - Young Adults Team,LD - Young Adults - Special Needs,Residential Care
Cambridgeshire County Council,17-Apr-20,51301354005,"-1,774.12",CONQUEST CARE HOMES PETERBOROUGH,CARE ESTABLISHMENT,LD - Young Adults Team,LD - Young Adults - Special Needs,Residential Care
Cambridgeshire County Council,17-Apr-20,51301354005,"-1,774.12",CONQUEST CARE HOMES PETERBOROUGH,CARE ESTABLISHMENT,LD - Young Adults Team,LD - Young Adults - Special Needs,Residential Care
Cambridgeshire County Council,17-Apr-20,51301354192,"-1,744.12",CONQUEST CARE HOMES PETERBOROUGH,CARE ESTABLISHMENT,LD - Young Adults Team,LD - Young Adults - Care,Residential Care
Cambridgeshire County Council,17-Apr-20,51301354192,"-1,744.12",CONQUEST CARE HOMES PETERBOROUGH,CARE ESTABLISHMENT,LD - Young Adults Team,LD - Young Adults - Care,Residential Care
Cambridgeshire County Council,17-Apr-20,51301354192,"-1,744.12",CONQUEST CARE HOMES PETERBOROUGH,CARE ESTABLISHMENT,LD - Young Adults Team,LD - Young Adults - Care,Residential Care
Cambridgeshire County Council,17-Apr-20,51301354005,"-1,739.50",CONQUEST CARE HOMES PETERBOROUGH,CARE ESTABLISHMENT,LD - Young Adults Team,LD - Young Adults - Special Needs,Residential Care
Cambridgeshire County Council,17-Apr-20,51301354005,"-1,739.50",CONQUEST CARE HOMES PETERBOROUGH,CARE ESTABLISHMENT,LD - Young Adults Team,LD - Young Adults - Special Needs,Residential Care
Cambridgeshire County Council,17-Apr-20,51301354005,"-1,739.50",CONQUEST CARE HOMES PETERBOROUGH,CARE ESTABLISHMENT,LD - Young Adults Team,LD - Young Adults - Special Needs,Residential Care
Cambridgeshire County Council,17-Apr-20,51301354005,"-1,739.50",CONQUEST CARE HOMES PETERBOROUGH,CARE ESTABLISHMENT,LD - Young Adults Team,LD - Young Adults - Special Needs,Residential Care
Cambridgeshire County Council,17-Apr-20,51301354005,"-1,739.50",CONQUEST CARE HOMES PETERBOROUGH,CARE ESTABLISHMENT,LD - Young Adults Team,LD - Young Adults - Special Needs,Residential Care
Cambridgeshire County Council,17-Apr-20,51301354005,"-1,739.50",CONQUEST CARE HOMES PETERBOROUGH,CARE ESTABLISHMENT,LD - Young Adults Team,LD - Young Adults - Special Needs,Residential Care
Cambridgeshire County Council,17-Apr-20,51301354005,"-1,739.50",CONQUEST CARE HOMES PETERBOROUGH,CARE ESTABLISHMENT,LD - Young Adults Team,LD - Young Adults - Special Needs,Residential Care
Cambridgeshire County Council,17-Apr-20,51301354005,"-1,739.50",CONQUEST CARE HOMES PETERBOROUGH,CARE ESTABLISHMENT,LD - Young Adults Team,LD - Young Adults - Special Needs,Residential Care
Cambridgeshire County Council,17-Apr-20,51301354005,"-1,739.50",CONQUEST CARE HOMES PETERBOROUGH,CARE ESTABLISHMENT,LD - Young Adults Team,LD - Young Adults - Special Needs,Residential Care
Cambridgeshire County Council,17-Apr-20,51301354005,"-1,739.50",CONQUEST CARE HOMES PETERBOROUGH,CARE ESTABLISHMENT,LD - Young Adults Team,LD - Young Adults - Special Needs,Residential Care
Cambridgeshire County Council,17-Apr-20,51301354005,"-1,739.50",CONQUEST CARE HOMES PETERBOROUGH,CARE ESTABLISHMENT,LD - Young Adults Team,LD - Young Adults - Special Needs,Residential Care
Cambridgeshire County Council,17-Apr-20,51301354005,"-1,739.50",CONQUEST CARE HOMES PETERBOROUGH,CARE ESTABLISHMENT,LD - Young Adults Team,LD - Young Adults - Special Needs,Residential Care
Cambridgeshire County Council,17-Apr-20,51301354005,"-1,739.50",CONQUEST CARE HOMES PETERBOROUGH,CARE ESTABLISHMENT,LD - Young Adults Team,LD - Young Adults - Special Needs,Residential Care
Cambridgeshire County Council,17-Apr-20,51301354005,"-1,739.50",CONQUEST CARE HOMES PETERBOROUGH,CARE ESTABLISHMENT,LD - Young Adults Team,LD - Young Adults - Special Needs,Residential Care
Cambridgeshire County Council,17-Apr-20,51301354005,"-1,739.50",CONQUEST CARE HOMES PETERBOROUGH,CARE ESTABLISHMENT,LD - Young Adults Team,LD - Young Adults - Special Needs,Residential Care
Cambridgeshire County Council,17-Apr-20,51301354005,"-1,739.50",CONQUEST CARE HOMES PETERBOROUGH,CARE ESTABLISHMENT,LD - Young Adults Team,LD - Young Adults - Special Needs,Residential Care
Cambridgeshire County Council,17-Apr-20,51301354005,"-1,739.50",CONQUEST CARE HOMES PETERBOROUGH,CARE ESTABLISHMENT,LD - Young Adults Team,LD - Young Adults - Special Needs,Residential Care
Cambridgeshire County Council,17-Apr-20,51301354005,"-1,739.50",CONQUEST CARE HOMES PETERBOROUGH,CARE ESTABLISHMENT,LD - Young Adults Team,LD - Young Adults - Special Needs,Residential Care
Cambridgeshire County Council,17-Apr-20,51301354005,"-1,739.50",CONQUEST CARE HOMES PETERBOROUGH,CARE ESTABLISHMENT,LD - Young Adults Team,LD - Young Adults - Special Needs,Residential Care
Cambridgeshire County Council,17-Apr-20,51301354005,"-1,739.50",CONQUEST CARE HOMES PETERBOROUGH,CARE ESTABLISHMENT,LD - Young Adults Team,LD - Young Adults - Special Needs,Residential Care
Cambridgeshire County Council,17-Apr-20,51301354005,"-1,739.50",CONQUEST CARE HOMES PETERBOROUGH,CARE ESTABLISHMENT,LD - Young Adults Team,LD - Young Adults - Special Needs,Residential Care
Cambridgeshire County Council,17-Apr-20,51301354005,"-1,739.50",CONQUEST CARE HOMES PETERBOROUGH,CARE ESTABLISHMENT,LD - Young Adults Team,LD - Young Adults - Special Needs,Residential Care
Cambridgeshire County Council,17-Apr-20,51301354005,"-1,739.50",CONQUEST CARE HOMES PETERBOROUGH,CARE ESTABLISHMENT,LD - Young Adults Team,LD - Young Adults - Special Needs,Residential Care
Cambridgeshire County Council,17-Apr-20,51301354005,"-1,739.50",CONQUEST CARE HOMES PETERBOROUGH,CARE ESTABLISHMENT,LD - Young Adults Team,LD - Young Adults - Special Needs,Residential Care
Cambridgeshire County Council,17-Apr-20,51301354005,"-1,739.50",CONQUEST CARE HOMES PETERBOROUGH,CARE ESTABLISHMENT,LD - Young Adults Team,LD - Young Adults - Special Needs,Residential Care
Cambridgeshire County Council,17-Apr-20,51301354005,"-1,739.50",CONQUEST CARE HOMES PETERBOROUGH,CARE ESTABLISHMENT,LD - Young Adults Team,LD - Young Adults - Special Needs,Residential Care
Cambridgeshire County Council,17-Apr-20,51301354005,"-1,739.50",CONQUEST CARE HOMES PETERBOROUGH,CARE ESTABLISHMENT,LD - Young Adults Team,LD - Young Adults - Special Needs,Residential Care
Cambridgeshire County Council,17-Apr-20,51301354005,"-1,739.50",CONQUEST CARE HOMES PETERBOROUGH,CARE ESTABLISHMENT,LD - Young Adults Team,LD - Young Adults - Special Needs,Residential Care
Cambridgeshire County Council,17-Apr-20,51301354005,"-1,739.50",CONQUEST CARE HOMES PETERBOROUGH,CARE ESTABLISHMENT,LD - Young Adults Team,LD - Young Adults - Special Needs,Residential Care
Cambridgeshire County Council,17-Apr-20,51301354005,"-1,739.50",CONQUEST CARE HOMES PETERBOROUGH,CARE ESTABLISHMENT,LD - Young Adults Team,LD - Young Adults - Special Needs,Residential Care
Cambridgeshire County Council,17-Apr-20,51301354005,"-1,739.50",CONQUEST CARE HOMES PETERBOROUGH,CARE ESTABLISHMENT,LD - Young Adults Team,LD - Young Adults - Special Needs,Residential Care
Cambridgeshire County Council,17-Apr-20,51301354005,"-1,739.50",CONQUEST CARE HOMES PETERBOROUGH,CARE ESTABLISHMENT,LD - Young Adults Team,LD - Young Adults - Special Needs,Residential Care
Cambridgeshire County Council,17-Apr-20,51301354005,"-1,739.50",CONQUEST CARE HOMES PETERBOROUGH,CARE ESTABLISHMENT,LD - Young Adults Team,LD - Young Adults - Special Needs,Residential Care
Cambridgeshire County Council,17-Apr-20,51301354005,"-1,739.50",CONQUEST CARE HOMES PETERBOROUGH,CARE ESTABLISHMENT,LD - Young Adults Team,LD - Young Adults - Special Needs,Residential Care
Cambridgeshire County Council,09-Apr-20,51301349654,"-1,718.71",HOLLYBANK TRUST,CARE ESTABLISHMENT,LD - South Locality - Cost of Care,LD - South Cambs - Care,Residential Care
Cambridgeshire County Council,09-Apr-20,51301349654,"-1,718.71",HOLLYBANK TRUST,CARE ESTABLISHMENT,LD - South Locality - Cost of Care,LD - South Cambs - Care,Residential Care
Cambridgeshire County Council,09-Apr-20,51301349654,"-1,718.71",HOLLYBANK TRUST,CARE ESTABLISHMENT,LD - South Locality - Cost of Care,LD - South Cambs - Care,Residential Care
Cambridgeshire County Council,09-Apr-20,51301349654,"-1,718.71",HOLLYBANK TRUST,CARE ESTABLISHMENT,LD - South Locality - Cost of Care,LD - South Cambs - Care,Residential Care
Cambridgeshire County Council,09-Apr-20,51301349654,"-1,718.71",HOLLYBANK TRUST,CARE ESTABLISHMENT,LD - South Locality - Cost of Care,LD - South Cambs - Care,Residential Care
Cambridgeshire County Council,09-Apr-20,51301349654,"-1,718.71",HOLLYBANK TRUST,CARE ESTABLISHMENT,LD - South Locality - Cost of Care,LD - South Cambs - Care,Residential Care
Cambridgeshire County Council,09-Apr-20,51301349654,"-1,718.71",HOLLYBANK TRUST,CARE ESTABLISHMENT,LD - South Locality - Cost of Care,LD - South Cambs - Care,Residential Care
Cambridgeshire County Council,09-Apr-20,51301349654,"-1,718.71",HOLLYBANK TRUST,CARE ESTABLISHMENT,LD - South Locality - Cost of Care,LD - South Cambs - Care,Residential Care
Cambridgeshire County Council,09-Apr-20,51301349654,"-1,718.71",HOLLYBANK TRUST,CARE ESTABLISHMENT,LD - South Locality - Cost of Care,LD - South Cambs - Care,Residential Care
Cambridgeshire County Council,09-Apr-20,51301349654,"-1,718.71",HOLLYBANK TRUST,CARE ESTABLISHMENT,LD - South Locality - Cost of Care,LD - South Cambs - Care,Residential Care
Cambridgeshire County Council,09-Apr-20,51301349654,"-1,718.71",HOLLYBANK TRUST,CARE ESTABLISHMENT,LD - South Locality - Cost of Care,LD - South Cambs - Care,Residential Care
Cambridgeshire County Council,09-Apr-20,51301349654,"-1,718.71",HOLLYBANK TRUST,CARE ESTABLISHMENT,LD - South Locality - Cost of Care,LD - South Cambs - Care,Residential Care
Cambridgeshire County Council,09-Apr-20,51301349654,"-1,718.71",HOLLYBANK TRUST,CARE ESTABLISHMENT,LD - South Locality - Cost of Care,LD - South Cambs - Care,Residential Care
Cambridgeshire County Council,09-Apr-20,51301349654,"-1,718.71",HOLLYBANK TRUST,CARE ESTABLISHMENT,LD - South Locality - Cost of Care,LD - South Cambs - Care,Residential Care
Cambridgeshire County Council,09-Apr-20,51301349654,"-1,718.71",HOLLYBANK TRUST,CARE ESTABLISHMENT,LD - South Locality - Cost of Care,LD - South Cambs - Care,Residential Care
Cambridgeshire County Council,09-Apr-20,51301349654,"-1,718.71",HOLLYBANK TRUST,CARE ESTABLISHMENT,LD - South Locality - Cost of Care,LD - South Cambs - Care,Residential Care
Cambridgeshire County Council,09-Apr-20,51301349654,"-1,718.71",HOLLYBANK TRUST,CARE ESTABLISHMENT,LD - South Locality - Cost of Care,LD - South Cambs - Care,Residential Care
Cambridgeshire County Council,09-Apr-20,51301349654,"-1,718.71",HOLLYBANK TRUST,CARE ESTABLISHMENT,LD - South Locality - Cost of Care,LD - South Cambs - Care,Residential Care
Cambridgeshire County Council,09-Apr-20,51301349654,"-1,718.71",HOLLYBANK TRUST,CARE ESTABLISHMENT,LD - South Locality - Cost of Care,LD - South Cambs - Care,Residential Care
Cambridgeshire County Council,09-Apr-20,51301349654,"-1,718.71",HOLLYBANK TRUST,CARE ESTABLISHMENT,LD - South Locality - Cost of Care,LD - South Cambs - Care,Residential Care
Cambridgeshire County Council,09-Apr-20,51301349654,"-1,718.71",HOLLYBANK TRUST,CARE ESTABLISHMENT,LD - South Locality - Cost of Care,LD - South Cambs - Care,Residential Care
Cambridgeshire County Council,09-Apr-20,51301349654,"-1,718.71",HOLLYBANK TRUST,CARE ESTABLISHMENT,LD - South Locality - Cost of Care,LD - South Cambs - Care,Residential Care
Cambridgeshire County Council,09-Apr-20,51301349654,"-1,718.71",HOLLYBANK TRUST,CARE ESTABLISHMENT,LD - South Locality - Cost of Care,LD - South Cambs - Care,Residential Care
Cambridgeshire County Council,09-Apr-20,51301349654,"-1,718.71",HOLLYBANK TRUST,CARE ESTABLISHMENT,LD - South Locality - Cost of Care,LD - South Cambs - Care,Residential Care
Cambridgeshire County Council,09-Apr-20,51301349654,"-1,718.71",HOLLYBANK TRUST,CARE ESTABLISHMENT,LD - South Locality - Cost of Care,LD - South Cambs - Care,Residential Care
Cambridgeshire County Council,09-Apr-20,51301349654,"-1,718.71",HOLLYBANK TRUST,CARE ESTABLISHMENT,LD - South Locality - Cost of Care,LD - South Cambs - Care,Residential Care
Cambridgeshire County Council,09-Apr-20,51301349654,"-1,718.71",HOLLYBANK TRUST,CARE ESTABLISHMENT,LD - South Locality - Cost of Care,LD - South Cambs - Care,Residential Care
Cambridgeshire County Council,09-Apr-20,51301349654,"-1,718.71",HOLLYBANK TRUST,CARE ESTABLISHMENT,LD - South Locality - Cost of Care,LD - South Cambs - Care,Residential Care
Cambridgeshire County Council,09-Apr-20,51301349654,"-1,718.71",HOLLYBANK TRUST,CARE ESTABLISHMENT,LD - South Locality - Cost of Care,LD - South Cambs - Care,Residential Care
Cambridgeshire County Council,09-Apr-20,51301349654,"-1,718.71",HOLLYBANK TRUST,CARE ESTABLISHMENT,LD - South Locality - Cost of Care,LD - South Cambs - Care,Residential Care
Cambridgeshire County Council,09-Apr-20,51301349654,"-1,718.71",HOLLYBANK TRUST,CARE ESTABLISHMENT,LD - South Locality - Cost of Care,LD - South Cambs - Care,Residential Care
Cambridgeshire County Council,09-Apr-20,51301349654,"-1,718.71",HOLLYBANK TRUST,CARE ESTABLISHMENT,LD - South Locality - Cost of Care,LD - South Cambs - Care,Residential Care
Cambridgeshire County Council,09-Apr-20,51301349654,"-1,718.71",HOLLYBANK TRUST,CARE ESTABLISHMENT,LD - South Locality - Cost of Care,LD - South Cambs - Care,Residential Care
Cambridgeshire County Council,09-Apr-20,51301349654,"-1,718.71",HOLLYBANK TRUST,CARE ESTABLISHMENT,LD - South Locality - Cost of Care,LD - South Cambs - Care,Residential Care
Cambridgeshire County Council,09-Apr-20,51301349654,"-1,718.71",HOLLYBANK TRUST,CARE ESTABLISHMENT,LD - South Locality - Cost of Care,LD - South Cambs - Care,Residential Care
Cambridgeshire County Council,09-Apr-20,51301349654,"-1,718.71",HOLLYBANK TRUST,CARE ESTABLISHMENT,LD - South Locality - Cost of Care,LD - South Cambs - Care,Residential Care
Cambridgeshire County Council,09-Apr-20,51301349654,"-1,718.71",HOLLYBANK TRUST,CARE ESTABLISHMENT,LD - South Locality - Cost of Care,LD - South Cambs - Care,Residential Care
Cambridgeshire County Council,09-Apr-20,51301349654,"-1,718.71",HOLLYBANK TRUST,CARE ESTABLISHMENT,LD - South Locality - Cost of Care,LD - South Cambs - Care,Residential Care
Cambridgeshire County Council,09-Apr-20,51301349654,"-1,718.71",HOLLYBANK TRUST,CARE ESTABLISHMENT,LD - South Locality - Cost of Care,LD - South Cambs - Care,Residential Care
Cambridgeshire County Council,09-Apr-20,51301349654,"-1,718.71",HOLLYBANK TRUST,CARE ESTABLISHMENT,LD - South Locality - Cost of Care,LD - South Cambs - Care,Residential Care
Cambridgeshire County Council,09-Apr-20,51301349654,"-1,718.71",HOLLYBANK TRUST,CARE ESTABLISHMENT,LD - South Locality - Cost of Care,LD - South Cambs - Care,Residential Care
Cambridgeshire County Council,09-Apr-20,51301349654,"-1,718.71",HOLLYBANK TRUST,CARE ESTABLISHMENT,LD - South Locality - Cost of Care,LD - South Cambs - Care,Residential Care
Cambridgeshire County Council,09-Apr-20,51301349654,"-1,718.71",HOLLYBANK TRUST,CARE ESTABLISHMENT,LD - South Locality - Cost of Care,LD - South Cambs - Care,Residential Care
Cambridgeshire County Council,09-Apr-20,51301349654,"-1,718.71",HOLLYBANK TRUST,CARE ESTABLISHMENT,LD - South Locality - Cost of Care,LD - South Cambs - Care,Residential Care
Cambridgeshire County Council,09-Apr-20,51301349654,"-1,718.71",HOLLYBANK TRUST,CARE ESTABLISHMENT,LD - South Locality - Cost of Care,LD - South Cambs - Care,Residential Care
Cambridgeshire County Council,09-Apr-20,51301349654,"-1,718.71",HOLLYBANK TRUST,CARE ESTABLISHMENT,LD - South Locality - Cost of Care,LD - South Cambs - Care,Residential Care
Cambridgeshire County Council,09-Apr-20,51301349654,"-1,718.71",HOLLYBANK TRUST,CARE ESTABLISHMENT,LD - South Locality - Cost of Care,LD - South Cambs - Care,Residential Care
Cambridgeshire County Council,09-Apr-20,51301349654,"-1,718.71",HOLLYBANK TRUST,CARE ESTABLISHMENT,LD - South Locality - Cost of Care,LD - South Cambs - Care,Residential Care
Cambridgeshire County Council,09-Apr-20,51301349654,"-1,718.71",HOLLYBANK TRUST,CARE ESTABLISHMENT,LD - South Locality - Cost of Care,LD - South Cambs - Care,Residential Care
Cambridgeshire County Council,09-Apr-20,51301349654,"-1,718.71",HOLLYBANK TRUST,CARE ESTABLISHMENT,LD - South Locality - Cost of Care,LD - South Cambs - Care,Residential Care
Cambridgeshire County Council,09-Apr-20,51301349654,"-1,718.71",HOLLYBANK TRUST,CARE ESTABLISHMENT,LD - South Locality - Cost of Care,LD - South Cambs - Care,Residential Care
Cambridgeshire County Council,09-Apr-20,51301349654,"-1,718.71",HOLLYBANK TRUST,CARE ESTABLISHMENT,LD - South Locality - Cost of Care,LD - South Cambs - Care,Residential Care
Cambridgeshire County Council,09-Apr-20,51301349654,"-1,718.71",HOLLYBANK TRUST,CARE ESTABLISHMENT,LD - South Locality - Cost of Care,LD - South Cambs - Care,Residential Care
Cambridgeshire County Council,09-Apr-20,51301349654,"-1,718.71",HOLLYBANK TRUST,CARE ESTABLISHMENT,LD - South Locality - Cost of Care,LD - South Cambs - Care,Residential Care
Cambridgeshire County Council,09-Apr-20,51301349654,"-1,718.71",HOLLYBANK TRUST,CARE ESTABLISHMENT,LD - South Locality - Cost of Care,LD - South Cambs - Care,Residential Care
Cambridgeshire County Council,14-Apr-20,51301346537,"-1,664.56",Redacted Personal Data,FOSTER PARENT,Fostering,FCP allowances,Enhanced Payments
Cambridgeshire County Council,02-Apr-20,51301343351,"-1,657.06",LITTLE ACORNS FOSTERING LTD,CARE ESTABLISHMENT,LAC Placements,Placements - independent fostering,Agency Placements - Out of  County
Cambridgeshire County Council,28-Apr-20,51301359338,"-1,524.90",CCS MEDIA LIMITED,TRADE SUPPLIER,ICT Service,ICT Service Business Support,Equipment and Tools
Cambridgeshire County Council,28-Apr-20,51301359342,"-1,524.90",CCS MEDIA LIMITED,TRADE SUPPLIER,ICT Service,ICT Service Business Support,Equipment and Tools
Cambridgeshire County Council,28-Apr-20,51301359340,"-1,524.90",CCS MEDIA LIMITED,TRADE SUPPLIER,ICT Service,ICT Service Business Support,Equipment and Tools
Cambridgeshire County Council,27-Apr-20,51301352350,"-1,523.10",CHS GROUP,CARE ESTABLISHMENT,Mental Health Commissioning,Mental Health Commissioning,Supported Living
Cambridgeshire County Council,17-Apr-20,51301354005,"-1,520.67",CONQUEST CARE HOMES PETERBOROUGH,CARE ESTABLISHMENT,LD - Young Adults Team,LD - Young Adults - Special Needs,Residential Care
Cambridgeshire County Council,16-Apr-20,51301352190,"-1,513.07",SOCIAL CARE SOLUTIONS LTD,CARE ESTABLISHMENT,OP - Hunts Locality - Cost of Care,Hunts OP Team - Care,Supported Living
Cambridgeshire County Council,16-Apr-20,51301352190,"-1,513.07",SOCIAL CARE SOLUTIONS LTD,CARE ESTABLISHMENT,OP - Hunts Locality - Cost of Care,Hunts OP Team - Care,Supported Living
Cambridgeshire County Council,16-Apr-20,51301352190,"-1,513.07",SOCIAL CARE SOLUTIONS LTD,CARE ESTABLISHMENT,OP - Hunts Locality - Cost of Care,Hunts OP Team - Care,Supported Living
Cambridgeshire County Council,16-Apr-20,51301352190,"-1,513.07",SOCIAL CARE SOLUTIONS LTD,CARE ESTABLISHMENT,OP - Hunts Locality - Cost of Care,Hunts OP Team - Care,Supported Living
Cambridgeshire County Council,16-Apr-20,51301352190,"-1,513.07",SOCIAL CARE SOLUTIONS LTD,CARE ESTABLISHMENT,OP - Hunts Locality - Cost of Care,Hunts OP Team - Care,Supported Living
Cambridgeshire County Council,17-Apr-20,51301353969,"-1,501.00",CONQUEST CARE HOMES PETERBOROUGH,CARE ESTABLISHMENT,Physical Disablity - Cost of Care,Countywide PD Service - Care,Residential Care
Cambridgeshire County Council,17-Apr-20,51301353969,"-1,501.00",CONQUEST CARE HOMES PETERBOROUGH,CARE ESTABLISHMENT,Physical Disablity - Cost of Care,Countywide PD Service - Care,Residential Care
Cambridgeshire County Council,17-Apr-20,51301353969,"-1,501.00",CONQUEST CARE HOMES PETERBOROUGH,CARE ESTABLISHMENT,Physical Disablity - Cost of Care,Countywide PD Service - Care,Residential Care
Cambridgeshire County Council,17-Apr-20,51301353969,"-1,501.00",CONQUEST CARE HOMES PETERBOROUGH,CARE ESTABLISHMENT,Physical Disablity - Cost of Care,Countywide PD Service - Care,Residential Care
Cambridgeshire County Council,09-Apr-20,51301349654,"-1,473.18",HOLLYBANK TRUST,CARE ESTABLISHMENT,LD - South Locality - Cost of Care,LD - South Cambs - Care,Residential Care
Cambridgeshire County Council,23-Apr-20,51301359520,"-1,447.24",MENCAP (32 KINGS LANE),CARE ESTABLISHMENT,LD - Hunts Locality - Cost of Care,LD - Huntingdonshire - Special Needs,Residential Care
Cambridgeshire County Council,23-Apr-20,51301359520,"-1,447.24",MENCAP (32 KINGS LANE),CARE ESTABLISHMENT,LD - Hunts Locality - Cost of Care,LD - Huntingdonshire - Special Needs,Residential Care
Cambridgeshire County Council,23-Apr-20,51301359520,"-1,447.24",MENCAP (32 KINGS LANE),CARE ESTABLISHMENT,LD - Hunts Locality - Cost of Care,LD - Huntingdonshire - Special Needs,Residential Care
Cambridgeshire County Council,23-Apr-20,51301359520,"-1,447.24",MENCAP (32 KINGS LANE),CARE ESTABLISHMENT,LD - Hunts Locality - Cost of Care,LD - Huntingdonshire - Special Needs,Residential Care
Cambridgeshire County Council,23-Apr-20,51301359520,"-1,447.24",MENCAP (32 KINGS LANE),CARE ESTABLISHMENT,LD - Hunts Locality - Cost of Care,LD - Huntingdonshire - Special Needs,Residential Care
Cambridgeshire County Council,23-Apr-20,51301359520,"-1,447.24",MENCAP (32 KINGS LANE),CARE ESTABLISHMENT,LD - Hunts Locality - Cost of Care,LD - Huntingdonshire - Special Needs,Residential Care
Cambridgeshire County Council,23-Apr-20,51301359520,"-1,447.24",MENCAP (32 KINGS LANE),CARE ESTABLISHMENT,LD - Hunts Locality - Cost of Care,LD - Huntingdonshire - Special Needs,Residential Care
Cambridgeshire County Council,23-Apr-20,51301359520,"-1,447.24",MENCAP (32 KINGS LANE),CARE ESTABLISHMENT,LD - Hunts Locality - Cost of Care,LD - Huntingdonshire - Special Needs,Residential Care
Cambridgeshire County Council,23-Apr-20,51301359520,"-1,447.24",MENCAP (32 KINGS LANE),CARE ESTABLISHMENT,LD - Hunts Locality - Cost of Care,LD - Huntingdonshire - Special Needs,Residential Care
Cambridgeshire County Council,23-Apr-20,51301359520,"-1,447.24",MENCAP (32 KINGS LANE),CARE ESTABLISHMENT,LD - Hunts Locality - Cost of Care,LD - Huntingdonshire - Special Needs,Residential Care
Cambridgeshire County Council,23-Apr-20,51301359520,"-1,447.24",MENCAP (32 KINGS LANE),CARE ESTABLISHMENT,LD - Hunts Locality - Cost of Care,LD - Huntingdonshire - Special Needs,Residential Care
Cambridgeshire County Council,23-Apr-20,51301359520,"-1,447.24",MENCAP (32 KINGS LANE),CARE ESTABLISHMENT,LD - Hunts Locality - Cost of Care,LD - Huntingdonshire - Special Needs,Residential Care
Cambridgeshire County Council,23-Apr-20,51301359520,"-1,447.24",MENCAP (32 KINGS LANE),CARE ESTABLISHMENT,LD - Hunts Locality - Cost of Care,LD - Huntingdonshire - Special Needs,Residential Care
Cambridgeshire County Council,23-Apr-20,51301359520,"-1,447.24",MENCAP (32 KINGS LANE),CARE ESTABLISHMENT,LD - Hunts Locality - Cost of Care,LD - Huntingdonshire - Special Needs,Residential Care
Cambridgeshire County Council,23-Apr-20,51301359520,"-1,447.24",MENCAP (32 KINGS LANE),CARE ESTABLISHMENT,LD - Hunts Locality - Cost of Care,LD - Huntingdonshire - Special Needs,Residential Care
Cambridgeshire County Council,23-Apr-20,51301359520,"-1,447.24",MENCAP (32 KINGS LANE),CARE ESTABLISHMENT,LD - Hunts Locality - Cost of Care,LD - Huntingdonshire - Special Needs,Residential Care
Cambridgeshire County Council,23-Apr-20,51301359520,"-1,447.24",MENCAP (32 KINGS LANE),CARE ESTABLISHMENT,LD - Hunts Locality - Cost of Care,LD - Huntingdonshire - Special Needs,Residential Care
Cambridgeshire County Council,23-Apr-20,51301359520,"-1,447.24",MENCAP (32 KINGS LANE),CARE ESTABLISHMENT,LD - Hunts Locality - Cost of Care,LD - Huntingdonshire - Special Needs,Residential Care
Cambridgeshire County Council,23-Apr-20,51301359520,"-1,447.24",MENCAP (32 KINGS LANE),CARE ESTABLISHMENT,LD - Hunts Locality - Cost of Care,LD - Huntingdonshire - Special Needs,Residential Care
Cambridgeshire County Council,17-Apr-20,51301354005,"-1,343.23",CONQUEST CARE HOMES PETERBOROUGH,CARE ESTABLISHMENT,LD - Young Adults Team,LD - Young Adults - Special Needs,Residential Care
Cambridgeshire County Council,20-Apr-20,51301357273,"-1,304.11",Redacted Personal Data,SERVICE USER,OP - City & South Locality - Cost of Care,Older People - City & South - Care,Direct Payments
Cambridgeshire County Council,20-Apr-20,51301357273,"-1,304.11",Redacted Personal Data,SERVICE USER,OP - City & South Locality - Cost of Care,Older People - City & South - Care,Direct Payments
Cambridgeshire County Council,20-Apr-20,51301357273,"-1,304.11",Redacted Personal Data,SERVICE USER,OP - City & South Locality - Cost of Care,Older People - City & South - Care,Direct Payments
Cambridgeshire County Council,20-Apr-20,51301357273,"-1,304.11",Redacted Personal Data,SERVICE USER,OP - City & South Locality - Cost of Care,Older People - City & South - Care,Direct Payments
Cambridgeshire County Council,20-Apr-20,51301357273,"-1,304.11",Redacted Personal Data,SERVICE USER,OP - City & South Locality - Cost of Care,Older People - City & South - Care,Direct Payments
Cambridgeshire County Council,20-Apr-20,51301357273,"-1,304.11",Redacted Personal Data,SERVICE USER,OP - City & South Locality - Cost of Care,Older People - City & South - Care,Direct Payments
Cambridgeshire County Council,16-Apr-20,51301352190,"-1,296.92",SOCIAL CARE SOLUTIONS LTD,CARE ESTABLISHMENT,OP - Hunts Locality - Cost of Care,Hunts OP Team - Care,Supported Living
Cambridgeshire County Council,17-Apr-20,51301353629,"-1,292.20",VOYAGE,CARE ESTABLISHMENT,LD - South Locality - Cost of Care,LD - South Cambs - Care,Residential Care
Cambridgeshire County Council,17-Apr-20,51301353629,"-1,292.20",VOYAGE,CARE ESTABLISHMENT,LD - South Locality - Cost of Care,LD - South Cambs - Care,Residential Care
Cambridgeshire County Council,17-Apr-20,51301353629,"-1,292.20",VOYAGE,CARE ESTABLISHMENT,LD - South Locality - Cost of Care,LD - South Cambs - Care,Residential Care
Cambridgeshire County Council,17-Apr-20,51301353629,"-1,292.20",VOYAGE,CARE ESTABLISHMENT,LD - South Locality - Cost of Care,LD - South Cambs - Care,Residential Care
Cambridgeshire County Council,23-Apr-20,51301359520,"-1,240.49",MENCAP (32 KINGS LANE),CARE ESTABLISHMENT,LD - Hunts Locality - Cost of Care,LD - Huntingdonshire - Special Needs,Residential Care
Cambridgeshire County Council,30-Apr-20,51301362665,"-1,238.50",Redacted Personal Data,SERVICE USER,LD - South Locality - Cost of Care,LD - South Cambs - Special Needs,Direct Payments
Cambridgeshire County Council,30-Apr-20,51301362665,"-1,238.50",Redacted Personal Data,SERVICE USER,LD - South Locality - Cost of Care,LD - South Cambs - Special Needs,Direct Payments
Cambridgeshire County Council,30-Apr-20,51301362665,"-1,238.50",Redacted Personal Data,SERVICE USER,LD - South Locality - Cost of Care,LD - South Cambs - Special Needs,Direct Payments
Cambridgeshire County Council,30-Apr-20,51301362665,"-1,238.50",Redacted Personal Data,SERVICE USER,LD - South Locality - Cost of Care,LD - South Cambs - Special Needs,Direct Payments
Cambridgeshire County Council,30-Apr-20,51301362665,"-1,238.50",Redacted Personal Data,SERVICE USER,LD - South Locality - Cost of Care,LD - South Cambs - Special Needs,Direct Payments
Cambridgeshire County Council,30-Apr-20,51301362665,"-1,238.50",Redacted Personal Data,SERVICE USER,LD - South Locality - Cost of Care,LD - South Cambs - Special Needs,Direct Payments
Cambridgeshire County Council,30-Apr-20,51301362665,"-1,238.50",Redacted Personal Data,SERVICE USER,LD - South Locality - Cost of Care,LD - South Cambs - Special Needs,Direct Payments
Cambridgeshire County Council,30-Apr-20,51301362665,"-1,238.50",Redacted Personal Data,SERVICE USER,LD - South Locality - Cost of Care,LD - South Cambs - Special Needs,Direct Payments
Cambridgeshire County Council,30-Apr-20,51301362665,"-1,238.50",Redacted Personal Data,SERVICE USER,LD - South Locality - Cost of Care,LD - South Cambs - Special Needs,Direct Payments
Cambridgeshire County Council,30-Apr-20,51301362665,"-1,238.50",Redacted Personal Data,SERVICE USER,LD - South Locality - Cost of Care,LD - South Cambs - Special Needs,Direct Payments
Cambridgeshire County Council,30-Apr-20,51301362665,"-1,238.50",Redacted Personal Data,SERVICE USER,LD - South Locality - Cost of Care,LD - South Cambs - Special Needs,Direct Payments
Cambridgeshire County Council,30-Apr-20,51301362665,"-1,238.50",Redacted Personal Data,SERVICE USER,LD - South Locality - Cost of Care,LD - South Cambs - Special Needs,Direct Payments
Cambridgeshire County Council,30-Apr-20,51301362665,"-1,238.50",Redacted Personal Data,SERVICE USER,LD - South Locality - Cost of Care,LD - South Cambs - Special Needs,Direct Payments
Cambridgeshire County Council,30-Apr-20,51301362665,"-1,238.50",Redacted Personal Data,SERVICE USER,LD - South Locality - Cost of Care,LD - South Cambs - Special Needs,Direct Payments
Cambridgeshire County Council,30-Apr-20,51301362665,"-1,238.50",Redacted Personal Data,SERVICE USER,LD - South Locality - Cost of Care,LD - South Cambs - Special Needs,Direct Payments
Cambridgeshire County Council,30-Apr-20,51301362665,"-1,238.50",Redacted Personal Data,SERVICE USER,LD - South Locality - Cost of Care,LD - South Cambs - Special Needs,Direct Payments
Cambridgeshire County Council,30-Apr-20,51301362665,"-1,238.50",Redacted Personal Data,SERVICE USER,LD - South Locality - Cost of Care,LD - South Cambs - Special Needs,Direct Payments
Cambridgeshire County Council,30-Apr-20,51301362665,"-1,238.50",Redacted Personal Data,SERVICE USER,LD - South Locality - Cost of Care,LD - South Cambs - Special Needs,Direct Payments
Cambridgeshire County Council,30-Apr-20,51301362665,"-1,238.50",Redacted Personal Data,SERVICE USER,LD - South Locality - Cost of Care,LD - South Cambs - Special Needs,Direct Payments
Cambridgeshire County Council,30-Apr-20,51301362665,"-1,238.50",Redacted Personal Data,SERVICE USER,LD - South Locality - Cost of Care,LD - South Cambs - Special Needs,Direct Payments
Cambridgeshire County Council,17-Apr-20,51301353409,"-1,234.44",BARCHESTER HEALTHCARE HOMES LTD,CARE ESTABLISHMENT,OPMH - City & South,Older People Mental Health City & South,Nursing Care
Cambridgeshire County Council,17-Apr-20,51301353409,"-1,234.44",BARCHESTER HEALTHCARE HOMES LTD,CARE ESTABLISHMENT,OPMH - City & South,Older People Mental Health City & South,Nursing Care
Cambridgeshire County Council,17-Apr-20,51301353409,"-1,234.44",BARCHESTER HEALTHCARE HOMES LTD,CARE ESTABLISHMENT,OPMH - City & South,Older People Mental Health City & South,Nursing Care
Cambridgeshire County Council,17-Apr-20,51301353409,"-1,234.44",BARCHESTER HEALTHCARE HOMES LTD,CARE ESTABLISHMENT,OPMH - City & South,Older People Mental Health City & South,Nursing Care
Cambridgeshire County Council,17-Apr-20,51301353409,"-1,234.44",BARCHESTER HEALTHCARE HOMES LTD,CARE ESTABLISHMENT,OPMH - City & South,Older People Mental Health City & South,Nursing Care
Cambridgeshire County Council,17-Apr-20,51301353409,"-1,234.44",BARCHESTER HEALTHCARE HOMES LTD,CARE ESTABLISHMENT,OPMH - City & South,Older People Mental Health City & South,Nursing Care
Cambridgeshire County Council,17-Apr-20,51301353409,"-1,234.44",BARCHESTER HEALTHCARE HOMES LTD,CARE ESTABLISHMENT,OPMH - City & South,Older People Mental Health City & South,Nursing Care
Cambridgeshire County Council,17-Apr-20,51301353629,"-1,145.91",VOYAGE,CARE ESTABLISHMENT,LD - South Locality - Cost of Care,LD - South Cambs - Care,Residential Care
Cambridgeshire County Council,17-Apr-20,51301353629,"-1,145.91",VOYAGE,CARE ESTABLISHMENT,LD - South Locality - Cost of Care,LD - South Cambs - Care,Residential Care
Cambridgeshire County Council,17-Apr-20,51301353629,"-1,145.91",VOYAGE,CARE ESTABLISHMENT,LD - South Locality - Cost of Care,LD - South Cambs - Care,Residential Care
Cambridgeshire County Council,17-Apr-20,51301353629,"-1,145.91",VOYAGE,CARE ESTABLISHMENT,LD - South Locality - Cost of Care,LD - South Cambs - Care,Residential Care
Cambridgeshire County Council,17-Apr-20,51301353388,"-1,134.44",BARCHESTER HEALTHCARE HOMES LTD,CARE ESTABLISHMENT,OP - City & South Locality - Cost of Care,Older People - City & South - Care,Nursing Care
Cambridgeshire County Council,17-Apr-20,51301353388,"-1,134.44",BARCHESTER HEALTHCARE HOMES LTD,CARE ESTABLISHMENT,OP - City & South Locality - Cost of Care,Older People - City & South - Care,Nursing Care
Cambridgeshire County Council,17-Apr-20,51301353388,"-1,134.44",BARCHESTER HEALTHCARE HOMES LTD,CARE ESTABLISHMENT,OP - City & South Locality - Cost of Care,Older People - City & South - Care,Nursing Care
Cambridgeshire County Council,17-Apr-20,51301353388,"-1,134.44",BARCHESTER HEALTHCARE HOMES LTD,CARE ESTABLISHMENT,OP - City & South Locality - Cost of Care,Older People - City & South - Care,Nursing Care
Cambridgeshire County Council,17-Apr-20,51301353388,"-1,134.44",BARCHESTER HEALTHCARE HOMES LTD,CARE ESTABLISHMENT,OP - City & South Locality - Cost of Care,Older People - City & South - Care,Nursing Care
Cambridgeshire County Council,17-Apr-20,51301353388,"-1,134.44",BARCHESTER HEALTHCARE HOMES LTD,CARE ESTABLISHMENT,OP - City & South Locality - Cost of Care,Older People - City & South - Care,Nursing Care
Cambridgeshire County Council,17-Apr-20,51301353388,"-1,134.44",BARCHESTER HEALTHCARE HOMES LTD,CARE ESTABLISHMENT,OP - City & South Locality - Cost of Care,Older People - City & South - Care,Nursing Care
Cambridgeshire County Council,17-Apr-20,51301353388,"-1,134.44",BARCHESTER HEALTHCARE HOMES LTD,CARE ESTABLISHMENT,OP - City & South Locality - Cost of Care,Older People - City & South - Care,Nursing Care
Cambridgeshire County Council,17-Apr-20,51301353388,"-1,134.44",BARCHESTER HEALTHCARE HOMES LTD,CARE ESTABLISHMENT,OP - City & South Locality - Cost of Care,Older People - City & South - Care,Nursing Care
Cambridgeshire County Council,17-Apr-20,51301353388,"-1,134.44",BARCHESTER HEALTHCARE HOMES LTD,CARE ESTABLISHMENT,OP - City & South Locality - Cost of Care,Older People - City & South - Care,Nursing Care
Cambridgeshire County Council,17-Apr-20,51301353388,"-1,134.44",BARCHESTER HEALTHCARE HOMES LTD,CARE ESTABLISHMENT,OP - City & South Locality - Cost of Care,Older People - City & South - Care,Nursing Care
Cambridgeshire County Council,17-Apr-20,51301353388,"-1,134.44",BARCHESTER HEALTHCARE HOMES LTD,CARE ESTABLISHMENT,OP - City & South Locality - Cost of Care,Older People - City & South - Care,Nursing Care
Cambridgeshire County Council,17-Apr-20,51301353388,"-1,134.44",BARCHESTER HEALTHCARE HOMES LTD,CARE ESTABLISHMENT,OP - City & South Locality - Cost of Care,Older People - City & South - Care,Nursing Care
Cambridgeshire County Council,17-Apr-20,51301353388,"-1,134.44",BARCHESTER HEALTHCARE HOMES LTD,CARE ESTABLISHMENT,OP - City & South Locality - Cost of Care,Older People - City & South - Care,Nursing Care
Cambridgeshire County Council,17-Apr-20,51301353388,"-1,134.44",BARCHESTER HEALTHCARE HOMES LTD,CARE ESTABLISHMENT,OP - City & South Locality - Cost of Care,Older People - City & South - Care,Nursing Care
Cambridgeshire County Council,17-Apr-20,51301353388,"-1,134.44",BARCHESTER HEALTHCARE HOMES LTD,CARE ESTABLISHMENT,OP - City & South Locality - Cost of Care,Older People - City & South - Care,Nursing Care
Cambridgeshire County Council,17-Apr-20,51301353388,"-1,134.44",BARCHESTER HEALTHCARE HOMES LTD,CARE ESTABLISHMENT,OP - City & South Locality - Cost of Care,Older People - City & South - Care,Nursing Care
Cambridgeshire County Council,17-Apr-20,51301353388,"-1,134.44",BARCHESTER HEALTHCARE HOMES LTD,CARE ESTABLISHMENT,OP - City & South Locality - Cost of Care,Older People - City & South - Care,Nursing Care
Cambridgeshire County Council,03-Apr-20,51301347738,"-1,132.27",THE BRAMBLES (SOHAM) LTD,CARE ESTABLISHMENT,LD - East Locality - Cost of Care,LD - East Cambs - Care,Residential Care
Cambridgeshire County Council,03-Apr-20,51301347738,"-1,132.27",THE BRAMBLES (SOHAM) LTD,CARE ESTABLISHMENT,LD - East Locality - Cost of Care,LD - East Cambs - Care,Residential Care
Cambridgeshire County Council,03-Apr-20,51301347738,"-1,132.27",THE BRAMBLES (SOHAM) LTD,CARE ESTABLISHMENT,LD - East Locality - Cost of Care,LD - East Cambs - Care,Residential Care
Cambridgeshire County Council,03-Apr-20,51301347738,"-1,132.27",THE BRAMBLES (SOHAM) LTD,CARE ESTABLISHMENT,LD - East Locality - Cost of Care,LD - East Cambs - Care,Residential Care
Cambridgeshire County Council,03-Apr-20,51301347738,"-1,132.27",THE BRAMBLES (SOHAM) LTD,CARE ESTABLISHMENT,LD - East Locality - Cost of Care,LD - East Cambs - Care,Residential Care
Cambridgeshire County Council,03-Apr-20,51301347738,"-1,132.27",THE BRAMBLES (SOHAM) LTD,CARE ESTABLISHMENT,LD - East Locality - Cost of Care,LD - East Cambs - Care,Residential Care
Cambridgeshire County Council,03-Apr-20,51301347738,"-1,132.27",THE BRAMBLES (SOHAM) LTD,CARE ESTABLISHMENT,LD - East Locality - Cost of Care,LD - East Cambs - Care,Residential Care
Cambridgeshire County Council,03-Apr-20,51301347738,"-1,132.27",THE BRAMBLES (SOHAM) LTD,CARE ESTABLISHMENT,LD - East Locality - Cost of Care,LD - East Cambs - Care,Residential Care
Cambridgeshire County Council,03-Apr-20,51301347738,"-1,132.27",THE BRAMBLES (SOHAM) LTD,CARE ESTABLISHMENT,LD - East Locality - Cost of Care,LD - East Cambs - Care,Residential Care
Cambridgeshire County Council,03-Apr-20,51301347738,"-1,132.27",THE BRAMBLES (SOHAM) LTD,CARE ESTABLISHMENT,LD - East Locality - Cost of Care,LD - East Cambs - Care,Residential Care
Cambridgeshire County Council,03-Apr-20,51301347738,"-1,132.27",THE BRAMBLES (SOHAM) LTD,CARE ESTABLISHMENT,LD - East Locality - Cost of Care,LD - East Cambs - Care,Residential Care
Cambridgeshire County Council,03-Apr-20,51301347738,"-1,132.27",THE BRAMBLES (SOHAM) LTD,CARE ESTABLISHMENT,LD - East Locality - Cost of Care,LD - East Cambs - Care,Residential Care
Cambridgeshire County Council,03-Apr-20,51301347738,"-1,132.27",THE BRAMBLES (SOHAM) LTD,CARE ESTABLISHMENT,LD - East Locality - Cost of Care,LD - East Cambs - Care,Residential Care
Cambridgeshire County Council,03-Apr-20,51301347738,"-1,132.27",THE BRAMBLES (SOHAM) LTD,CARE ESTABLISHMENT,LD - East Locality - Cost of Care,LD - East Cambs - Care,Residential Care
Cambridgeshire County Council,03-Apr-20,51301347738,"-1,132.27",THE BRAMBLES (SOHAM) LTD,CARE ESTABLISHMENT,LD - East Locality - Cost of Care,LD - East Cambs - Care,Residential Care
Cambridgeshire County Council,03-Apr-20,51301347738,"-1,132.27",THE BRAMBLES (SOHAM) LTD,CARE ESTABLISHMENT,LD - East Locality - Cost of Care,LD - East Cambs - Care,Residential Care
Cambridgeshire County Council,03-Apr-20,51301347738,"-1,132.27",THE BRAMBLES (SOHAM) LTD,CARE ESTABLISHMENT,LD - East Locality - Cost of Care,LD - East Cambs - Care,Residential Care
Cambridgeshire County Council,03-Apr-20,51301347738,"-1,132.27",THE BRAMBLES (SOHAM) LTD,CARE ESTABLISHMENT,LD - East Locality - Cost of Care,LD - East Cambs - Care,Residential Care
Cambridgeshire County Council,03-Apr-20,51301347738,"-1,132.27",THE BRAMBLES (SOHAM) LTD,CARE ESTABLISHMENT,LD - East Locality - Cost of Care,LD - East Cambs - Care,Residential Care
Cambridgeshire County Council,03-Apr-20,51301347738,"-1,132.27",THE BRAMBLES (SOHAM) LTD,CARE ESTABLISHMENT,LD - East Locality - Cost of Care,LD - East Cambs - Care,Residential Care
Cambridgeshire County Council,03-Apr-20,51301347738,"-1,132.27",THE BRAMBLES (SOHAM) LTD,CARE ESTABLISHMENT,LD - East Locality - Cost of Care,LD - East Cambs - Care,Residential Care
Cambridgeshire County Council,03-Apr-20,51301347738,"-1,132.27",THE BRAMBLES (SOHAM) LTD,CARE ESTABLISHMENT,LD - East Locality - Cost of Care,LD - East Cambs - Care,Residential Care
Cambridgeshire County Council,03-Apr-20,51301347738,"-1,132.27",THE BRAMBLES (SOHAM) LTD,CARE ESTABLISHMENT,LD - East Locality - Cost of Care,LD - East Cambs - Care,Residential Care
Cambridgeshire County Council,03-Apr-20,51301347738,"-1,132.27",THE BRAMBLES (SOHAM) LTD,CARE ESTABLISHMENT,LD - East Locality - Cost of Care,LD - East Cambs - Care,Residential Care
Cambridgeshire County Council,03-Apr-20,51301347738,"-1,132.27",THE BRAMBLES (SOHAM) LTD,CARE ESTABLISHMENT,LD - East Locality - Cost of Care,LD - East Cambs - Care,Residential Care
Cambridgeshire County Council,03-Apr-20,51301347738,"-1,132.27",THE BRAMBLES (SOHAM) LTD,CARE ESTABLISHMENT,LD - East Locality - Cost of Care,LD - East Cambs - Care,Residential Care
Cambridgeshire County Council,03-Apr-20,51301347738,"-1,132.27",THE BRAMBLES (SOHAM) LTD,CARE ESTABLISHMENT,LD - East Locality - Cost of Care,LD - East Cambs - Care,Residential Care
Cambridgeshire County Council,03-Apr-20,51301347738,"-1,132.27",THE BRAMBLES (SOHAM) LTD,CARE ESTABLISHMENT,LD - East Locality - Cost of Care,LD - East Cambs - Care,Residential Care
Cambridgeshire County Council,03-Apr-20,51301347738,"-1,132.27",THE BRAMBLES (SOHAM) LTD,CARE ESTABLISHMENT,LD - East Locality - Cost of Care,LD - East Cambs - Care,Residential Care
Cambridgeshire County Council,03-Apr-20,51301347738,"-1,132.27",THE BRAMBLES (SOHAM) LTD,CARE ESTABLISHMENT,LD - East Locality - Cost of Care,LD - East Cambs - Care,Residential Care
Cambridgeshire County Council,03-Apr-20,51301347738,"-1,132.27",THE BRAMBLES (SOHAM) LTD,CARE ESTABLISHMENT,LD - East Locality - Cost of Care,LD - East Cambs - Care,Residential Care
Cambridgeshire County Council,03-Apr-20,51301347738,"-1,132.27",THE BRAMBLES (SOHAM) LTD,CARE ESTABLISHMENT,LD - East Locality - Cost of Care,LD - East Cambs - Care,Residential Care
Cambridgeshire County Council,03-Apr-20,51301347738,"-1,132.27",THE BRAMBLES (SOHAM) LTD,CARE ESTABLISHMENT,LD - East Locality - Cost of Care,LD - East Cambs - Care,Residential Care
Cambridgeshire County Council,03-Apr-20,51301347738,"-1,132.27",THE BRAMBLES (SOHAM) LTD,CARE ESTABLISHMENT,LD - East Locality - Cost of Care,LD - East Cambs - Care,Residential Care
Cambridgeshire County Council,23-Apr-20,51301359521,"-1,114.99",DONEC (ELIZABETH FITROY SUPPORT),CARE ESTABLISHMENT,LD - South Locality - Cost of Care,LD - South Cambs - Care,Residential Care
Cambridgeshire County Council,23-Apr-20,51301359521,"-1,114.99",DONEC (ELIZABETH FITROY SUPPORT),CARE ESTABLISHMENT,LD - South Locality - Cost of Care,LD - South Cambs - Care,Residential Care
Cambridgeshire County Council,23-Apr-20,51301359521,"-1,114.99",DONEC (ELIZABETH FITROY SUPPORT),CARE ESTABLISHMENT,LD - South Locality - Cost of Care,LD - South Cambs - Care,Residential Care
Cambridgeshire County Council,23-Apr-20,51301359521,"-1,114.99",DONEC (ELIZABETH FITROY SUPPORT),CARE ESTABLISHMENT,LD - South Locality - Cost of Care,LD - South Cambs - Care,Residential Care
Cambridgeshire County Council,23-Apr-20,51301359521,"-1,114.99",DONEC (ELIZABETH FITROY SUPPORT),CARE ESTABLISHMENT,LD - South Locality - Cost of Care,LD - South Cambs - Care,Residential Care
Cambridgeshire County Council,23-Apr-20,51301359521,"-1,114.99",DONEC (ELIZABETH FITROY SUPPORT),CARE ESTABLISHMENT,LD - South Locality - Cost of Care,LD - South Cambs - Care,Residential Care
Cambridgeshire County Council,23-Apr-20,51301359521,"-1,114.99",DONEC (ELIZABETH FITROY SUPPORT),CARE ESTABLISHMENT,LD - South Locality - Cost of Care,LD - South Cambs - Care,Residential Care
Cambridgeshire County Council,23-Apr-20,51301359521,"-1,114.99",DONEC (ELIZABETH FITROY SUPPORT),CARE ESTABLISHMENT,LD - South Locality - Cost of Care,LD - South Cambs - Care,Residential Care
Cambridgeshire County Council,23-Apr-20,51301359521,"-1,114.99",DONEC (ELIZABETH FITROY SUPPORT),CARE ESTABLISHMENT,LD - South Locality - Cost of Care,LD - South Cambs - Care,Residential Care
Cambridgeshire County Council,23-Apr-20,51301359521,"-1,114.99",DONEC (ELIZABETH FITROY SUPPORT),CARE ESTABLISHMENT,LD - South Locality - Cost of Care,LD - South Cambs - Care,Residential Care
Cambridgeshire County Council,23-Apr-20,51301359521,"-1,114.99",DONEC (ELIZABETH FITROY SUPPORT),CARE ESTABLISHMENT,LD - South Locality - Cost of Care,LD - South Cambs - Care,Residential Care
Cambridgeshire County Council,23-Apr-20,51301359521,"-1,114.99",DONEC (ELIZABETH FITROY SUPPORT),CARE ESTABLISHMENT,LD - South Locality - Cost of Care,LD - South Cambs - Care,Residential Care
Cambridgeshire County Council,23-Apr-20,51301359521,"-1,114.99",DONEC (ELIZABETH FITROY SUPPORT),CARE ESTABLISHMENT,LD - South Locality - Cost of Care,LD - South Cambs - Care,Residential Care
Cambridgeshire County Council,23-Apr-20,51301359521,"-1,114.99",DONEC (ELIZABETH FITROY SUPPORT),CARE ESTABLISHMENT,LD - South Locality - Cost of Care,LD - South Cambs - Care,Residential Care
Cambridgeshire County Council,23-Apr-20,51301359521,"-1,114.99",DONEC (ELIZABETH FITROY SUPPORT),CARE ESTABLISHMENT,LD - South Locality - Cost of Care,LD - South Cambs - Care,Residential Care
Cambridgeshire County Council,23-Apr-20,51301359521,"-1,114.99",DONEC (ELIZABETH FITROY SUPPORT),CARE ESTABLISHMENT,LD - South Locality - Cost of Care,LD - South Cambs - Care,Residential Care
Cambridgeshire County Council,23-Apr-20,51301359521,"-1,114.99",DONEC (ELIZABETH FITROY SUPPORT),CARE ESTABLISHMENT,LD - South Locality - Cost of Care,LD - South Cambs - Care,Residential Care
Cambridgeshire County Council,23-Apr-20,51301359521,"-1,114.99",DONEC (ELIZABETH FITROY SUPPORT),CARE ESTABLISHMENT,LD - South Locality - Cost of Care,LD - South Cambs - Care,Residential Care
Cambridgeshire County Council,23-Apr-20,51301359521,"-1,114.99",DONEC (ELIZABETH FITROY SUPPORT),CARE ESTABLISHMENT,LD - South Locality - Cost of Care,LD - South Cambs - Care,Residential Care
Cambridgeshire County Council,23-Apr-20,51301359521,"-1,114.99",DONEC (ELIZABETH FITROY SUPPORT),CARE ESTABLISHMENT,LD - South Locality - Cost of Care,LD - South Cambs - Care,Residential Care
Cambridgeshire County Council,23-Apr-20,51301359521,"-1,114.99",DONEC (ELIZABETH FITROY SUPPORT),CARE ESTABLISHMENT,LD - South Locality - Cost of Care,LD - South Cambs - Care,Residential Care
Cambridgeshire County Council,23-Apr-20,51301359521,"-1,114.99",DONEC (ELIZABETH FITROY SUPPORT),CARE ESTABLISHMENT,LD - South Locality - Cost of Care,LD - South Cambs - Care,Residential Care
Cambridgeshire County Council,23-Apr-20,51301359521,"-1,114.99",DONEC (ELIZABETH FITROY SUPPORT),CARE ESTABLISHMENT,LD - South Locality - Cost of Care,LD - South Cambs - Care,Residential Care
Cambridgeshire County Council,23-Apr-20,51301359521,"-1,114.99",DONEC (ELIZABETH FITROY SUPPORT),CARE ESTABLISHMENT,LD - South Locality - Cost of Care,LD - South Cambs - Care,Residential Care
Cambridgeshire County Council,23-Apr-20,51301359521,"-1,114.99",DONEC (ELIZABETH FITROY SUPPORT),CARE ESTABLISHMENT,LD - South Locality - Cost of Care,LD - South Cambs - Care,Residential Care
Cambridgeshire County Council,23-Apr-20,51301359521,"-1,114.99",DONEC (ELIZABETH FITROY SUPPORT),CARE ESTABLISHMENT,LD - South Locality - Cost of Care,LD - South Cambs - Care,Residential Care
Cambridgeshire County Council,23-Apr-20,51301359521,"-1,114.99",DONEC (ELIZABETH FITROY SUPPORT),CARE ESTABLISHMENT,LD - South Locality - Cost of Care,LD - South Cambs - Care,Residential Care
Cambridgeshire County Council,23-Apr-20,51301359521,"-1,114.99",DONEC (ELIZABETH FITROY SUPPORT),CARE ESTABLISHMENT,LD - South Locality - Cost of Care,LD - South Cambs - Care,Residential Care
Cambridgeshire County Council,23-Apr-20,51301359521,"-1,114.99",DONEC (ELIZABETH FITROY SUPPORT),CARE ESTABLISHMENT,LD - South Locality - Cost of Care,LD - South Cambs - Care,Residential Care
Cambridgeshire County Council,23-Apr-20,51301359521,"-1,114.99",DONEC (ELIZABETH FITROY SUPPORT),CARE ESTABLISHMENT,LD - South Locality - Cost of Care,LD - South Cambs - Care,Residential Care
Cambridgeshire County Council,23-Apr-20,51301359521,"-1,114.99",DONEC (ELIZABETH FITROY SUPPORT),CARE ESTABLISHMENT,LD - South Locality - Cost of Care,LD - South Cambs - Care,Residential Care
Cambridgeshire County Council,23-Apr-20,51301359521,"-1,114.99",DONEC (ELIZABETH FITROY SUPPORT),CARE ESTABLISHMENT,LD - South Locality - Cost of Care,LD - South Cambs - Care,Residential Care
Cambridgeshire County Council,23-Apr-20,51301359521,"-1,114.99",DONEC (ELIZABETH FITROY SUPPORT),CARE ESTABLISHMENT,LD - South Locality - Cost of Care,LD - South Cambs - Care,Residential Care
Cambridgeshire County Council,23-Apr-20,51301359521,"-1,114.99",DONEC (ELIZABETH FITROY SUPPORT),CARE ESTABLISHMENT,LD - South Locality - Cost of Care,LD - South Cambs - Care,Residential Care
Cambridgeshire County Council,23-Apr-20,51301359521,"-1,114.99",DONEC (ELIZABETH FITROY SUPPORT),CARE ESTABLISHMENT,LD - South Locality - Cost of Care,LD - South Cambs - Care,Residential Care
Cambridgeshire County Council,23-Apr-20,51301359521,"-1,114.99",DONEC (ELIZABETH FITROY SUPPORT),CARE ESTABLISHMENT,LD - South Locality - Cost of Care,LD - South Cambs - Care,Residential Care
Cambridgeshire County Council,23-Apr-20,51301359521,"-1,114.99",DONEC (ELIZABETH FITROY SUPPORT),CARE ESTABLISHMENT,LD - South Locality - Cost of Care,LD - South Cambs - Care,Residential Care
Cambridgeshire County Council,23-Apr-20,51301359521,"-1,114.99",DONEC (ELIZABETH FITROY SUPPORT),CARE ESTABLISHMENT,LD - South Locality - Cost of Care,LD - South Cambs - Care,Residential Care
Cambridgeshire County Council,23-Apr-20,51301359521,"-1,114.99",DONEC (ELIZABETH FITROY SUPPORT),CARE ESTABLISHMENT,LD - South Locality - Cost of Care,LD - South Cambs - Care,Residential Care
Cambridgeshire County Council,23-Apr-20,51301359521,"-1,114.99",DONEC (ELIZABETH FITROY SUPPORT),CARE ESTABLISHMENT,LD - South Locality - Cost of Care,LD - South Cambs - Care,Residential Care
Cambridgeshire County Council,23-Apr-20,51301359521,"-1,114.99",DONEC (ELIZABETH FITROY SUPPORT),CARE ESTABLISHMENT,LD - South Locality - Cost of Care,LD - South Cambs - Care,Residential Care
Cambridgeshire County Council,23-Apr-20,51301359521,"-1,114.99",DONEC (ELIZABETH FITROY SUPPORT),CARE ESTABLISHMENT,LD - South Locality - Cost of Care,LD - South Cambs - Care,Residential Care
Cambridgeshire County Council,23-Apr-20,51301359521,"-1,114.99",DONEC (ELIZABETH FITROY SUPPORT),CARE ESTABLISHMENT,LD - South Locality - Cost of Care,LD - South Cambs - Care,Residential Care
Cambridgeshire County Council,23-Apr-20,51301359521,"-1,114.99",DONEC (ELIZABETH FITROY SUPPORT),CARE ESTABLISHMENT,LD - South Locality - Cost of Care,LD - South Cambs - Care,Residential Care
Cambridgeshire County Council,23-Apr-20,51301359521,"-1,114.99",DONEC (ELIZABETH FITROY SUPPORT),CARE ESTABLISHMENT,LD - South Locality - Cost of Care,LD - South Cambs - Care,Residential Care
Cambridgeshire County Council,23-Apr-20,51301359521,"-1,114.99",DONEC (ELIZABETH FITROY SUPPORT),CARE ESTABLISHMENT,LD - South Locality - Cost of Care,LD - South Cambs - Care,Residential Care
Cambridgeshire County Council,23-Apr-20,51301359521,"-1,114.99",DONEC (ELIZABETH FITROY SUPPORT),CARE ESTABLISHMENT,LD - South Locality - Cost of Care,LD - South Cambs - Care,Residential Care
Cambridgeshire County Council,23-Apr-20,51301359521,"-1,114.99",DONEC (ELIZABETH FITROY SUPPORT),CARE ESTABLISHMENT,LD - South Locality - Cost of Care,LD - South Cambs - Care,Residential Care
Cambridgeshire County Council,23-Apr-20,51301359521,"-1,114.99",DONEC (ELIZABETH FITROY SUPPORT),CARE ESTABLISHMENT,LD - South Locality - Cost of Care,LD - South Cambs - Care,Residential Care
Cambridgeshire County Council,23-Apr-20,51301359521,"-1,114.99",DONEC (ELIZABETH FITROY SUPPORT),CARE ESTABLISHMENT,LD - South Locality - Cost of Care,LD - South Cambs - Care,Residential Care
Cambridgeshire County Council,23-Apr-20,51301359521,"-1,114.99",DONEC (ELIZABETH FITROY SUPPORT),CARE ESTABLISHMENT,LD - South Locality - Cost of Care,LD - South Cambs - Care,Residential Care
Cambridgeshire County Council,23-Apr-20,51301359521,"-1,114.99",DONEC (ELIZABETH FITROY SUPPORT),CARE ESTABLISHMENT,LD - South Locality - Cost of Care,LD - South Cambs - Care,Residential Care
Cambridgeshire County Council,23-Apr-20,51301359521,"-1,114.99",DONEC (ELIZABETH FITROY SUPPORT),CARE ESTABLISHMENT,LD - South Locality - Cost of Care,LD - South Cambs - Care,Residential Care
Cambridgeshire County Council,23-Apr-20,51301359521,"-1,114.99",DONEC (ELIZABETH FITROY SUPPORT),CARE ESTABLISHMENT,LD - South Locality - Cost of Care,LD - South Cambs - Care,Residential Care
Cambridgeshire County Council,23-Apr-20,51301359521,"-1,114.99",DONEC (ELIZABETH FITROY SUPPORT),CARE ESTABLISHMENT,LD - South Locality - Cost of Care,LD - South Cambs - Care,Residential Care
Cambridgeshire County Council,23-Apr-20,51301359521,"-1,114.99",DONEC (ELIZABETH FITROY SUPPORT),CARE ESTABLISHMENT,LD - South Locality - Cost of Care,LD - South Cambs - Care,Residential Care
Cambridgeshire County Council,23-Apr-20,51301359521,"-1,114.99",DONEC (ELIZABETH FITROY SUPPORT),CARE ESTABLISHMENT,LD - South Locality - Cost of Care,LD - South Cambs - Care,Residential Care
Cambridgeshire County Council,23-Apr-20,51301359521,"-1,114.99",DONEC (ELIZABETH FITROY SUPPORT),CARE ESTABLISHMENT,LD - South Locality - Cost of Care,LD - South Cambs - Care,Residential Care
Cambridgeshire County Council,23-Apr-20,51301359521,"-1,114.99",DONEC (ELIZABETH FITROY SUPPORT),CARE ESTABLISHMENT,LD - South Locality - Cost of Care,LD - South Cambs - Care,Residential Care
Cambridgeshire County Council,28-Apr-20,51301361856,"-1,098.20",Michael Page International Recruitment Limited,OTHER PUBLIC BODIES,Coroners,Coroners General,Agency Staff
Cambridgeshire County Council,23-Apr-20,51301359524,"-1,085.43",MENCAP (32 KINGS LANE),CARE ESTABLISHMENT,LD - Hunts Locality - Cost of Care,LD - Huntingdonshire - Care,Residential Care
Cambridgeshire County Council,23-Apr-20,51301359524,"-1,085.43",MENCAP (32 KINGS LANE),CARE ESTABLISHMENT,LD - Hunts Locality - Cost of Care,LD - Huntingdonshire - Care,Residential Care
Cambridgeshire County Council,23-Apr-20,51301359524,"-1,085.43",MENCAP (32 KINGS LANE),CARE ESTABLISHMENT,LD - Hunts Locality - Cost of Care,LD - Huntingdonshire - Care,Residential Care
Cambridgeshire County Council,23-Apr-20,51301359524,"-1,085.43",MENCAP (32 KINGS LANE),CARE ESTABLISHMENT,LD - Hunts Locality - Cost of Care,LD - Huntingdonshire - Care,Residential Care
Cambridgeshire County Council,23-Apr-20,51301359524,"-1,085.43",MENCAP (32 KINGS LANE),CARE ESTABLISHMENT,LD - Hunts Locality - Cost of Care,LD - Huntingdonshire - Care,Residential Care
Cambridgeshire County Council,23-Apr-20,51301359524,"-1,085.43",MENCAP (32 KINGS LANE),CARE ESTABLISHMENT,LD - Hunts Locality - Cost of Care,LD - Huntingdonshire - Care,Residential Care
Cambridgeshire County Council,23-Apr-20,51301359524,"-1,085.43",MENCAP (32 KINGS LANE),CARE ESTABLISHMENT,LD - Hunts Locality - Cost of Care,LD - Huntingdonshire - Care,Residential Care
Cambridgeshire County Council,17-Apr-20,51301353626,"-1,084.44",LONGUEVILLE COURT,CARE ESTABLISHMENT,OP - Hunts Locality - Cost of Care,Hunts OP Team - Care,Residential Care
Cambridgeshire County Council,17-Apr-20,51301353626,"-1,084.44",LONGUEVILLE COURT,CARE ESTABLISHMENT,OP - Hunts Locality - Cost of Care,Hunts OP Team - Care,Residential Care
Cambridgeshire County Council,17-Apr-20,51301353626,"-1,084.44",LONGUEVILLE COURT,CARE ESTABLISHMENT,OP - Hunts Locality - Cost of Care,Hunts OP Team - Care,Residential Care
Cambridgeshire County Council,17-Apr-20,51301353626,"-1,084.44",LONGUEVILLE COURT,CARE ESTABLISHMENT,OP - Hunts Locality - Cost of Care,Hunts OP Team - Care,Residential Care
Cambridgeshire County Council,20-Apr-20,51301354667,"-1,070.31",GUYATT HOUSE CARE LTD,CARE ESTABLISHMENT,LD - Young Adults Team,LD - Young Adults - Care,Supported Living
Cambridgeshire County Council,20-Apr-20,51301354667,"-1,070.31",GUYATT HOUSE CARE LTD,CARE ESTABLISHMENT,LD - Young Adults Team,LD - Young Adults - Care,Supported Living
Cambridgeshire County Council,20-Apr-20,51301354667,"-1,070.31",GUYATT HOUSE CARE LTD,CARE ESTABLISHMENT,LD - Young Adults Team,LD - Young Adults - Care,Supported Living
Cambridgeshire County Council,03-Apr-20,51301347529,"-1,026.89",GUYATT HOUSE CARE LTD,CARE ESTABLISHMENT,LD - East Locality - Cost of Care,LD - East Cambs - Care,Supported Living
Cambridgeshire County Council,03-Apr-20,51301347529,"-1,026.89",GUYATT HOUSE CARE LTD,CARE ESTABLISHMENT,LD - East Locality - Cost of Care,LD - East Cambs - Care,Supported Living
Cambridgeshire County Council,03-Apr-20,51301347529,"-1,026.89",GUYATT HOUSE CARE LTD,CARE ESTABLISHMENT,LD - East Locality - Cost of Care,LD - East Cambs - Care,Supported Living
Cambridgeshire County Council,03-Apr-20,51301347529,"-1,026.89",GUYATT HOUSE CARE LTD,CARE ESTABLISHMENT,LD - East Locality - Cost of Care,LD - East Cambs - Care,Supported Living
Cambridgeshire County Council,03-Apr-20,51301347529,"-1,026.89",GUYATT HOUSE CARE LTD,CARE ESTABLISHMENT,LD - East Locality - Cost of Care,LD - East Cambs - Care,Supported Living
Cambridgeshire County Council,03-Apr-20,51301347529,"-1,026.89",GUYATT HOUSE CARE LTD,CARE ESTABLISHMENT,LD - East Locality - Cost of Care,LD - East Cambs - Care,Supported Living
Cambridgeshire County Council,03-Apr-20,51301347529,"-1,026.89",GUYATT HOUSE CARE LTD,CARE ESTABLISHMENT,LD - East Locality - Cost of Care,LD - East Cambs - Care,Supported Living
Cambridgeshire County Council,03-Apr-20,51301347529,"-1,026.89",GUYATT HOUSE CARE LTD,CARE ESTABLISHMENT,LD - East Locality - Cost of Care,LD - East Cambs - Care,Supported Living
Cambridgeshire County Council,03-Apr-20,51301347529,"-1,026.89",GUYATT HOUSE CARE LTD,CARE ESTABLISHMENT,LD - East Locality - Cost of Care,LD - East Cambs - Care,Supported Living
Cambridgeshire County Council,03-Apr-20,51301347529,"-1,026.89",GUYATT HOUSE CARE LTD,CARE ESTABLISHMENT,LD - East Locality - Cost of Care,LD - East Cambs - Care,Supported Living
Cambridgeshire County Council,03-Apr-20,51301347529,"-1,026.89",GUYATT HOUSE CARE LTD,CARE ESTABLISHMENT,LD - East Locality - Cost of Care,LD - East Cambs - Care,Supported Living
Cambridgeshire County Council,03-Apr-20,51301347529,"-1,026.89",GUYATT HOUSE CARE LTD,CARE ESTABLISHMENT,LD - East Locality - Cost of Care,LD - East Cambs - Care,Supported Living
Cambridgeshire County Council,03-Apr-20,51301347529,"-1,026.89",GUYATT HOUSE CARE LTD,CARE ESTABLISHMENT,LD - East Locality - Cost of Care,LD - East Cambs - Care,Supported Living
Cambridgeshire County Council,03-Apr-20,51301347529,"-1,026.89",GUYATT HOUSE CARE LTD,CARE ESTABLISHMENT,LD - East Locality - Cost of Care,LD - East Cambs - Care,Supported Living
Cambridgeshire County Council,03-Apr-20,51301347529,"-1,026.89",GUYATT HOUSE CARE LTD,CARE ESTABLISHMENT,LD - East Locality - Cost of Care,LD - East Cambs - Care,Supported Living
Cambridgeshire County Council,03-Apr-20,51301347529,"-1,026.89",GUYATT HOUSE CARE LTD,CARE ESTABLISHMENT,LD - East Locality - Cost of Care,LD - East Cambs - Care,Supported Living
Cambridgeshire County Council,03-Apr-20,51301347529,"-1,026.89",GUYATT HOUSE CARE LTD,CARE ESTABLISHMENT,LD - East Locality - Cost of Care,LD - East Cambs - Care,Supported Living
Cambridgeshire County Council,03-Apr-20,51301347529,"-1,026.89",GUYATT HOUSE CARE LTD,CARE ESTABLISHMENT,LD - East Locality - Cost of Care,LD - East Cambs - Care,Supported Living
Cambridgeshire County Council,03-Apr-20,51301347529,"-1,026.89",GUYATT HOUSE CARE LTD,CARE ESTABLISHMENT,LD - East Locality - Cost of Care,LD - East Cambs - Care,Supported Living
Cambridgeshire County Council,03-Apr-20,51301347529,"-1,026.89",GUYATT HOUSE CARE LTD,CARE ESTABLISHMENT,LD - East Locality - Cost of Care,LD - East Cambs - Care,Supported Living
Cambridgeshire County Council,03-Apr-20,51301347529,"-1,026.89",GUYATT HOUSE CARE LTD,CARE ESTABLISHMENT,LD - East Locality - Cost of Care,LD - East Cambs - Care,Supported Living
Cambridgeshire County Council,03-Apr-20,51301347529,"-1,026.89",GUYATT HOUSE CARE LTD,CARE ESTABLISHMENT,LD - East Locality - Cost of Care,LD - East Cambs - Care,Supported Living
Cambridgeshire County Council,03-Apr-20,51301347529,"-1,026.89",GUYATT HOUSE CARE LTD,CARE ESTABLISHMENT,LD - East Locality - Cost of Care,LD - East Cambs - Care,Supported Living
Cambridgeshire County Council,03-Apr-20,51301347529,"-1,026.89",GUYATT HOUSE CARE LTD,CARE ESTABLISHMENT,LD - East Locality - Cost of Care,LD - East Cambs - Care,Supported Living
Cambridgeshire County Council,03-Apr-20,51301347529,"-1,026.89",GUYATT HOUSE CARE LTD,CARE ESTABLISHMENT,LD - East Locality - Cost of Care,LD - East Cambs - Care,Supported Living
Cambridgeshire County Council,03-Apr-20,51301347529,"-1,026.89",GUYATT HOUSE CARE LTD,CARE ESTABLISHMENT,LD - East Locality - Cost of Care,LD - East Cambs - Care,Supported Living
Cambridgeshire County Council,03-Apr-20,51301347529,"-1,026.89",GUYATT HOUSE CARE LTD,CARE ESTABLISHMENT,LD - East Locality - Cost of Care,LD - East Cambs - Care,Supported Living
Cambridgeshire County Council,03-Apr-20,51301347529,"-1,026.89",GUYATT HOUSE CARE LTD,CARE ESTABLISHMENT,LD - East Locality - Cost of Care,LD - East Cambs - Care,Supported Living
Cambridgeshire County Council,03-Apr-20,51301347529,"-1,026.89",GUYATT HOUSE CARE LTD,CARE ESTABLISHMENT,LD - East Locality - Cost of Care,LD - East Cambs - Care,Supported Living
Cambridgeshire County Council,03-Apr-20,51301347529,"-1,026.89",GUYATT HOUSE CARE LTD,CARE ESTABLISHMENT,LD - East Locality - Cost of Care,LD - East Cambs - Care,Supported Living
Cambridgeshire County Council,03-Apr-20,51301347529,"-1,026.89",GUYATT HOUSE CARE LTD,CARE ESTABLISHMENT,LD - East Locality - Cost of Care,LD - East Cambs - Care,Supported Living
Cambridgeshire County Council,03-Apr-20,51301347529,"-1,026.89",GUYATT HOUSE CARE LTD,CARE ESTABLISHMENT,LD - East Locality - Cost of Care,LD - East Cambs - Care,Supported Living
Cambridgeshire County Council,03-Apr-20,51301347529,"-1,026.89",GUYATT HOUSE CARE LTD,CARE ESTABLISHMENT,LD - East Locality - Cost of Care,LD - East Cambs - Care,Supported Living
Cambridgeshire County Council,03-Apr-20,51301347529,"-1,026.89",GUYATT HOUSE CARE LTD,CARE ESTABLISHMENT,LD - East Locality - Cost of Care,LD - East Cambs - Care,Supported Living
Cambridgeshire County Council,03-Apr-20,51301347529,"-1,026.89",GUYATT HOUSE CARE LTD,CARE ESTABLISHMENT,LD - East Locality - Cost of Care,LD - East Cambs - Care,Supported Living
Cambridgeshire County Council,03-Apr-20,51301347529,"-1,026.89",GUYATT HOUSE CARE LTD,CARE ESTABLISHMENT,LD - East Locality - Cost of Care,LD - East Cambs - Care,Supported Living
Cambridgeshire County Council,03-Apr-20,51301347529,"-1,026.89",GUYATT HOUSE CARE LTD,CARE ESTABLISHMENT,LD - East Locality - Cost of Care,LD - East Cambs - Care,Supported Living
Cambridgeshire County Council,17-Apr-20,51301353852,"-1,000.00",LITTLEPORT GRANGE,CARE ESTABLISHMENT,Physical Disablity - Cost of Care,Countywide PD Service - Care,Residential Care
Cambridgeshire County Council,17-Apr-20,51301353852,"-1,000.00",LITTLEPORT GRANGE,CARE ESTABLISHMENT,Physical Disablity - Cost of Care,Countywide PD Service - Care,Residential Care
Cambridgeshire County Council,17-Apr-20,51301353852,"-1,000.00",LITTLEPORT GRANGE,CARE ESTABLISHMENT,Physical Disablity - Cost of Care,Countywide PD Service - Care,Residential Care
Cambridgeshire County Council,17-Apr-20,51301353852,"-1,000.00",LITTLEPORT GRANGE,CARE ESTABLISHMENT,Physical Disablity - Cost of Care,Countywide PD Service - Care,Residential Care
Cambridgeshire County Council,17-Apr-20,51301353852,"-1,000.00",LITTLEPORT GRANGE,CARE ESTABLISHMENT,Physical Disablity - Cost of Care,Countywide PD Service - Care,Residential Care
Cambridgeshire County Council,17-Apr-20,51301354192,-996.64,CONQUEST CARE HOMES PETERBOROUGH,CARE ESTABLISHMENT,LD - Young Adults Team,LD - Young Adults - Care,Residential Care
Cambridgeshire County Council,20-Apr-20,51301356979,-992.00,THERA EAST ANGLIA,CARE ESTABLISHMENT,LD - East Locality - Cost of Care,LD - East Cambs - Care,Domiciliary Care
Cambridgeshire County Council,20-Apr-20,51301356979,-992.00,THERA EAST ANGLIA,CARE ESTABLISHMENT,LD - East Locality - Cost of Care,LD - East Cambs - Care,Domiciliary Care
Cambridgeshire County Council,20-Apr-20,51301356979,-992.00,THERA EAST ANGLIA,CARE ESTABLISHMENT,LD - East Locality - Cost of Care,LD - East Cambs - Care,Domiciliary Care
Cambridgeshire County Council,30-Apr-20,51300061754,-960.00,INDIGO MULTIMEDIA LIMITED,TRADE SUPPLIER,Digital Systems,IT & Digital,Computer software - annual licence agreement
Cambridgeshire County Council,23-Apr-20,51301359521,-955.71,DONEC (ELIZABETH FITROY SUPPORT),CARE ESTABLISHMENT,LD - South Locality - Cost of Care,LD - South Cambs - Care,Residential Care
Cambridgeshire County Council,17-Apr-20,51301353823,-953.17,ETHELDRED HOUSE,CARE ESTABLISHMENT,OP - East Cambs Locality - Cost of Care,East Cambs - O P Team - Care,Nursing Care
Cambridgeshire County Council,17-Apr-20,51301353277,-950.00,ROSE LODGE,CARE ESTABLISHMENT,OPMH - Hunts & Fens,Older People Mental Health Fenland,Nursing Care
Cambridgeshire County Council,17-Apr-20,51301353277,-950.00,ROSE LODGE,CARE ESTABLISHMENT,OPMH - Hunts & Fens,Older People Mental Health Fenland,Nursing Care
Cambridgeshire County Council,17-Apr-20,51301353277,-950.00,ROSE LODGE,CARE ESTABLISHMENT,OPMH - Hunts & Fens,Older People Mental Health Fenland,Nursing Care
Cambridgeshire County Council,17-Apr-20,51301353277,-950.00,ROSE LODGE,CARE ESTABLISHMENT,OPMH - Hunts & Fens,Older People Mental Health Fenland,Nursing Care
Cambridgeshire County Council,17-Apr-20,51301353277,-950.00,ROSE LODGE,CARE ESTABLISHMENT,OPMH - Hunts & Fens,Older People Mental Health Fenland,Nursing Care
Cambridgeshire County Council,17-Apr-20,51301353277,-950.00,ROSE LODGE,CARE ESTABLISHMENT,OPMH - Hunts & Fens,Older People Mental Health Fenland,Nursing Care
Cambridgeshire County Council,17-Apr-20,51301353277,-950.00,ROSE LODGE,CARE ESTABLISHMENT,OPMH - Hunts & Fens,Older People Mental Health Fenland,Nursing Care
Cambridgeshire County Council,29-Apr-20,51301360331,-950.00,CHS GROUP,CARE ESTABLISHMENT,LAC Placements,Placements - supported accommodation,Agency Placements - In County
Cambridgeshire County Council,17-Apr-20,51301301616,-935.98,ROSEWOOD  (OP PD MH),CARE ESTABLISHMENT,OP - City & South Locality - Cost of Care,Older People - City & South - Care,Residential Care
Cambridgeshire County Council,17-Apr-20,51301301616,-935.98,ROSEWOOD  (OP PD MH),CARE ESTABLISHMENT,OP - City & South Locality - Cost of Care,Older People - City & South - Care,Residential Care
Cambridgeshire County Council,17-Apr-20,51301301616,-935.98,ROSEWOOD  (OP PD MH),CARE ESTABLISHMENT,OP - City & South Locality - Cost of Care,Older People - City & South - Care,Residential Care
Cambridgeshire County Council,17-Apr-20,51301301616,-935.98,ROSEWOOD  (OP PD MH),CARE ESTABLISHMENT,OP - City & South Locality - Cost of Care,Older People - City & South - Care,Residential Care
Cambridgeshire County Council,17-Apr-20,51301301616,-935.98,ROSEWOOD  (OP PD MH),CARE ESTABLISHMENT,OP - City & South Locality - Cost of Care,Older People - City & South - Care,Residential Care
Cambridgeshire County Council,17-Apr-20,51301301616,-935.98,ROSEWOOD  (OP PD MH),CARE ESTABLISHMENT,OP - City & South Locality - Cost of Care,Older People - City & South - Care,Residential Care
Cambridgeshire County Council,17-Apr-20,51301301616,-935.98,ROSEWOOD  (OP PD MH),CARE ESTABLISHMENT,OP - City & South Locality - Cost of Care,Older People - City & South - Care,Residential Care
Cambridgeshire County Council,17-Apr-20,51301301616,-935.98,ROSEWOOD  (OP PD MH),CARE ESTABLISHMENT,OP - City & South Locality - Cost of Care,Older People - City & South - Care,Residential Care
Cambridgeshire County Council,17-Apr-20,51301301616,-935.98,ROSEWOOD  (OP PD MH),CARE ESTABLISHMENT,OP - City & South Locality - Cost of Care,Older People - City & South - Care,Residential Care
Cambridgeshire County Council,17-Apr-20,51301301616,-935.98,ROSEWOOD  (OP PD MH),CARE ESTABLISHMENT,OP - City & South Locality - Cost of Care,Older People - City & South - Care,Residential Care
Cambridgeshire County Council,17-Apr-20,51301301616,-935.98,ROSEWOOD  (OP PD MH),CARE ESTABLISHMENT,OP - City & South Locality - Cost of Care,Older People - City & South - Care,Residential Care
Cambridgeshire County Council,17-Apr-20,51301301616,-935.98,ROSEWOOD  (OP PD MH),CARE ESTABLISHMENT,OP - City & South Locality - Cost of Care,Older People - City & South - Care,Residential Care
Cambridgeshire County Council,17-Apr-20,51301301616,-935.98,ROSEWOOD  (OP PD MH),CARE ESTABLISHMENT,OP - City & South Locality - Cost of Care,Older People - City & South - Care,Residential Care
Cambridgeshire County Council,17-Apr-20,51301301616,-935.98,ROSEWOOD  (OP PD MH),CARE ESTABLISHMENT,OP - City & South Locality - Cost of Care,Older People - City & South - Care,Residential Care
Cambridgeshire County Council,17-Apr-20,51301301616,-935.98,ROSEWOOD  (OP PD MH),CARE ESTABLISHMENT,OP - City & South Locality - Cost of Care,Older People - City & South - Care,Residential Care
Cambridgeshire County Council,17-Apr-20,51301301616,-935.98,ROSEWOOD  (OP PD MH),CARE ESTABLISHMENT,OP - City & South Locality - Cost of Care,Older People - City & South - Care,Residential Care
Cambridgeshire County Council,17-Apr-20,51301301616,-935.98,ROSEWOOD  (OP PD MH),CARE ESTABLISHMENT,OP - City & South Locality - Cost of Care,Older People - City & South - Care,Residential Care
Cambridgeshire County Council,17-Apr-20,51301301616,-935.98,ROSEWOOD  (OP PD MH),CARE ESTABLISHMENT,OP - City & South Locality - Cost of Care,Older People - City & South - Care,Residential Care
Cambridgeshire County Council,17-Apr-20,51301301616,-935.98,ROSEWOOD  (OP PD MH),CARE ESTABLISHMENT,OP - City & South Locality - Cost of Care,Older People - City & South - Care,Residential Care
Cambridgeshire County Council,17-Apr-20,51301301616,-935.98,ROSEWOOD  (OP PD MH),CARE ESTABLISHMENT,OP - City & South Locality - Cost of Care,Older People - City & South - Care,Residential Care
Cambridgeshire County Council,17-Apr-20,51301301616,-935.98,ROSEWOOD  (OP PD MH),CARE ESTABLISHMENT,OP - City & South Locality - Cost of Care,Older People - City & South - Care,Residential Care
Cambridgeshire County Council,17-Apr-20,51301301616,-935.98,ROSEWOOD  (OP PD MH),CARE ESTABLISHMENT,OP - City & South Locality - Cost of Care,Older People - City & South - Care,Residential Care
Cambridgeshire County Council,17-Apr-20,51301301616,-935.98,ROSEWOOD  (OP PD MH),CARE ESTABLISHMENT,OP - City & South Locality - Cost of Care,Older People - City & South - Care,Residential Care
Cambridgeshire County Council,17-Apr-20,51301301616,-935.98,ROSEWOOD  (OP PD MH),CARE ESTABLISHMENT,OP - City & South Locality - Cost of Care,Older People - City & South - Care,Residential Care
Cambridgeshire County Council,17-Apr-20,51301301616,-935.98,ROSEWOOD  (OP PD MH),CARE ESTABLISHMENT,OP - City & South Locality - Cost of Care,Older People - City & South - Care,Residential Care
Cambridgeshire County Council,17-Apr-20,51301301616,-935.98,ROSEWOOD  (OP PD MH),CARE ESTABLISHMENT,OP - City & South Locality - Cost of Care,Older People - City & South - Care,Residential Care
Cambridgeshire County Council,17-Apr-20,51301301616,-935.98,ROSEWOOD  (OP PD MH),CARE ESTABLISHMENT,OP - City & South Locality - Cost of Care,Older People - City & South - Care,Residential Care
Cambridgeshire County Council,17-Apr-20,51301301616,-935.98,ROSEWOOD  (OP PD MH),CARE ESTABLISHMENT,OP - City & South Locality - Cost of Care,Older People - City & South - Care,Residential Care
Cambridgeshire County Council,17-Apr-20,51301301616,-935.98,ROSEWOOD  (OP PD MH),CARE ESTABLISHMENT,OP - City & South Locality - Cost of Care,Older People - City & South - Care,Residential Care
Cambridgeshire County Council,17-Apr-20,51301301616,-935.98,ROSEWOOD  (OP PD MH),CARE ESTABLISHMENT,OP - City & South Locality - Cost of Care,Older People - City & South - Care,Residential Care
Cambridgeshire County Council,20-Apr-20,51301354809,-922.81,AFFINITY TRUST,CARE ESTABLISHMENT,LD - Fenland Locality - Cost of Care,LD - Fenland  - Care,Domiciliary Care
Cambridgeshire County Council,20-Apr-20,51301354809,-922.81,AFFINITY TRUST,CARE ESTABLISHMENT,LD - Fenland Locality - Cost of Care,LD - Fenland  - Care,Domiciliary Care
Cambridgeshire County Council,17-Apr-20,51301311138,-921.19,GR GIBBS,CARE ESTABLISHMENT,LD - Hunts Locality - Cost of Care,LD - Huntingdonshire - Care,Residential Care
Cambridgeshire County Council,17-Apr-20,51301311138,-921.19,GR GIBBS,CARE ESTABLISHMENT,LD - Hunts Locality - Cost of Care,LD - Huntingdonshire - Care,Residential Care
Cambridgeshire County Council,17-Apr-20,51301311138,-921.19,GR GIBBS,CARE ESTABLISHMENT,LD - Hunts Locality - Cost of Care,LD - Huntingdonshire - Care,Residential Care
Cambridgeshire County Council,17-Apr-20,51301311138,-921.19,GR GIBBS,CARE ESTABLISHMENT,LD - Hunts Locality - Cost of Care,LD - Huntingdonshire - Care,Residential Care
Cambridgeshire County Council,17-Apr-20,51301311138,-921.19,GR GIBBS,CARE ESTABLISHMENT,LD - Hunts Locality - Cost of Care,LD - Huntingdonshire - Care,Residential Care
Cambridgeshire County Council,17-Apr-20,51301311138,-921.19,GR GIBBS,CARE ESTABLISHMENT,LD - Hunts Locality - Cost of Care,LD - Huntingdonshire - Care,Residential Care
Cambridgeshire County Council,17-Apr-20,51301311138,-921.19,GR GIBBS,CARE ESTABLISHMENT,LD - Hunts Locality - Cost of Care,LD - Huntingdonshire - Care,Residential Care
Cambridgeshire County Council,17-Apr-20,51301311138,-921.19,GR GIBBS,CARE ESTABLISHMENT,LD - Hunts Locality - Cost of Care,LD - Huntingdonshire - Care,Residential Care
Cambridgeshire County Council,17-Apr-20,51301311138,-921.19,GR GIBBS,CARE ESTABLISHMENT,LD - Hunts Locality - Cost of Care,LD - Huntingdonshire - Care,Residential Care
Cambridgeshire County Council,17-Apr-20,51301311138,-921.19,GR GIBBS,CARE ESTABLISHMENT,LD - Hunts Locality - Cost of Care,LD - Huntingdonshire - Care,Residential Care
Cambridgeshire County Council,17-Apr-20,51301311138,-921.19,GR GIBBS,CARE ESTABLISHMENT,LD - Hunts Locality - Cost of Care,LD - Huntingdonshire - Care,Residential Care
Cambridgeshire County Council,17-Apr-20,51301311138,-921.19,GR GIBBS,CARE ESTABLISHMENT,LD - Hunts Locality - Cost of Care,LD - Huntingdonshire - Care,Residential Care
Cambridgeshire County Council,17-Apr-20,51301311138,-921.19,GR GIBBS,CARE ESTABLISHMENT,LD - Hunts Locality - Cost of Care,LD - Huntingdonshire - Care,Residential Care
Cambridgeshire County Council,17-Apr-20,51301311138,-921.19,GR GIBBS,CARE ESTABLISHMENT,LD - Hunts Locality - Cost of Care,LD - Huntingdonshire - Care,Residential Care
Cambridgeshire County Council,17-Apr-20,51301311138,-921.19,GR GIBBS,CARE ESTABLISHMENT,LD - Hunts Locality - Cost of Care,LD - Huntingdonshire - Care,Residential Care
Cambridgeshire County Council,17-Apr-20,51301311138,-921.19,GR GIBBS,CARE ESTABLISHMENT,LD - Hunts Locality - Cost of Care,LD - Huntingdonshire - Care,Residential Care
Cambridgeshire County Council,17-Apr-20,51301311138,-921.19,GR GIBBS,CARE ESTABLISHMENT,LD - Hunts Locality - Cost of Care,LD - Huntingdonshire - Care,Residential Care
Cambridgeshire County Council,17-Apr-20,51301311138,-921.19,GR GIBBS,CARE ESTABLISHMENT,LD - Hunts Locality - Cost of Care,LD - Huntingdonshire - Care,Residential Care
Cambridgeshire County Council,17-Apr-20,51301311138,-921.19,GR GIBBS,CARE ESTABLISHMENT,LD - Hunts Locality - Cost of Care,LD - Huntingdonshire - Care,Residential Care
Cambridgeshire County Council,17-Apr-20,51301311138,-921.19,GR GIBBS,CARE ESTABLISHMENT,LD - Hunts Locality - Cost of Care,LD - Huntingdonshire - Care,Residential Care
Cambridgeshire County Council,17-Apr-20,51301311138,-921.19,GR GIBBS,CARE ESTABLISHMENT,LD - Hunts Locality - Cost of Care,LD - Huntingdonshire - Care,Residential Care
Cambridgeshire County Council,17-Apr-20,51301311138,-921.19,GR GIBBS,CARE ESTABLISHMENT,LD - Hunts Locality - Cost of Care,LD - Huntingdonshire - Care,Residential Care
Cambridgeshire County Council,17-Apr-20,51301311138,-921.19,GR GIBBS,CARE ESTABLISHMENT,LD - Hunts Locality - Cost of Care,LD - Huntingdonshire - Care,Residential Care
Cambridgeshire County Council,17-Apr-20,51301311138,-921.19,GR GIBBS,CARE ESTABLISHMENT,LD - Hunts Locality - Cost of Care,LD - Huntingdonshire - Care,Residential Care
Cambridgeshire County Council,17-Apr-20,51301311138,-921.19,GR GIBBS,CARE ESTABLISHMENT,LD - Hunts Locality - Cost of Care,LD - Huntingdonshire - Care,Residential Care
Cambridgeshire County Council,17-Apr-20,51301311138,-921.19,GR GIBBS,CARE ESTABLISHMENT,LD - Hunts Locality - Cost of Care,LD - Huntingdonshire - Care,Residential Care
Cambridgeshire County Council,17-Apr-20,51301311138,-921.19,GR GIBBS,CARE ESTABLISHMENT,LD - Hunts Locality - Cost of Care,LD - Huntingdonshire - Care,Residential Care
Cambridgeshire County Council,17-Apr-20,51301311138,-921.19,GR GIBBS,CARE ESTABLISHMENT,LD - Hunts Locality - Cost of Care,LD - Huntingdonshire - Care,Residential Care
Cambridgeshire County Council,17-Apr-20,51301354108,-915.06,PAULINE BURNETT HOUSE,CARE ESTABLISHMENT,LD - South Locality - Cost of Care,LD - South Cambs - Care,Residential Care
Cambridgeshire County Council,17-Apr-20,51301354108,-915.06,PAULINE BURNETT HOUSE,CARE ESTABLISHMENT,LD - South Locality - Cost of Care,LD - South Cambs - Care,Residential Care
Cambridgeshire County Council,17-Apr-20,51301354108,-915.06,PAULINE BURNETT HOUSE,CARE ESTABLISHMENT,LD - South Locality - Cost of Care,LD - South Cambs - Care,Residential Care
Cambridgeshire County Council,17-Apr-20,51301354108,-915.06,PAULINE BURNETT HOUSE,CARE ESTABLISHMENT,LD - South Locality - Cost of Care,LD - South Cambs - Care,Residential Care
Cambridgeshire County Council,03-Apr-20,51301347736,-900.00,BARCHESTER HEALTHCARE HOMES LTD,CARE ESTABLISHMENT,OP - East Cambs Locality - Cost of Care,East Cambs - O P Team - Care,Nursing Care
Cambridgeshire County Council,03-Apr-20,51301347736,-900.00,BARCHESTER HEALTHCARE HOMES LTD,CARE ESTABLISHMENT,OP - East Cambs Locality - Cost of Care,East Cambs - O P Team - Care,Nursing Care
Cambridgeshire County Council,03-Apr-20,51301347736,-900.00,BARCHESTER HEALTHCARE HOMES LTD,CARE ESTABLISHMENT,OP - East Cambs Locality - Cost of Care,East Cambs - O P Team - Care,Nursing Care
Cambridgeshire County Council,03-Apr-20,51301347736,-900.00,BARCHESTER HEALTHCARE HOMES LTD,CARE ESTABLISHMENT,OP - East Cambs Locality - Cost of Care,East Cambs - O P Team - Care,Nursing Care
Cambridgeshire County Council,03-Apr-20,51301347736,-900.00,BARCHESTER HEALTHCARE HOMES LTD,CARE ESTABLISHMENT,OP - East Cambs Locality - Cost of Care,East Cambs - O P Team - Care,Nursing Care
Cambridgeshire County Council,03-Apr-20,51301347736,-900.00,BARCHESTER HEALTHCARE HOMES LTD,CARE ESTABLISHMENT,OP - East Cambs Locality - Cost of Care,East Cambs - O P Team - Care,Nursing Care
Cambridgeshire County Council,03-Apr-20,51301347736,-900.00,BARCHESTER HEALTHCARE HOMES LTD,CARE ESTABLISHMENT,OP - East Cambs Locality - Cost of Care,East Cambs - O P Team - Care,Nursing Care
Cambridgeshire County Council,03-Apr-20,51301347736,-900.00,BARCHESTER HEALTHCARE HOMES LTD,CARE ESTABLISHMENT,OP - East Cambs Locality - Cost of Care,East Cambs - O P Team - Care,Nursing Care
Cambridgeshire County Council,03-Apr-20,51301347736,-900.00,BARCHESTER HEALTHCARE HOMES LTD,CARE ESTABLISHMENT,OP - East Cambs Locality - Cost of Care,East Cambs - O P Team - Care,Nursing Care
Cambridgeshire County Council,03-Apr-20,51301347736,-900.00,BARCHESTER HEALTHCARE HOMES LTD,CARE ESTABLISHMENT,OP - East Cambs Locality - Cost of Care,East Cambs - O P Team - Care,Nursing Care
Cambridgeshire County Council,03-Apr-20,51301347736,-900.00,BARCHESTER HEALTHCARE HOMES LTD,CARE ESTABLISHMENT,OP - East Cambs Locality - Cost of Care,East Cambs - O P Team - Care,Nursing Care
Cambridgeshire County Council,03-Apr-20,51301347736,-900.00,BARCHESTER HEALTHCARE HOMES LTD,CARE ESTABLISHMENT,OP - East Cambs Locality - Cost of Care,East Cambs - O P Team - Care,Nursing Care
Cambridgeshire County Council,03-Apr-20,51301347529,-880.19,GUYATT HOUSE CARE LTD,CARE ESTABLISHMENT,LD - East Locality - Cost of Care,LD - East Cambs - Care,Supported Living
Cambridgeshire County Council,20-Apr-20,51301356463,-872.10,FOUR OAKS HEALTHCARE LIMITED,CARE ESTABLISHMENT,OPMH - City & South,Older People Mental Health City & South,Homecare
Cambridgeshire County Council,20-Apr-20,51301356463,-872.10,FOUR OAKS HEALTHCARE LIMITED,CARE ESTABLISHMENT,OPMH - City & South,Older People Mental Health City & South,Homecare
Cambridgeshire County Council,20-Apr-20,51301356463,-872.10,FOUR OAKS HEALTHCARE LIMITED,CARE ESTABLISHMENT,OPMH - City & South,Older People Mental Health City & South,Homecare
Cambridgeshire County Council,20-Apr-20,51301356463,-872.10,FOUR OAKS HEALTHCARE LIMITED,CARE ESTABLISHMENT,OPMH - City & South,Older People Mental Health City & South,Homecare
Cambridgeshire County Council,20-Apr-20,51301356463,-872.10,FOUR OAKS HEALTHCARE LIMITED,CARE ESTABLISHMENT,OPMH - City & South,Older People Mental Health City & South,Homecare
Cambridgeshire County Council,20-Apr-20,51301356463,-872.10,FOUR OAKS HEALTHCARE LIMITED,CARE ESTABLISHMENT,OPMH - City & South,Older People Mental Health City & South,Homecare
Cambridgeshire County Council,20-Apr-20,51301356463,-872.10,FOUR OAKS HEALTHCARE LIMITED,CARE ESTABLISHMENT,OPMH - City & South,Older People Mental Health City & South,Homecare
Cambridgeshire County Council,20-Apr-20,51301356463,-872.10,FOUR OAKS HEALTHCARE LIMITED,CARE ESTABLISHMENT,OPMH - City & South,Older People Mental Health City & South,Homecare
Cambridgeshire County Council,20-Apr-20,51301356463,-872.10,FOUR OAKS HEALTHCARE LIMITED,CARE ESTABLISHMENT,OPMH - City & South,Older People Mental Health City & South,Homecare
Cambridgeshire County Council,20-Apr-20,51301356463,-872.10,FOUR OAKS HEALTHCARE LIMITED,CARE ESTABLISHMENT,OPMH - City & South,Older People Mental Health City & South,Homecare
Cambridgeshire County Council,20-Apr-20,51301356463,-872.10,FOUR OAKS HEALTHCARE LIMITED,CARE ESTABLISHMENT,OPMH - City & South,Older People Mental Health City & South,Homecare
Cambridgeshire County Council,20-Apr-20,51301356463,-872.10,FOUR OAKS HEALTHCARE LIMITED,CARE ESTABLISHMENT,OPMH - City & South,Older People Mental Health City & South,Homecare
Cambridgeshire County Council,20-Apr-20,51301356463,-872.10,FOUR OAKS HEALTHCARE LIMITED,CARE ESTABLISHMENT,OPMH - City & South,Older People Mental Health City & South,Homecare
Cambridgeshire County Council,20-Apr-20,51301357540,-856.80,MEADOWS HOMECARE SERVICES,CARE ESTABLISHMENT,Physical Disablity - Cost of Care,Countywide PD Service - Care,Homecare
Cambridgeshire County Council,20-Apr-20,51301357540,-856.80,MEADOWS HOMECARE SERVICES,CARE ESTABLISHMENT,Physical Disablity - Cost of Care,Countywide PD Service - Care,Homecare
Cambridgeshire County Council,20-Apr-20,51301357540,-856.80,MEADOWS HOMECARE SERVICES,CARE ESTABLISHMENT,Physical Disablity - Cost of Care,Countywide PD Service - Care,Homecare
Cambridgeshire County Council,20-Apr-20,51301357540,-856.80,MEADOWS HOMECARE SERVICES,CARE ESTABLISHMENT,Physical Disablity - Cost of Care,Countywide PD Service - Care,Homecare
Cambridgeshire County Council,20-Apr-20,51301357540,-856.80,MEADOWS HOMECARE SERVICES,CARE ESTABLISHMENT,Physical Disablity - Cost of Care,Countywide PD Service - Care,Homecare
Cambridgeshire County Council,20-Apr-20,51301357540,-856.80,MEADOWS HOMECARE SERVICES,CARE ESTABLISHMENT,Physical Disablity - Cost of Care,Countywide PD Service - Care,Homecare
Cambridgeshire County Council,20-Apr-20,51301357540,-856.80,MEADOWS HOMECARE SERVICES,CARE ESTABLISHMENT,Physical Disablity - Cost of Care,Countywide PD Service - Care,Homecare
Cambridgeshire County Council,20-Apr-20,51301357540,-856.80,MEADOWS HOMECARE SERVICES,CARE ESTABLISHMENT,Physical Disablity - Cost of Care,Countywide PD Service - Care,Homecare
Cambridgeshire County Council,20-Apr-20,51301357540,-856.80,MEADOWS HOMECARE SERVICES,CARE ESTABLISHMENT,Physical Disablity - Cost of Care,Countywide PD Service - Care,Homecare
Cambridgeshire County Council,20-Apr-20,51301357540,-856.80,MEADOWS HOMECARE SERVICES,CARE ESTABLISHMENT,Physical Disablity - Cost of Care,Countywide PD Service - Care,Homecare
Cambridgeshire County Council,20-Apr-20,51301356979,-850.29,THERA EAST ANGLIA,CARE ESTABLISHMENT,LD - East Locality - Cost of Care,LD - East Cambs - Care,Domiciliary Care
Cambridgeshire County Council,03-Apr-20,51301347528,-849.50,VOYAGE,CARE ESTABLISHMENT,LD - Fenland Locality - Cost of Care,LD - Fenland  - Care,Domiciliary Care
Cambridgeshire County Council,03-Apr-20,51301347528,-849.50,VOYAGE,CARE ESTABLISHMENT,LD - Fenland Locality - Cost of Care,LD - Fenland  - Care,Domiciliary Care
Cambridgeshire County Council,03-Apr-20,51301347528,-849.50,VOYAGE,CARE ESTABLISHMENT,LD - Fenland Locality - Cost of Care,LD - Fenland  - Care,Domiciliary Care
Cambridgeshire County Council,03-Apr-20,51301347528,-849.50,VOYAGE,CARE ESTABLISHMENT,LD - Fenland Locality - Cost of Care,LD - Fenland  - Care,Domiciliary Care
Cambridgeshire County Council,20-Apr-20,51301357184,-849.50,VOYAGE,CARE ESTABLISHMENT,LD - Fenland Locality - Cost of Care,LD - Fenland  - Care,Domiciliary Care
Cambridgeshire County Council,20-Apr-20,51301357182,-849.50,VOYAGE,CARE ESTABLISHMENT,LD - Fenland Locality - Cost of Care,LD - Fenland  - Care,Domiciliary Care
Cambridgeshire County Council,20-Apr-20,51301357182,-849.50,VOYAGE,CARE ESTABLISHMENT,LD - Fenland Locality - Cost of Care,LD - Fenland  - Care,Domiciliary Care
Cambridgeshire County Council,20-Apr-20,51301357182,-849.50,VOYAGE,CARE ESTABLISHMENT,LD - Fenland Locality - Cost of Care,LD - Fenland  - Care,Domiciliary Care
Cambridgeshire County Council,20-Apr-20,51301357184,-849.50,VOYAGE,CARE ESTABLISHMENT,LD - Fenland Locality - Cost of Care,LD - Fenland  - Care,Domiciliary Care
Cambridgeshire County Council,20-Apr-20,51301357184,-849.50,VOYAGE,CARE ESTABLISHMENT,LD - Fenland Locality - Cost of Care,LD - Fenland  - Care,Domiciliary Care
Cambridgeshire County Council,20-Apr-20,51301357182,-849.50,VOYAGE,CARE ESTABLISHMENT,LD - Fenland Locality - Cost of Care,LD - Fenland  - Care,Domiciliary Care
Cambridgeshire County Council,20-Apr-20,51301357184,-849.50,VOYAGE,CARE ESTABLISHMENT,LD - Fenland Locality - Cost of Care,LD - Fenland  - Care,Domiciliary Care
Cambridgeshire County Council,03-Apr-20,51301347737,-842.92,ELTISLEY MANOR (PSYCARE LTD),CARE ESTABLISHMENT,OPMH - Hunts & Fens,Older People Mental Health Hunts,Nursing Care
Cambridgeshire County Council,03-Apr-20,51301347737,-842.92,ELTISLEY MANOR (PSYCARE LTD),CARE ESTABLISHMENT,OPMH - Hunts & Fens,Older People Mental Health Hunts,Nursing Care
Cambridgeshire County Council,03-Apr-20,51301347737,-842.92,ELTISLEY MANOR (PSYCARE LTD),CARE ESTABLISHMENT,OPMH - Hunts & Fens,Older People Mental Health Hunts,Nursing Care
Cambridgeshire County Council,03-Apr-20,51301347737,-842.92,ELTISLEY MANOR (PSYCARE LTD),CARE ESTABLISHMENT,OPMH - Hunts & Fens,Older People Mental Health Hunts,Nursing Care
Cambridgeshire County Council,03-Apr-20,51301347737,-842.92,ELTISLEY MANOR (PSYCARE LTD),CARE ESTABLISHMENT,OPMH - Hunts & Fens,Older People Mental Health Hunts,Nursing Care
Cambridgeshire County Council,03-Apr-20,51301347737,-842.92,ELTISLEY MANOR (PSYCARE LTD),CARE ESTABLISHMENT,OPMH - Hunts & Fens,Older People Mental Health Hunts,Nursing Care
Cambridgeshire County Council,03-Apr-20,51301347737,-842.92,ELTISLEY MANOR (PSYCARE LTD),CARE ESTABLISHMENT,OPMH - Hunts & Fens,Older People Mental Health Hunts,Nursing Care
Cambridgeshire County Council,03-Apr-20,51301347737,-842.92,ELTISLEY MANOR (PSYCARE LTD),CARE ESTABLISHMENT,OPMH - Hunts & Fens,Older People Mental Health Hunts,Nursing Care
Cambridgeshire County Council,03-Apr-20,51301347737,-842.92,ELTISLEY MANOR (PSYCARE LTD),CARE ESTABLISHMENT,OPMH - Hunts & Fens,Older People Mental Health Hunts,Nursing Care
Cambridgeshire County Council,03-Apr-20,51301347737,-842.92,ELTISLEY MANOR (PSYCARE LTD),CARE ESTABLISHMENT,OPMH - Hunts & Fens,Older People Mental Health Hunts,Nursing Care
Cambridgeshire County Council,03-Apr-20,51301347737,-842.92,ELTISLEY MANOR (PSYCARE LTD),CARE ESTABLISHMENT,OPMH - Hunts & Fens,Older People Mental Health Hunts,Nursing Care
Cambridgeshire County Council,03-Apr-20,51301347737,-842.92,ELTISLEY MANOR (PSYCARE LTD),CARE ESTABLISHMENT,OPMH - Hunts & Fens,Older People Mental Health Hunts,Nursing Care
Cambridgeshire County Council,03-Apr-20,51301347737,-842.92,ELTISLEY MANOR (PSYCARE LTD),CARE ESTABLISHMENT,OPMH - Hunts & Fens,Older People Mental Health Hunts,Nursing Care
Cambridgeshire County Council,03-Apr-20,51301347737,-842.92,ELTISLEY MANOR (PSYCARE LTD),CARE ESTABLISHMENT,OPMH - Hunts & Fens,Older People Mental Health Hunts,Nursing Care
Cambridgeshire County Council,03-Apr-20,51301347737,-842.92,ELTISLEY MANOR (PSYCARE LTD),CARE ESTABLISHMENT,OPMH - Hunts & Fens,Older People Mental Health Hunts,Nursing Care
Cambridgeshire County Council,03-Apr-20,51301347737,-842.92,ELTISLEY MANOR (PSYCARE LTD),CARE ESTABLISHMENT,OPMH - Hunts & Fens,Older People Mental Health Hunts,Nursing Care
Cambridgeshire County Council,03-Apr-20,51301347737,-842.92,ELTISLEY MANOR (PSYCARE LTD),CARE ESTABLISHMENT,OPMH - Hunts & Fens,Older People Mental Health Hunts,Nursing Care
Cambridgeshire County Council,03-Apr-20,51301347737,-842.92,ELTISLEY MANOR (PSYCARE LTD),CARE ESTABLISHMENT,OPMH - Hunts & Fens,Older People Mental Health Hunts,Nursing Care
Cambridgeshire County Council,03-Apr-20,51301347737,-842.92,ELTISLEY MANOR (PSYCARE LTD),CARE ESTABLISHMENT,OPMH - Hunts & Fens,Older People Mental Health Hunts,Nursing Care
Cambridgeshire County Council,23-Apr-20,51301359520,-826.99,MENCAP (32 KINGS LANE),CARE ESTABLISHMENT,LD - Hunts Locality - Cost of Care,LD - Huntingdonshire - Special Needs,Residential Care
Cambridgeshire County Council,20-Apr-20,51301354809,-818.34,AFFINITY TRUST,CARE ESTABLISHMENT,LD - Fenland Locality - Cost of Care,LD - Fenland  - Care,Domiciliary Care
Cambridgeshire County Council,20-Apr-20,51301354809,-818.34,AFFINITY TRUST,CARE ESTABLISHMENT,LD - Fenland Locality - Cost of Care,LD - Fenland  - Care,Domiciliary Care
Cambridgeshire County Council,30-Apr-20,51301359306,-811.84,CAMBRIDGESHIRE HOMECARE (J&M CARE LTD),CARE ESTABLISHMENT,Community Support Service,Community Support Service ECF,Grants to Voluntary Bodies
Cambridgeshire County Council,20-Apr-20,51301354990,-802.00,Kwikfix Recruitment Services Ltd,COMPANY,Physical Disablity - Cost of Care,Countywide PD Service - Care,Homecare
Cambridgeshire County Council,20-Apr-20,51301354990,-802.00,Kwikfix Recruitment Services Ltd,COMPANY,Physical Disablity - Cost of Care,Countywide PD Service - Care,Homecare
Cambridgeshire County Council,20-Apr-20,51301354990,-802.00,Kwikfix Recruitment Services Ltd,COMPANY,Physical Disablity - Cost of Care,Countywide PD Service - Care,Homecare
Cambridgeshire County Council,20-Apr-20,51301354990,-802.00,Kwikfix Recruitment Services Ltd,COMPANY,Physical Disablity - Cost of Care,Countywide PD Service - Care,Homecare
Cambridgeshire County Council,20-Apr-20,51301354990,-802.00,Kwikfix Recruitment Services Ltd,COMPANY,Physical Disablity - Cost of Care,Countywide PD Service - Care,Homecare
Cambridgeshire County Council,20-Apr-20,51301354990,-802.00,Kwikfix Recruitment Services Ltd,COMPANY,Physical Disablity - Cost of Care,Countywide PD Service - Care,Homecare
Cambridgeshire County Council,20-Apr-20,51301354990,-802.00,Kwikfix Recruitment Services Ltd,COMPANY,Physical Disablity - Cost of Care,Countywide PD Service - Care,Homecare
Cambridgeshire County Council,20-Apr-20,51301354990,-802.00,Kwikfix Recruitment Services Ltd,COMPANY,Physical Disablity - Cost of Care,Countywide PD Service - Care,Homecare
Cambridgeshire County Council,20-Apr-20,51301354990,-802.00,Kwikfix Recruitment Services Ltd,COMPANY,Physical Disablity - Cost of Care,Countywide PD Service - Care,Homecare
Cambridgeshire County Council,20-Apr-20,51301354990,-802.00,Kwikfix Recruitment Services Ltd,COMPANY,Physical Disablity - Cost of Care,Countywide PD Service - Care,Homecare
Cambridgeshire County Council,20-Apr-20,51301354990,-802.00,Kwikfix Recruitment Services Ltd,COMPANY,Physical Disablity - Cost of Care,Countywide PD Service - Care,Homecare
Cambridgeshire County Council,17-Apr-20,51301353336,-800.00,MIDFIELD LODGE CARE CENTRE,CARE ESTABLISHMENT,OP - City & South Locality - Cost of Care,Older People - City & South - Care,Nursing Care
Cambridgeshire County Council,17-Apr-20,51301353336,-800.00,MIDFIELD LODGE CARE CENTRE,CARE ESTABLISHMENT,OP - City & South Locality - Cost of Care,Older People - City & South - Care,Nursing Care
Cambridgeshire County Council,17-Apr-20,51301353336,-800.00,MIDFIELD LODGE CARE CENTRE,CARE ESTABLISHMENT,OP - City & South Locality - Cost of Care,Older People - City & South - Care,Nursing Care
Cambridgeshire County Council,17-Apr-20,51301353336,-800.00,MIDFIELD LODGE CARE CENTRE,CARE ESTABLISHMENT,OP - City & South Locality - Cost of Care,Older People - City & South - Care,Nursing Care
Cambridgeshire County Council,17-Apr-20,51301353336,-800.00,MIDFIELD LODGE CARE CENTRE,CARE ESTABLISHMENT,OP - City & South Locality - Cost of Care,Older People - City & South - Care,Nursing Care
Cambridgeshire County Council,17-Apr-20,51301353294,-800.00,ROSE LODGE,CARE ESTABLISHMENT,OP - Fenland Locality - Cost of Care,Older People - Fenland - Care,Residential Care
Cambridgeshire County Council,17-Apr-20,51301353294,-800.00,ROSE LODGE,CARE ESTABLISHMENT,OP - Fenland Locality - Cost of Care,Older People - Fenland - Care,Residential Care
Cambridgeshire County Council,17-Apr-20,51301353294,-800.00,ROSE LODGE,CARE ESTABLISHMENT,OP - Fenland Locality - Cost of Care,Older People - Fenland - Care,Residential Care
Cambridgeshire County Council,17-Apr-20,51301353294,-800.00,ROSE LODGE,CARE ESTABLISHMENT,OP - Fenland Locality - Cost of Care,Older People - Fenland - Care,Residential Care
Cambridgeshire County Council,17-Apr-20,51301353294,-800.00,ROSE LODGE,CARE ESTABLISHMENT,OP - Fenland Locality - Cost of Care,Older People - Fenland - Care,Residential Care
Cambridgeshire County Council,17-Apr-20,51301353819,-800.00,ETHELDRED HOUSE,CARE ESTABLISHMENT,OPMH - City & South,Older People Mental Health City & South,Nursing Care
Cambridgeshire County Council,17-Apr-20,51301353819,-800.00,ETHELDRED HOUSE,CARE ESTABLISHMENT,OPMH - City & South,Older People Mental Health City & South,Nursing Care
Cambridgeshire County Council,17-Apr-20,51301353819,-800.00,ETHELDRED HOUSE,CARE ESTABLISHMENT,OPMH - City & South,Older People Mental Health City & South,Nursing Care
Cambridgeshire County Council,17-Apr-20,51301353819,-800.00,ETHELDRED HOUSE,CARE ESTABLISHMENT,OPMH - City & South,Older People Mental Health City & South,Nursing Care
Cambridgeshire County Council,17-Apr-20,51301353819,-800.00,ETHELDRED HOUSE,CARE ESTABLISHMENT,OPMH - City & South,Older People Mental Health City & South,Nursing Care
Cambridgeshire County Council,17-Apr-20,51301353819,-800.00,ETHELDRED HOUSE,CARE ESTABLISHMENT,OPMH - City & South,Older People Mental Health City & South,Nursing Care
Cambridgeshire County Council,17-Apr-20,51301353819,-800.00,ETHELDRED HOUSE,CARE ESTABLISHMENT,OPMH - City & South,Older People Mental Health City & South,Nursing Care
Cambridgeshire County Council,17-Apr-20,51301353819,-800.00,ETHELDRED HOUSE,CARE ESTABLISHMENT,OPMH - City & South,Older People Mental Health City & South,Nursing Care
Cambridgeshire County Council,17-Apr-20,51301353819,-800.00,ETHELDRED HOUSE,CARE ESTABLISHMENT,OPMH - City & South,Older People Mental Health City & South,Nursing Care
Cambridgeshire County Council,17-Apr-20,51301353819,-800.00,ETHELDRED HOUSE,CARE ESTABLISHMENT,OPMH - City & South,Older People Mental Health City & South,Nursing Care
Cambridgeshire County Council,17-Apr-20,51301353819,-800.00,ETHELDRED HOUSE,CARE ESTABLISHMENT,OPMH - City & South,Older People Mental Health City & South,Nursing Care
Cambridgeshire County Council,17-Apr-20,51301353819,-800.00,ETHELDRED HOUSE,CARE ESTABLISHMENT,OPMH - City & South,Older People Mental Health City & South,Nursing Care
Cambridgeshire County Council,17-Apr-20,51301353819,-800.00,ETHELDRED HOUSE,CARE ESTABLISHMENT,OPMH - City & South,Older People Mental Health City & South,Nursing Care
Cambridgeshire County Council,17-Apr-20,51301353819,-800.00,ETHELDRED HOUSE,CARE ESTABLISHMENT,OPMH - City & South,Older People Mental Health City & South,Nursing Care
Cambridgeshire County Council,17-Apr-20,51301353819,-800.00,ETHELDRED HOUSE,CARE ESTABLISHMENT,OPMH - City & South,Older People Mental Health City & South,Nursing Care
Cambridgeshire County Council,17-Apr-20,51301353819,-800.00,ETHELDRED HOUSE,CARE ESTABLISHMENT,OPMH - City & South,Older People Mental Health City & South,Nursing Care
Cambridgeshire County Council,17-Apr-20,51301353819,-800.00,ETHELDRED HOUSE,CARE ESTABLISHMENT,OPMH - City & South,Older People Mental Health City & South,Nursing Care
Cambridgeshire County Council,17-Apr-20,51301353819,-800.00,ETHELDRED HOUSE,CARE ESTABLISHMENT,OPMH - City & South,Older People Mental Health City & South,Nursing Care
Cambridgeshire County Council,17-Apr-20,51301353819,-800.00,ETHELDRED HOUSE,CARE ESTABLISHMENT,OPMH - City & South,Older People Mental Health City & South,Nursing Care
Cambridgeshire County Council,17-Apr-20,51301353819,-800.00,ETHELDRED HOUSE,CARE ESTABLISHMENT,OPMH - City & South,Older People Mental Health City & South,Nursing Care
Cambridgeshire County Council,17-Apr-20,51301353819,-800.00,ETHELDRED HOUSE,CARE ESTABLISHMENT,OPMH - City & South,Older People Mental Health City & South,Nursing Care
Cambridgeshire County Council,17-Apr-20,51301353819,-800.00,ETHELDRED HOUSE,CARE ESTABLISHMENT,OPMH - City & South,Older People Mental Health City & South,Nursing Care
Cambridgeshire County Council,17-Apr-20,51301353819,-800.00,ETHELDRED HOUSE,CARE ESTABLISHMENT,OPMH - City & South,Older People Mental Health City & South,Nursing Care
Cambridgeshire County Council,17-Apr-20,51301353819,-800.00,ETHELDRED HOUSE,CARE ESTABLISHMENT,OPMH - City & South,Older People Mental Health City & South,Nursing Care
Cambridgeshire County Council,17-Apr-20,51301353819,-800.00,ETHELDRED HOUSE,CARE ESTABLISHMENT,OPMH - City & South,Older People Mental Health City & South,Nursing Care
Cambridgeshire County Council,17-Apr-20,51301353819,-800.00,ETHELDRED HOUSE,CARE ESTABLISHMENT,OPMH - City & South,Older People Mental Health City & South,Nursing Care
Cambridgeshire County Council,17-Apr-20,51301353819,-800.00,ETHELDRED HOUSE,CARE ESTABLISHMENT,OPMH - City & South,Older People Mental Health City & South,Nursing Care
Cambridgeshire County Council,17-Apr-20,51301353819,-800.00,ETHELDRED HOUSE,CARE ESTABLISHMENT,OPMH - City & South,Older People Mental Health City & South,Nursing Care
Cambridgeshire County Council,17-Apr-20,51301353819,-800.00,ETHELDRED HOUSE,CARE ESTABLISHMENT,OPMH - City & South,Older People Mental Health City & South,Nursing Care
Cambridgeshire County Council,27-Apr-20,51301344449,-800.00,FOSTERING SOLUTIONS LTD,CARE ESTABLISHMENT,LAC Placements,Placements - independent fostering,Agency Placements - In County
Cambridgeshire County Council,30-Apr-20,51301362656,-791.83,Redacted Personal Data,SERVICE USER,Physical Disablity - Cost of Care,Countywide PD Service - Care,Direct Payments
Cambridgeshire County Council,30-Apr-20,51301362656,-791.83,Redacted Personal Data,SERVICE USER,Physical Disablity - Cost of Care,Countywide PD Service - Care,Direct Payments
Cambridgeshire County Council,30-Apr-20,51301362656,-791.83,Redacted Personal Data,SERVICE USER,Physical Disablity - Cost of Care,Countywide PD Service - Care,Direct Payments
Cambridgeshire County Council,30-Apr-20,51301362656,-791.83,Redacted Personal Data,SERVICE USER,Physical Disablity - Cost of Care,Countywide PD Service - Care,Direct Payments
Cambridgeshire County Council,30-Apr-20,51301362656,-791.83,Redacted Personal Data,SERVICE USER,Physical Disablity - Cost of Care,Countywide PD Service - Care,Direct Payments
Cambridgeshire County Council,30-Apr-20,51301362656,-791.83,Redacted Personal Data,SERVICE USER,Physical Disablity - Cost of Care,Countywide PD Service - Care,Direct Payments
Cambridgeshire County Council,30-Apr-20,51301362656,-791.83,Redacted Personal Data,SERVICE USER,Physical Disablity - Cost of Care,Countywide PD Service - Care,Direct Payments
Cambridgeshire County Council,30-Apr-20,51301362656,-791.83,Redacted Personal Data,SERVICE USER,Physical Disablity - Cost of Care,Countywide PD Service - Care,Direct Payments
Cambridgeshire County Council,30-Apr-20,51301362656,-791.83,Redacted Personal Data,SERVICE USER,Physical Disablity - Cost of Care,Countywide PD Service - Care,Direct Payments
Cambridgeshire County Council,30-Apr-20,51301362656,-791.83,Redacted Personal Data,SERVICE USER,Physical Disablity - Cost of Care,Countywide PD Service - Care,Direct Payments
Cambridgeshire County Council,30-Apr-20,51301362656,-791.83,Redacted Personal Data,SERVICE USER,Physical Disablity - Cost of Care,Countywide PD Service - Care,Direct Payments
Cambridgeshire County Council,30-Apr-20,51301362656,-791.83,Redacted Personal Data,SERVICE USER,Physical Disablity - Cost of Care,Countywide PD Service - Care,Direct Payments
Cambridgeshire County Council,30-Apr-20,51301362656,-791.83,Redacted Personal Data,SERVICE USER,Physical Disablity - Cost of Care,Countywide PD Service - Care,Direct Payments
Cambridgeshire County Council,30-Apr-20,51301362656,-791.83,Redacted Personal Data,SERVICE USER,Physical Disablity - Cost of Care,Countywide PD Service - Care,Direct Payments
Cambridgeshire County Council,30-Apr-20,51301362656,-791.83,Redacted Personal Data,SERVICE USER,Physical Disablity - Cost of Care,Countywide PD Service - Care,Direct Payments
Cambridgeshire County Council,30-Apr-20,51301362656,-791.83,Redacted Personal Data,SERVICE USER,Physical Disablity - Cost of Care,Countywide PD Service - Care,Direct Payments
Cambridgeshire County Council,30-Apr-20,51301362656,-791.83,Redacted Personal Data,SERVICE USER,Physical Disablity - Cost of Care,Countywide PD Service - Care,Direct Payments
Cambridgeshire County Council,20-Apr-20,51301354809,-790.98,AFFINITY TRUST,CARE ESTABLISHMENT,LD - Fenland Locality - Cost of Care,LD - Fenland  - Care,Domiciliary Care
Cambridgeshire County Council,17-Apr-20,51301353626,-774.60,LONGUEVILLE COURT,CARE ESTABLISHMENT,OP - Hunts Locality - Cost of Care,Hunts OP Team - Care,Residential Care
Cambridgeshire County Council,17-Apr-20,51301353626,-774.60,LONGUEVILLE COURT,CARE ESTABLISHMENT,OP - Hunts Locality - Cost of Care,Hunts OP Team - Care,Residential Care
Cambridgeshire County Council,17-Apr-20,51301353842,-766.37,GLENNFIELD CARE CENTRE (OP),CARE ESTABLISHMENT,OPMH - Under 65,Older People Mental Health - Under 65's,Residential Care
Cambridgeshire County Council,17-Apr-20,51301353842,-766.37,GLENNFIELD CARE CENTRE (OP),CARE ESTABLISHMENT,OPMH - Under 65,Older People Mental Health - Under 65's,Residential Care
Cambridgeshire County Council,17-Apr-20,51301353842,-766.37,GLENNFIELD CARE CENTRE (OP),CARE ESTABLISHMENT,OPMH - Under 65,Older People Mental Health - Under 65's,Residential Care
Cambridgeshire County Council,17-Apr-20,51301353842,-766.37,GLENNFIELD CARE CENTRE (OP),CARE ESTABLISHMENT,OPMH - Under 65,Older People Mental Health - Under 65's,Residential Care
Cambridgeshire County Council,17-Apr-20,51301354005,-760.34,CONQUEST CARE HOMES PETERBOROUGH,CARE ESTABLISHMENT,LD - Young Adults Team,LD - Young Adults - Special Needs,Residential Care
Cambridgeshire County Council,03-Apr-20,51301347748,-750.00,ABBEY HEALTHCARE (HUNTINGDON) LTD,CARE ESTABLISHMENT,OP - Hunts Locality - Cost of Care,Hunts OP Team - Care,Nursing Care
Cambridgeshire County Council,03-Apr-20,51301347748,-750.00,ABBEY HEALTHCARE (HUNTINGDON) LTD,CARE ESTABLISHMENT,OP - Hunts Locality - Cost of Care,Hunts OP Team - Care,Nursing Care
Cambridgeshire County Council,03-Apr-20,51301347748,-750.00,ABBEY HEALTHCARE (HUNTINGDON) LTD,CARE ESTABLISHMENT,OP - Hunts Locality - Cost of Care,Hunts OP Team - Care,Nursing Care
Cambridgeshire County Council,03-Apr-20,51301347748,-750.00,ABBEY HEALTHCARE (HUNTINGDON) LTD,CARE ESTABLISHMENT,OP - Hunts Locality - Cost of Care,Hunts OP Team - Care,Nursing Care
Cambridgeshire County Council,03-Apr-20,51301347748,-750.00,ABBEY HEALTHCARE (HUNTINGDON) LTD,CARE ESTABLISHMENT,OP - Hunts Locality - Cost of Care,Hunts OP Team - Care,Nursing Care
Cambridgeshire County Council,03-Apr-20,51301347748,-750.00,ABBEY HEALTHCARE (HUNTINGDON) LTD,CARE ESTABLISHMENT,OP - Hunts Locality - Cost of Care,Hunts OP Team - Care,Nursing Care
Cambridgeshire County Council,03-Apr-20,51301347748,-750.00,ABBEY HEALTHCARE (HUNTINGDON) LTD,CARE ESTABLISHMENT,OP - Hunts Locality - Cost of Care,Hunts OP Team - Care,Nursing Care
Cambridgeshire County Council,03-Apr-20,51301347748,-750.00,ABBEY HEALTHCARE (HUNTINGDON) LTD,CARE ESTABLISHMENT,OP - Hunts Locality - Cost of Care,Hunts OP Team - Care,Nursing Care
Cambridgeshire County Council,09-Apr-20,51301349432,-750.00,GRACEFIELD NURSING AND RESIDENTIAL HOME,CARE ESTABLISHMENT,OP - City & South Locality - Cost of Care,Older People - City & South - Care,Residential Care
Cambridgeshire County Council,09-Apr-20,51301349432,-750.00,GRACEFIELD NURSING AND RESIDENTIAL HOME,CARE ESTABLISHMENT,OP - City & South Locality - Cost of Care,Older People - City & South - Care,Residential Care
Cambridgeshire County Council,09-Apr-20,51301349432,-750.00,GRACEFIELD NURSING AND RESIDENTIAL HOME,CARE ESTABLISHMENT,OP - City & South Locality - Cost of Care,Older People - City & South - Care,Residential Care
Cambridgeshire County Council,09-Apr-20,51301349432,-750.00,GRACEFIELD NURSING AND RESIDENTIAL HOME,CARE ESTABLISHMENT,OP - City & South Locality - Cost of Care,Older People - City & South - Care,Residential Care
Cambridgeshire County Council,09-Apr-20,51301349432,-750.00,GRACEFIELD NURSING AND RESIDENTIAL HOME,CARE ESTABLISHMENT,OP - City & South Locality - Cost of Care,Older People - City & South - Care,Residential Care
Cambridgeshire County Council,09-Apr-20,51301349432,-750.00,GRACEFIELD NURSING AND RESIDENTIAL HOME,CARE ESTABLISHMENT,OP - City & South Locality - Cost of Care,Older People - City & South - Care,Residential Care
Cambridgeshire County Council,09-Apr-20,51301349432,-750.00,GRACEFIELD NURSING AND RESIDENTIAL HOME,CARE ESTABLISHMENT,OP - City & South Locality - Cost of Care,Older People - City & South - Care,Residential Care
Cambridgeshire County Council,09-Apr-20,51301349432,-750.00,GRACEFIELD NURSING AND RESIDENTIAL HOME,CARE ESTABLISHMENT,OP - City & South Locality - Cost of Care,Older People - City & South - Care,Residential Care
Cambridgeshire County Council,09-Apr-20,51301349432,-750.00,GRACEFIELD NURSING AND RESIDENTIAL HOME,CARE ESTABLISHMENT,OP - City & South Locality - Cost of Care,Older People - City & South - Care,Residential Care
Cambridgeshire County Council,09-Apr-20,51301349432,-750.00,GRACEFIELD NURSING AND RESIDENTIAL HOME,CARE ESTABLISHMENT,OP - City & South Locality - Cost of Care,Older People - City & South - Care,Residential Care
Cambridgeshire County Council,09-Apr-20,51301349432,-750.00,GRACEFIELD NURSING AND RESIDENTIAL HOME,CARE ESTABLISHMENT,OP - City & South Locality - Cost of Care,Older People - City & South - Care,Residential Care
Cambridgeshire County Council,09-Apr-20,51301349432,-750.00,GRACEFIELD NURSING AND RESIDENTIAL HOME,CARE ESTABLISHMENT,OP - City & South Locality - Cost of Care,Older People - City & South - Care,Residential Care
Cambridgeshire County Council,09-Apr-20,51301349432,-750.00,GRACEFIELD NURSING AND RESIDENTIAL HOME,CARE ESTABLISHMENT,OP - City & South Locality - Cost of Care,Older People - City & South - Care,Residential Care
Cambridgeshire County Council,09-Apr-20,51301349432,-750.00,GRACEFIELD NURSING AND RESIDENTIAL HOME,CARE ESTABLISHMENT,OP - City & South Locality - Cost of Care,Older People - City & South - Care,Residential Care
Cambridgeshire County Council,09-Apr-20,51301349432,-750.00,GRACEFIELD NURSING AND RESIDENTIAL HOME,CARE ESTABLISHMENT,OP - City & South Locality - Cost of Care,Older People - City & South - Care,Residential Care
Cambridgeshire County Council,09-Apr-20,51301349432,-750.00,GRACEFIELD NURSING AND RESIDENTIAL HOME,CARE ESTABLISHMENT,OP - City & South Locality - Cost of Care,Older People - City & South - Care,Residential Care
Cambridgeshire County Council,20-Apr-20,51301358091,-750.00,TWO COUNTIES COMMUNITY CARE LTD,CARE ESTABLISHMENT,Physical Disablity - Cost of Care,Countywide PD Service - Care,Homecare
Cambridgeshire County Council,20-Apr-20,51301358091,-750.00,TWO COUNTIES COMMUNITY CARE LTD,CARE ESTABLISHMENT,Physical Disablity - Cost of Care,Countywide PD Service - Care,Homecare
Cambridgeshire County Council,20-Apr-20,51301358091,-750.00,TWO COUNTIES COMMUNITY CARE LTD,CARE ESTABLISHMENT,Physical Disablity - Cost of Care,Countywide PD Service - Care,Homecare
Cambridgeshire County Council,20-Apr-20,51301358091,-750.00,TWO COUNTIES COMMUNITY CARE LTD,CARE ESTABLISHMENT,Physical Disablity - Cost of Care,Countywide PD Service - Care,Homecare
Cambridgeshire County Council,20-Apr-20,51301358091,-750.00,TWO COUNTIES COMMUNITY CARE LTD,CARE ESTABLISHMENT,Physical Disablity - Cost of Care,Countywide PD Service - Care,Homecare
Cambridgeshire County Council,20-Apr-20,51301358091,-750.00,TWO COUNTIES COMMUNITY CARE LTD,CARE ESTABLISHMENT,Physical Disablity - Cost of Care,Countywide PD Service - Care,Homecare
Cambridgeshire County Council,20-Apr-20,51301358091,-750.00,TWO COUNTIES COMMUNITY CARE LTD,CARE ESTABLISHMENT,Physical Disablity - Cost of Care,Countywide PD Service - Care,Homecare
Cambridgeshire County Council,20-Apr-20,51301358091,-750.00,TWO COUNTIES COMMUNITY CARE LTD,CARE ESTABLISHMENT,Physical Disablity - Cost of Care,Countywide PD Service - Care,Homecare
Cambridgeshire County Council,20-Apr-20,51301358091,-750.00,TWO COUNTIES COMMUNITY CARE LTD,CARE ESTABLISHMENT,Physical Disablity - Cost of Care,Countywide PD Service - Care,Homecare
Cambridgeshire County Council,20-Apr-20,51301358091,-750.00,TWO COUNTIES COMMUNITY CARE LTD,CARE ESTABLISHMENT,Physical Disablity - Cost of Care,Countywide PD Service - Care,Homecare
Cambridgeshire County Council,20-Apr-20,51301358091,-750.00,TWO COUNTIES COMMUNITY CARE LTD,CARE ESTABLISHMENT,Physical Disablity - Cost of Care,Countywide PD Service - Care,Homecare
Cambridgeshire County Council,20-Apr-20,51301358091,-750.00,TWO COUNTIES COMMUNITY CARE LTD,CARE ESTABLISHMENT,Physical Disablity - Cost of Care,Countywide PD Service - Care,Homecare
Cambridgeshire County Council,20-Apr-20,51301358091,-750.00,TWO COUNTIES COMMUNITY CARE LTD,CARE ESTABLISHMENT,Physical Disablity - Cost of Care,Countywide PD Service - Care,Homecare
Cambridgeshire County Council,20-Apr-20,51301358091,-750.00,TWO COUNTIES COMMUNITY CARE LTD,CARE ESTABLISHMENT,Physical Disablity - Cost of Care,Countywide PD Service - Care,Homecare
Cambridgeshire County Council,20-Apr-20,51301358091,-750.00,TWO COUNTIES COMMUNITY CARE LTD,CARE ESTABLISHMENT,Physical Disablity - Cost of Care,Countywide PD Service - Care,Homecare
Cambridgeshire County Council,03-Apr-20,51301347518,-747.96,AFFINITY TRUST,CARE ESTABLISHMENT,LD - Fenland Locality - Cost of Care,LD - Fenland  - Special Needs,Supported Living
Cambridgeshire County Council,03-Apr-20,51301347518,-747.96,AFFINITY TRUST,CARE ESTABLISHMENT,LD - Fenland Locality - Cost of Care,LD - Fenland  - Special Needs,Supported Living
Cambridgeshire County Council,03-Apr-20,51301347518,-747.96,AFFINITY TRUST,CARE ESTABLISHMENT,LD - Fenland Locality - Cost of Care,LD - Fenland  - Special Needs,Supported Living
Cambridgeshire County Council,03-Apr-20,51301347518,-747.96,AFFINITY TRUST,CARE ESTABLISHMENT,LD - Fenland Locality - Cost of Care,LD - Fenland  - Special Needs,Supported Living
Cambridgeshire County Council,03-Apr-20,51301347518,-747.96,AFFINITY TRUST,CARE ESTABLISHMENT,LD - Fenland Locality - Cost of Care,LD - Fenland  - Special Needs,Supported Living
Cambridgeshire County Council,03-Apr-20,51301347518,-747.96,AFFINITY TRUST,CARE ESTABLISHMENT,LD - Fenland Locality - Cost of Care,LD - Fenland  - Special Needs,Supported Living
Cambridgeshire County Council,03-Apr-20,51301347518,-747.96,AFFINITY TRUST,CARE ESTABLISHMENT,LD - Fenland Locality - Cost of Care,LD - Fenland  - Special Needs,Supported Living
Cambridgeshire County Council,03-Apr-20,51301347518,-747.96,AFFINITY TRUST,CARE ESTABLISHMENT,LD - Fenland Locality - Cost of Care,LD - Fenland  - Special Needs,Supported Living
Cambridgeshire County Council,03-Apr-20,51301347518,-747.96,AFFINITY TRUST,CARE ESTABLISHMENT,LD - Fenland Locality - Cost of Care,LD - Fenland  - Special Needs,Supported Living
Cambridgeshire County Council,03-Apr-20,51301347518,-747.96,AFFINITY TRUST,CARE ESTABLISHMENT,LD - Fenland Locality - Cost of Care,LD - Fenland  - Special Needs,Supported Living
Cambridgeshire County Council,03-Apr-20,51301347518,-747.96,AFFINITY TRUST,CARE ESTABLISHMENT,LD - Fenland Locality - Cost of Care,LD - Fenland  - Special Needs,Supported Living
Cambridgeshire County Council,03-Apr-20,51301347518,-747.96,AFFINITY TRUST,CARE ESTABLISHMENT,LD - Fenland Locality - Cost of Care,LD - Fenland  - Special Needs,Supported Living
Cambridgeshire County Council,03-Apr-20,51301347518,-747.96,AFFINITY TRUST,CARE ESTABLISHMENT,LD - Fenland Locality - Cost of Care,LD - Fenland  - Special Needs,Supported Living
Cambridgeshire County Council,03-Apr-20,51301347518,-747.96,AFFINITY TRUST,CARE ESTABLISHMENT,LD - Fenland Locality - Cost of Care,LD - Fenland  - Special Needs,Supported Living
Cambridgeshire County Council,03-Apr-20,51301347518,-747.96,AFFINITY TRUST,CARE ESTABLISHMENT,LD - Fenland Locality - Cost of Care,LD - Fenland  - Special Needs,Supported Living
Cambridgeshire County Council,03-Apr-20,51301347518,-747.96,AFFINITY TRUST,CARE ESTABLISHMENT,LD - Fenland Locality - Cost of Care,LD - Fenland  - Special Needs,Supported Living
Cambridgeshire County Council,03-Apr-20,51301347518,-747.96,AFFINITY TRUST,CARE ESTABLISHMENT,LD - Fenland Locality - Cost of Care,LD - Fenland  - Special Needs,Supported Living
Cambridgeshire County Council,03-Apr-20,51301347518,-747.96,AFFINITY TRUST,CARE ESTABLISHMENT,LD - Fenland Locality - Cost of Care,LD - Fenland  - Special Needs,Supported Living
Cambridgeshire County Council,03-Apr-20,51301347518,-747.96,AFFINITY TRUST,CARE ESTABLISHMENT,LD - Fenland Locality - Cost of Care,LD - Fenland  - Special Needs,Supported Living
Cambridgeshire County Council,03-Apr-20,51301347518,-747.96,AFFINITY TRUST,CARE ESTABLISHMENT,LD - Fenland Locality - Cost of Care,LD - Fenland  - Special Needs,Supported Living
Cambridgeshire County Council,03-Apr-20,51301347518,-747.96,AFFINITY TRUST,CARE ESTABLISHMENT,LD - Fenland Locality - Cost of Care,LD - Fenland  - Special Needs,Supported Living
Cambridgeshire County Council,03-Apr-20,51301347518,-747.96,AFFINITY TRUST,CARE ESTABLISHMENT,LD - Fenland Locality - Cost of Care,LD - Fenland  - Special Needs,Supported Living
Cambridgeshire County Council,03-Apr-20,51301347518,-747.96,AFFINITY TRUST,CARE ESTABLISHMENT,LD - Fenland Locality - Cost of Care,LD - Fenland  - Special Needs,Supported Living
Cambridgeshire County Council,03-Apr-20,51301347518,-747.96,AFFINITY TRUST,CARE ESTABLISHMENT,LD - Fenland Locality - Cost of Care,LD - Fenland  - Special Needs,Supported Living
Cambridgeshire County Council,03-Apr-20,51301347518,-747.96,AFFINITY TRUST,CARE ESTABLISHMENT,LD - Fenland Locality - Cost of Care,LD - Fenland  - Special Needs,Supported Living
Cambridgeshire County Council,03-Apr-20,51301347518,-747.96,AFFINITY TRUST,CARE ESTABLISHMENT,LD - Fenland Locality - Cost of Care,LD - Fenland  - Special Needs,Supported Living
Cambridgeshire County Council,03-Apr-20,51301347518,-747.96,AFFINITY TRUST,CARE ESTABLISHMENT,LD - Fenland Locality - Cost of Care,LD - Fenland  - Special Needs,Supported Living
Cambridgeshire County Council,03-Apr-20,51301347518,-747.96,AFFINITY TRUST,CARE ESTABLISHMENT,LD - Fenland Locality - Cost of Care,LD - Fenland  - Special Needs,Supported Living
Cambridgeshire County Council,03-Apr-20,51301347518,-747.96,AFFINITY TRUST,CARE ESTABLISHMENT,LD - Fenland Locality - Cost of Care,LD - Fenland  - Special Needs,Supported Living
Cambridgeshire County Council,03-Apr-20,51301347518,-747.96,AFFINITY TRUST,CARE ESTABLISHMENT,LD - Fenland Locality - Cost of Care,LD - Fenland  - Special Needs,Supported Living
Cambridgeshire County Council,03-Apr-20,51301347518,-747.96,AFFINITY TRUST,CARE ESTABLISHMENT,LD - Fenland Locality - Cost of Care,LD - Fenland  - Special Needs,Supported Living
Cambridgeshire County Council,20-Apr-20,51301356463,-747.51,FOUR OAKS HEALTHCARE LIMITED,CARE ESTABLISHMENT,OPMH - City & South,Older People Mental Health City & South,Homecare
Cambridgeshire County Council,20-Apr-20,51301357653,-746.12,BETTER HEALTHCARE SERVICES LTD,CARE ESTABLISHMENT,OP - Fenland Locality - Cost of Care,Older People - Fenland - Care,Domiciliary Care
Cambridgeshire County Council,20-Apr-20,51301357653,-746.12,BETTER HEALTHCARE SERVICES LTD,CARE ESTABLISHMENT,OP - Fenland Locality - Cost of Care,Older People - Fenland - Care,Domiciliary Care
Cambridgeshire County Council,20-Apr-20,51301357653,-746.12,BETTER HEALTHCARE SERVICES LTD,CARE ESTABLISHMENT,OP - Fenland Locality - Cost of Care,Older People - Fenland - Care,Domiciliary Care
Cambridgeshire County Council,20-Apr-20,51301357653,-746.12,BETTER HEALTHCARE SERVICES LTD,CARE ESTABLISHMENT,OP - Fenland Locality - Cost of Care,Older People - Fenland - Care,Domiciliary Care
Cambridgeshire County Council,20-Apr-20,51301357653,-746.12,BETTER HEALTHCARE SERVICES LTD,CARE ESTABLISHMENT,OP - Fenland Locality - Cost of Care,Older People - Fenland - Care,Domiciliary Care
Cambridgeshire County Council,20-Apr-20,51301357653,-746.12,BETTER HEALTHCARE SERVICES LTD,CARE ESTABLISHMENT,OP - Fenland Locality - Cost of Care,Older People - Fenland - Care,Domiciliary Care
Cambridgeshire County Council,20-Apr-20,51301357653,-746.12,BETTER HEALTHCARE SERVICES LTD,CARE ESTABLISHMENT,OP - Fenland Locality - Cost of Care,Older People - Fenland - Care,Domiciliary Care
Cambridgeshire County Council,17-Apr-20,51301353322,-734.44,BARCHESTER HEALTHCARE HOMES LTD,CARE ESTABLISHMENT,OP - East Cambs Locality - Cost of Care,East Cambs - O P Team - Care,Nursing Care
Cambridgeshire County Council,17-Apr-20,51301353322,-734.44,BARCHESTER HEALTHCARE HOMES LTD,CARE ESTABLISHMENT,OP - East Cambs Locality - Cost of Care,East Cambs - O P Team - Care,Nursing Care
Cambridgeshire County Council,17-Apr-20,51301353322,-734.44,BARCHESTER HEALTHCARE HOMES LTD,CARE ESTABLISHMENT,OP - East Cambs Locality - Cost of Care,East Cambs - O P Team - Care,Nursing Care
Cambridgeshire County Council,17-Apr-20,51301353322,-734.44,BARCHESTER HEALTHCARE HOMES LTD,CARE ESTABLISHMENT,OP - East Cambs Locality - Cost of Care,East Cambs - O P Team - Care,Nursing Care
Cambridgeshire County Council,17-Apr-20,51301353322,-734.44,BARCHESTER HEALTHCARE HOMES LTD,CARE ESTABLISHMENT,OP - East Cambs Locality - Cost of Care,East Cambs - O P Team - Care,Nursing Care
Cambridgeshire County Council,17-Apr-20,51301353322,-734.44,BARCHESTER HEALTHCARE HOMES LTD,CARE ESTABLISHMENT,OP - East Cambs Locality - Cost of Care,East Cambs - O P Team - Care,Nursing Care
Cambridgeshire County Council,17-Apr-20,51301353322,-734.44,BARCHESTER HEALTHCARE HOMES LTD,CARE ESTABLISHMENT,OP - East Cambs Locality - Cost of Care,East Cambs - O P Team - Care,Nursing Care
Cambridgeshire County Council,20-Apr-20,51301357546,-734.40,MEADOWS HOMECARE SERVICES,CARE ESTABLISHMENT,OP - City & South Locality - Cost of Care,Older People - City & South - Care,Domiciliary Care
Cambridgeshire County Council,30-Apr-20,51301362592,-732.06,BLUEBIRD CARE NEWMARKET & FENLAND,CARE ESTABLISHMENT,OP - Fenland Locality - Cost of Care,Older People - Fenland - Care,Domiciliary Care
Cambridgeshire County Council,30-Apr-20,51301362592,-732.06,BLUEBIRD CARE NEWMARKET & FENLAND,CARE ESTABLISHMENT,OP - Fenland Locality - Cost of Care,Older People - Fenland - Care,Domiciliary Care
Cambridgeshire County Council,30-Apr-20,51301362592,-732.06,BLUEBIRD CARE NEWMARKET & FENLAND,CARE ESTABLISHMENT,OP - Fenland Locality - Cost of Care,Older People - Fenland - Care,Domiciliary Care
Cambridgeshire County Council,09-Apr-20,51301349655,-729.56,MENCAP (32 KINGS LANE),CARE ESTABLISHMENT,LD - Hunts Locality - Cost of Care,LD - Huntingdonshire - Care,Residential Care
Cambridgeshire County Council,09-Apr-20,51301349655,-729.56,MENCAP (32 KINGS LANE),CARE ESTABLISHMENT,LD - Hunts Locality - Cost of Care,LD - Huntingdonshire - Care,Residential Care
Cambridgeshire County Council,09-Apr-20,51301349655,-729.56,MENCAP (32 KINGS LANE),CARE ESTABLISHMENT,LD - Hunts Locality - Cost of Care,LD - Huntingdonshire - Care,Residential Care
Cambridgeshire County Council,03-Apr-20,51301347528,-728.14,VOYAGE,CARE ESTABLISHMENT,LD - Fenland Locality - Cost of Care,LD - Fenland  - Care,Domiciliary Care
Cambridgeshire County Council,20-Apr-20,51301357184,-728.14,VOYAGE,CARE ESTABLISHMENT,LD - Fenland Locality - Cost of Care,LD - Fenland  - Care,Domiciliary Care
Cambridgeshire County Council,20-Apr-20,51301357182,-728.14,VOYAGE,CARE ESTABLISHMENT,LD - Fenland Locality - Cost of Care,LD - Fenland  - Care,Domiciliary Care
Cambridgeshire County Council,30-Apr-20,51301362592,-722.16,BLUEBIRD CARE NEWMARKET & FENLAND,CARE ESTABLISHMENT,OP - Fenland Locality - Cost of Care,Older People - Fenland - Care,Domiciliary Care
Cambridgeshire County Council,20-Apr-20,51301355906,-716.94,QUALITY HOMECARE,CARE ESTABLISHMENT,Physical Disablity - Cost of Care,Countywide PD Service - Care,Domiciliary Care
Cambridgeshire County Council,20-Apr-20,51301355906,-716.94,QUALITY HOMECARE,CARE ESTABLISHMENT,Physical Disablity - Cost of Care,Countywide PD Service - Care,Domiciliary Care
Cambridgeshire County Council,20-Apr-20,51301355906,-716.94,QUALITY HOMECARE,CARE ESTABLISHMENT,Physical Disablity - Cost of Care,Countywide PD Service - Care,Domiciliary Care
Cambridgeshire County Council,20-Apr-20,51301355906,-716.94,QUALITY HOMECARE,CARE ESTABLISHMENT,Physical Disablity - Cost of Care,Countywide PD Service - Care,Domiciliary Care
Cambridgeshire County Council,20-Apr-20,51301355906,-716.94,QUALITY HOMECARE,CARE ESTABLISHMENT,Physical Disablity - Cost of Care,Countywide PD Service - Care,Domiciliary Care
Cambridgeshire County Council,20-Apr-20,51301355906,-716.94,QUALITY HOMECARE,CARE ESTABLISHMENT,Physical Disablity - Cost of Care,Countywide PD Service - Care,Domiciliary Care
Cambridgeshire County Council,20-Apr-20,51301355906,-716.94,QUALITY HOMECARE,CARE ESTABLISHMENT,Physical Disablity - Cost of Care,Countywide PD Service - Care,Domiciliary Care
Cambridgeshire County Council,17-Apr-20,51301353258,-716.84,MIDFIELD LODGE CARE CENTRE,CARE ESTABLISHMENT,OP - City & South Locality - Cost of Care,Older People - City & South - Care,Nursing Care
Cambridgeshire County Council,17-Apr-20,51301353258,-716.84,MIDFIELD LODGE CARE CENTRE,CARE ESTABLISHMENT,OP - City & South Locality - Cost of Care,Older People - City & South - Care,Nursing Care
Cambridgeshire County Council,17-Apr-20,51301353258,-716.84,MIDFIELD LODGE CARE CENTRE,CARE ESTABLISHMENT,OP - City & South Locality - Cost of Care,Older People - City & South - Care,Nursing Care
Cambridgeshire County Council,17-Apr-20,51301353258,-716.84,MIDFIELD LODGE CARE CENTRE,CARE ESTABLISHMENT,OP - City & South Locality - Cost of Care,Older People - City & South - Care,Nursing Care
Cambridgeshire County Council,17-Apr-20,51301353258,-716.84,MIDFIELD LODGE CARE CENTRE,CARE ESTABLISHMENT,OP - City & South Locality - Cost of Care,Older People - City & South - Care,Nursing Care
Cambridgeshire County Council,17-Apr-20,51301353258,-716.84,MIDFIELD LODGE CARE CENTRE,CARE ESTABLISHMENT,OP - City & South Locality - Cost of Care,Older People - City & South - Care,Nursing Care
Cambridgeshire County Council,17-Apr-20,51301353258,-716.84,MIDFIELD LODGE CARE CENTRE,CARE ESTABLISHMENT,OP - City & South Locality - Cost of Care,Older People - City & South - Care,Nursing Care
Cambridgeshire County Council,30-Apr-20,51301362592,-708.96,BLUEBIRD CARE NEWMARKET & FENLAND,CARE ESTABLISHMENT,OP - Fenland Locality - Cost of Care,Older People - Fenland - Care,Domiciliary Care
Cambridgeshire County Council,30-Apr-20,51301362592,-708.96,BLUEBIRD CARE NEWMARKET & FENLAND,CARE ESTABLISHMENT,OP - Fenland Locality - Cost of Care,Older People - Fenland - Care,Domiciliary Care
Cambridgeshire County Council,30-Apr-20,51301362592,-708.96,BLUEBIRD CARE NEWMARKET & FENLAND,CARE ESTABLISHMENT,OP - Fenland Locality - Cost of Care,Older People - Fenland - Care,Domiciliary Care
Cambridgeshire County Council,30-Apr-20,51301362592,-708.96,BLUEBIRD CARE NEWMARKET & FENLAND,CARE ESTABLISHMENT,OP - Fenland Locality - Cost of Care,Older People - Fenland - Care,Domiciliary Care
Cambridgeshire County Council,30-Apr-20,51301362592,-708.96,BLUEBIRD CARE NEWMARKET & FENLAND,CARE ESTABLISHMENT,OP - Fenland Locality - Cost of Care,Older People - Fenland - Care,Domiciliary Care
Cambridgeshire County Council,30-Apr-20,51301362592,-708.96,BLUEBIRD CARE NEWMARKET & FENLAND,CARE ESTABLISHMENT,OP - Fenland Locality - Cost of Care,Older People - Fenland - Care,Domiciliary Care
Cambridgeshire County Council,30-Apr-20,51301362592,-708.96,BLUEBIRD CARE NEWMARKET & FENLAND,CARE ESTABLISHMENT,OP - Fenland Locality - Cost of Care,Older People - Fenland - Care,Domiciliary Care
Cambridgeshire County Council,30-Apr-20,51301362592,-708.96,BLUEBIRD CARE NEWMARKET & FENLAND,CARE ESTABLISHMENT,OP - Fenland Locality - Cost of Care,Older People - Fenland - Care,Domiciliary Care
Cambridgeshire County Council,30-Apr-20,51301362592,-708.96,BLUEBIRD CARE NEWMARKET & FENLAND,CARE ESTABLISHMENT,OP - Fenland Locality - Cost of Care,Older People - Fenland - Care,Domiciliary Care
Cambridgeshire County Council,30-Apr-20,51301362592,-708.96,BLUEBIRD CARE NEWMARKET & FENLAND,CARE ESTABLISHMENT,OP - Fenland Locality - Cost of Care,Older People - Fenland - Care,Domiciliary Care
Cambridgeshire County Council,30-Apr-20,51301362592,-708.96,BLUEBIRD CARE NEWMARKET & FENLAND,CARE ESTABLISHMENT,OP - Fenland Locality - Cost of Care,Older People - Fenland - Care,Domiciliary Care
Cambridgeshire County Council,17-Apr-20,51301353409,-705.39,BARCHESTER HEALTHCARE HOMES LTD,CARE ESTABLISHMENT,OPMH - City & South,Older People Mental Health City & South,Nursing Care
Cambridgeshire County Council,20-Apr-20,51301356594,-703.44,GLENHOLME HEALTHCARE LTD,CARE ESTABLISHMENT,LD - Hunts Locality - Cost of Care,LD - Huntingdonshire - Care,Supported Living
Cambridgeshire County Council,20-Apr-20,51301356594,-703.44,GLENHOLME HEALTHCARE LTD,CARE ESTABLISHMENT,LD - Hunts Locality - Cost of Care,LD - Huntingdonshire - Care,Supported Living
Cambridgeshire County Council,20-Apr-20,51301354809,-701.43,AFFINITY TRUST,CARE ESTABLISHMENT,LD - Fenland Locality - Cost of Care,LD - Fenland  - Care,Domiciliary Care
Cambridgeshire County Council,17-Apr-20,51301352911,-700.00,ORCHARD HOUSE (SAWSTON),CARE ESTABLISHMENT,OP - City & South Locality - Cost of Care,Older People - City & South - Care,Residential Care
Cambridgeshire County Council,17-Apr-20,51301352911,-700.00,ORCHARD HOUSE (SAWSTON),CARE ESTABLISHMENT,OP - City & South Locality - Cost of Care,Older People - City & South - Care,Residential Care
Cambridgeshire County Council,17-Apr-20,51301352911,-700.00,ORCHARD HOUSE (SAWSTON),CARE ESTABLISHMENT,OP - City & South Locality - Cost of Care,Older People - City & South - Care,Residential Care
Cambridgeshire County Council,17-Apr-20,51301301685,-700.00,GR GIBBS,CARE ESTABLISHMENT,OP - East Cambs Locality - Cost of Care,East Cambs - O P Team - Care,Residential Care
Cambridgeshire County Council,17-Apr-20,51301301685,-700.00,GR GIBBS,CARE ESTABLISHMENT,OP - East Cambs Locality - Cost of Care,East Cambs - O P Team - Care,Residential Care
Cambridgeshire County Council,17-Apr-20,51301301685,-700.00,GR GIBBS,CARE ESTABLISHMENT,OP - East Cambs Locality - Cost of Care,East Cambs - O P Team - Care,Residential Care
Cambridgeshire County Council,17-Apr-20,51301301685,-700.00,GR GIBBS,CARE ESTABLISHMENT,OP - East Cambs Locality - Cost of Care,East Cambs - O P Team - Care,Residential Care
Cambridgeshire County Council,17-Apr-20,51301335185,-700.00,GR GIBBS,CARE ESTABLISHMENT,OP - East Cambs Locality - Cost of Care,East Cambs - O P Team - Care,Residential Care
Cambridgeshire County Council,17-Apr-20,51301335185,-700.00,GR GIBBS,CARE ESTABLISHMENT,OP - East Cambs Locality - Cost of Care,East Cambs - O P Team - Care,Residential Care
Cambridgeshire County Council,17-Apr-20,51301335185,-700.00,GR GIBBS,CARE ESTABLISHMENT,OP - East Cambs Locality - Cost of Care,East Cambs - O P Team - Care,Residential Care
Cambridgeshire County Council,17-Apr-20,51301301685,-700.00,GR GIBBS,CARE ESTABLISHMENT,OP - East Cambs Locality - Cost of Care,East Cambs - O P Team - Care,Residential Care
Cambridgeshire County Council,17-Apr-20,51301301685,-700.00,GR GIBBS,CARE ESTABLISHMENT,OP - East Cambs Locality - Cost of Care,East Cambs - O P Team - Care,Residential Care
Cambridgeshire County Council,17-Apr-20,51301317639,-700.00,GR GIBBS,CARE ESTABLISHMENT,OP - East Cambs Locality - Cost of Care,East Cambs - O P Team - Care,Residential Care
Cambridgeshire County Council,17-Apr-20,51301317639,-700.00,GR GIBBS,CARE ESTABLISHMENT,OP - East Cambs Locality - Cost of Care,East Cambs - O P Team - Care,Residential Care
Cambridgeshire County Council,17-Apr-20,51301317639,-700.00,GR GIBBS,CARE ESTABLISHMENT,OP - East Cambs Locality - Cost of Care,East Cambs - O P Team - Care,Residential Care
Cambridgeshire County Council,17-Apr-20,51301301685,-700.00,GR GIBBS,CARE ESTABLISHMENT,OP - East Cambs Locality - Cost of Care,East Cambs - O P Team - Care,Residential Care
Cambridgeshire County Council,17-Apr-20,51301301685,-700.00,GR GIBBS,CARE ESTABLISHMENT,OP - East Cambs Locality - Cost of Care,East Cambs - O P Team - Care,Residential Care
Cambridgeshire County Council,17-Apr-20,51301301685,-700.00,GR GIBBS,CARE ESTABLISHMENT,OP - East Cambs Locality - Cost of Care,East Cambs - O P Team - Care,Residential Care
Cambridgeshire County Council,17-Apr-20,51301301685,-700.00,GR GIBBS,CARE ESTABLISHMENT,OP - East Cambs Locality - Cost of Care,East Cambs - O P Team - Care,Residential Care
Cambridgeshire County Council,17-Apr-20,51301317639,-700.00,GR GIBBS,CARE ESTABLISHMENT,OP - East Cambs Locality - Cost of Care,East Cambs - O P Team - Care,Residential Care
Cambridgeshire County Council,17-Apr-20,51301301685,-700.00,GR GIBBS,CARE ESTABLISHMENT,OP - East Cambs Locality - Cost of Care,East Cambs - O P Team - Care,Residential Care
Cambridgeshire County Council,17-Apr-20,51301353625,-700.00,GR GIBBS,CARE ESTABLISHMENT,OP - East Cambs Locality - Cost of Care,East Cambs - O P Team - Care,Residential Care
Cambridgeshire County Council,17-Apr-20,51301353625,-700.00,GR GIBBS,CARE ESTABLISHMENT,OP - East Cambs Locality - Cost of Care,East Cambs - O P Team - Care,Residential Care
Cambridgeshire County Council,17-Apr-20,51301301685,-700.00,GR GIBBS,CARE ESTABLISHMENT,OP - East Cambs Locality - Cost of Care,East Cambs - O P Team - Care,Residential Care
Cambridgeshire County Council,17-Apr-20,51301301685,-700.00,GR GIBBS,CARE ESTABLISHMENT,OP - East Cambs Locality - Cost of Care,East Cambs - O P Team - Care,Residential Care
Cambridgeshire County Council,17-Apr-20,51301301685,-700.00,GR GIBBS,CARE ESTABLISHMENT,OP - East Cambs Locality - Cost of Care,East Cambs - O P Team - Care,Residential Care
Cambridgeshire County Council,17-Apr-20,51301353625,-700.00,GR GIBBS,CARE ESTABLISHMENT,OP - East Cambs Locality - Cost of Care,East Cambs - O P Team - Care,Residential Care
Cambridgeshire County Council,17-Apr-20,51301353625,-700.00,GR GIBBS,CARE ESTABLISHMENT,OP - East Cambs Locality - Cost of Care,East Cambs - O P Team - Care,Residential Care
Cambridgeshire County Council,17-Apr-20,51301301685,-700.00,GR GIBBS,CARE ESTABLISHMENT,OP - East Cambs Locality - Cost of Care,East Cambs - O P Team - Care,Residential Care
Cambridgeshire County Council,17-Apr-20,51301335185,-700.00,GR GIBBS,CARE ESTABLISHMENT,OP - East Cambs Locality - Cost of Care,East Cambs - O P Team - Care,Residential Care
Cambridgeshire County Council,17-Apr-20,51301353710,-694.35,CROMWELL HOUSE HEALTH CARE,CARE ESTABLISHMENT,OP - Hunts Locality - Cost of Care,Hunts OP Team - Care,Nursing Care
Cambridgeshire County Council,17-Apr-20,51301353710,-694.35,CROMWELL HOUSE HEALTH CARE,CARE ESTABLISHMENT,OP - Hunts Locality - Cost of Care,Hunts OP Team - Care,Nursing Care
Cambridgeshire County Council,17-Apr-20,51301353710,-694.35,CROMWELL HOUSE HEALTH CARE,CARE ESTABLISHMENT,OP - Hunts Locality - Cost of Care,Hunts OP Team - Care,Nursing Care
Cambridgeshire County Council,17-Apr-20,51301353710,-694.35,CROMWELL HOUSE HEALTH CARE,CARE ESTABLISHMENT,OP - Hunts Locality - Cost of Care,Hunts OP Team - Care,Nursing Care
Cambridgeshire County Council,17-Apr-20,51301353710,-694.35,CROMWELL HOUSE HEALTH CARE,CARE ESTABLISHMENT,OP - Hunts Locality - Cost of Care,Hunts OP Team - Care,Nursing Care
Cambridgeshire County Council,17-Apr-20,51301353336,-685.71,MIDFIELD LODGE CARE CENTRE,CARE ESTABLISHMENT,OP - City & South Locality - Cost of Care,Older People - City & South - Care,Nursing Care
Cambridgeshire County Council,23-Apr-20,51301359507,-679.37,Redacted Personal Data,INDIVIDUAL,OP - East Cambs Locality - Cost of Care,East Cambs - O P Team - Care,Direct Payments
Cambridgeshire County Council,23-Apr-20,51301359507,-679.37,Redacted Personal Data,INDIVIDUAL,OP - East Cambs Locality - Cost of Care,East Cambs - O P Team - Care,Direct Payments
Cambridgeshire County Council,23-Apr-20,51301359507,-679.37,Redacted Personal Data,INDIVIDUAL,OP - East Cambs Locality - Cost of Care,East Cambs - O P Team - Care,Direct Payments
Cambridgeshire County Council,23-Apr-20,51301359507,-679.37,Redacted Personal Data,INDIVIDUAL,OP - East Cambs Locality - Cost of Care,East Cambs - O P Team - Care,Direct Payments
Cambridgeshire County Council,23-Apr-20,51301359507,-679.37,Redacted Personal Data,INDIVIDUAL,OP - East Cambs Locality - Cost of Care,East Cambs - O P Team - Care,Direct Payments
Cambridgeshire County Council,23-Apr-20,51301359507,-679.37,Redacted Personal Data,INDIVIDUAL,OP - East Cambs Locality - Cost of Care,East Cambs - O P Team - Care,Direct Payments
Cambridgeshire County Council,23-Apr-20,51301359507,-679.37,Redacted Personal Data,INDIVIDUAL,OP - East Cambs Locality - Cost of Care,East Cambs - O P Team - Care,Direct Payments
Cambridgeshire County Council,23-Apr-20,51301359507,-679.37,Redacted Personal Data,INDIVIDUAL,OP - East Cambs Locality - Cost of Care,East Cambs - O P Team - Care,Direct Payments
Cambridgeshire County Council,23-Apr-20,51301359507,-679.37,Redacted Personal Data,INDIVIDUAL,OP - East Cambs Locality - Cost of Care,East Cambs - O P Team - Care,Direct Payments
Cambridgeshire County Council,23-Apr-20,51301359507,-679.37,Redacted Personal Data,INDIVIDUAL,OP - East Cambs Locality - Cost of Care,East Cambs - O P Team - Care,Direct Payments
Cambridgeshire County Council,23-Apr-20,51301359507,-679.37,Redacted Personal Data,INDIVIDUAL,OP - East Cambs Locality - Cost of Care,East Cambs - O P Team - Care,Direct Payments
Cambridgeshire County Council,23-Apr-20,51301359507,-679.37,Redacted Personal Data,INDIVIDUAL,OP - East Cambs Locality - Cost of Care,East Cambs - O P Team - Care,Direct Payments
Cambridgeshire County Council,23-Apr-20,51301359507,-679.37,Redacted Personal Data,INDIVIDUAL,OP - East Cambs Locality - Cost of Care,East Cambs - O P Team - Care,Direct Payments
Cambridgeshire County Council,23-Apr-20,51301359507,-679.37,Redacted Personal Data,INDIVIDUAL,OP - East Cambs Locality - Cost of Care,East Cambs - O P Team - Care,Direct Payments
Cambridgeshire County Council,23-Apr-20,51301359507,-679.37,Redacted Personal Data,INDIVIDUAL,OP - East Cambs Locality - Cost of Care,East Cambs - O P Team - Care,Direct Payments
Cambridgeshire County Council,17-Apr-20,51301353901,-675.00,METHODIST HOMES FOR THE AGED (MHA),CARE ESTABLISHMENT,OP - East Cambs Locality - Cost of Care,East Cambs - O P Team - Care,Residential Care
Cambridgeshire County Council,17-Apr-20,51301353901,-675.00,METHODIST HOMES FOR THE AGED (MHA),CARE ESTABLISHMENT,OP - East Cambs Locality - Cost of Care,East Cambs - O P Team - Care,Residential Care
Cambridgeshire County Council,17-Apr-20,51301353901,-675.00,METHODIST HOMES FOR THE AGED (MHA),CARE ESTABLISHMENT,OP - East Cambs Locality - Cost of Care,East Cambs - O P Team - Care,Residential Care
Cambridgeshire County Council,17-Apr-20,51301353901,-675.00,METHODIST HOMES FOR THE AGED (MHA),CARE ESTABLISHMENT,OP - East Cambs Locality - Cost of Care,East Cambs - O P Team - Care,Residential Care
Cambridgeshire County Council,17-Apr-20,51301353901,-675.00,METHODIST HOMES FOR THE AGED (MHA),CARE ESTABLISHMENT,OP - East Cambs Locality - Cost of Care,East Cambs - O P Team - Care,Residential Care
Cambridgeshire County Council,23-Apr-20,51301359445,-675.00,GOKUL NIVAS CARE HOME,CARE ESTABLISHMENT,OP - Fenland Locality - Cost of Care,Older People - Fenland - Care,Residential Care
Cambridgeshire County Council,23-Apr-20,51301359445,-675.00,GOKUL NIVAS CARE HOME,CARE ESTABLISHMENT,OP - Fenland Locality - Cost of Care,Older People - Fenland - Care,Residential Care
Cambridgeshire County Council,30-Apr-20,51301362580,-669.90,TRINITY CARESTAFF SOLUTIONS LIMITED,CARE ESTABLISHMENT,OP - City & South Locality - Cost of Care,Older People - City & South - Care,Domiciliary Care
Cambridgeshire County Council,17-Apr-20,51301353398,-667.60,THE CAMBRIDGE NURSING CENTRE,CARE ESTABLISHMENT,OP - City & South Locality - Cost of Care,Older People - City & South - Care,Nursing Care
Cambridgeshire County Council,17-Apr-20,51301353398,-667.60,THE CAMBRIDGE NURSING CENTRE,CARE ESTABLISHMENT,OP - City & South Locality - Cost of Care,Older People - City & South - Care,Nursing Care
Cambridgeshire County Council,17-Apr-20,51301353398,-667.60,THE CAMBRIDGE NURSING CENTRE,CARE ESTABLISHMENT,OP - City & South Locality - Cost of Care,Older People - City & South - Care,Nursing Care
Cambridgeshire County Council,17-Apr-20,51301353398,-667.60,THE CAMBRIDGE NURSING CENTRE,CARE ESTABLISHMENT,OP - City & South Locality - Cost of Care,Older People - City & South - Care,Nursing Care
Cambridgeshire County Council,17-Apr-20,51301353398,-667.60,THE CAMBRIDGE NURSING CENTRE,CARE ESTABLISHMENT,OP - City & South Locality - Cost of Care,Older People - City & South - Care,Nursing Care
Cambridgeshire County Council,17-Apr-20,51301353398,-667.60,THE CAMBRIDGE NURSING CENTRE,CARE ESTABLISHMENT,OP - City & South Locality - Cost of Care,Older People - City & South - Care,Nursing Care
Cambridgeshire County Council,17-Apr-20,51301353398,-667.60,THE CAMBRIDGE NURSING CENTRE,CARE ESTABLISHMENT,OP - City & South Locality - Cost of Care,Older People - City & South - Care,Nursing Care
Cambridgeshire County Council,30-Apr-20,51301356618,-667.40,SWAN HOUSE NURSING & RESIDENTIAL HOME,CARE ESTABLISHMENT,OP - Fenland Locality - Cost of Care,Older People - Fenland - Care,Short Term Other
Cambridgeshire County Council,30-Apr-20,51301356618,-667.40,SWAN HOUSE NURSING & RESIDENTIAL HOME,CARE ESTABLISHMENT,OP - Fenland Locality - Cost of Care,Older People - Fenland - Care,Short Term Other
Cambridgeshire County Council,30-Apr-20,51301356618,-667.40,SWAN HOUSE NURSING & RESIDENTIAL HOME,CARE ESTABLISHMENT,OP - Fenland Locality - Cost of Care,Older People - Fenland - Care,Short Term Other
Cambridgeshire County Council,30-Apr-20,51301356618,-667.40,SWAN HOUSE NURSING & RESIDENTIAL HOME,CARE ESTABLISHMENT,OP - Fenland Locality - Cost of Care,Older People - Fenland - Care,Short Term Other
Cambridgeshire County Council,30-Apr-20,51301356618,-667.40,SWAN HOUSE NURSING & RESIDENTIAL HOME,CARE ESTABLISHMENT,OP - Fenland Locality - Cost of Care,Older People - Fenland - Care,Short Term Other
Cambridgeshire County Council,30-Apr-20,51301356618,-667.40,SWAN HOUSE NURSING & RESIDENTIAL HOME,CARE ESTABLISHMENT,OP - Fenland Locality - Cost of Care,Older People - Fenland - Care,Short Term Other
Cambridgeshire County Council,30-Apr-20,51301356618,-667.40,SWAN HOUSE NURSING & RESIDENTIAL HOME,CARE ESTABLISHMENT,OP - Fenland Locality - Cost of Care,Older People - Fenland - Care,Short Term Other
Cambridgeshire County Council,30-Apr-20,51301356618,-667.40,SWAN HOUSE NURSING & RESIDENTIAL HOME,CARE ESTABLISHMENT,OP - Fenland Locality - Cost of Care,Older People - Fenland - Care,Short Term Other
Cambridgeshire County Council,30-Apr-20,51301356618,-667.40,SWAN HOUSE NURSING & RESIDENTIAL HOME,CARE ESTABLISHMENT,OP - Fenland Locality - Cost of Care,Older People - Fenland - Care,Short Term Other
Cambridgeshire County Council,30-Apr-20,51301356618,-667.40,SWAN HOUSE NURSING & RESIDENTIAL HOME,CARE ESTABLISHMENT,OP - Fenland Locality - Cost of Care,Older People - Fenland - Care,Short Term Other
Cambridgeshire County Council,30-Apr-20,51301356618,-667.40,SWAN HOUSE NURSING & RESIDENTIAL HOME,CARE ESTABLISHMENT,OP - Fenland Locality - Cost of Care,Older People - Fenland - Care,Short Term Other
Cambridgeshire County Council,30-Apr-20,51301356618,-667.40,SWAN HOUSE NURSING & RESIDENTIAL HOME,CARE ESTABLISHMENT,OP - Fenland Locality - Cost of Care,Older People - Fenland - Care,Short Term Other
Cambridgeshire County Council,17-Apr-20,51301353005,-663.51,HOME CLOSE LTD,CARE ESTABLISHMENT,OP - City & South Locality - Cost of Care,Older People - City & South - Care,Nursing Care
Cambridgeshire County Council,17-Apr-20,51301353005,-663.51,HOME CLOSE LTD,CARE ESTABLISHMENT,OP - City & South Locality - Cost of Care,Older People - City & South - Care,Nursing Care
Cambridgeshire County Council,17-Apr-20,51301353005,-663.51,HOME CLOSE LTD,CARE ESTABLISHMENT,OP - City & South Locality - Cost of Care,Older People - City & South - Care,Nursing Care
Cambridgeshire County Council,17-Apr-20,51301353005,-663.51,HOME CLOSE LTD,CARE ESTABLISHMENT,OP - City & South Locality - Cost of Care,Older People - City & South - Care,Nursing Care
Cambridgeshire County Council,17-Apr-20,51301353005,-663.51,HOME CLOSE LTD,CARE ESTABLISHMENT,OP - City & South Locality - Cost of Care,Older People - City & South - Care,Nursing Care
Cambridgeshire County Council,17-Apr-20,51301353005,-663.51,HOME CLOSE LTD,CARE ESTABLISHMENT,OP - City & South Locality - Cost of Care,Older People - City & South - Care,Nursing Care
Cambridgeshire County Council,17-Apr-20,51301353005,-663.51,HOME CLOSE LTD,CARE ESTABLISHMENT,OP - City & South Locality - Cost of Care,Older People - City & South - Care,Nursing Care
Cambridgeshire County Council,17-Apr-20,51301353005,-663.51,HOME CLOSE LTD,CARE ESTABLISHMENT,OP - City & South Locality - Cost of Care,Older People - City & South - Care,Nursing Care
Cambridgeshire County Council,17-Apr-20,51301353005,-663.51,HOME CLOSE LTD,CARE ESTABLISHMENT,OP - City & South Locality - Cost of Care,Older People - City & South - Care,Nursing Care
Cambridgeshire County Council,17-Apr-20,51301353005,-663.51,HOME CLOSE LTD,CARE ESTABLISHMENT,OP - City & South Locality - Cost of Care,Older People - City & South - Care,Nursing Care
Cambridgeshire County Council,17-Apr-20,51301353005,-663.51,HOME CLOSE LTD,CARE ESTABLISHMENT,OP - City & South Locality - Cost of Care,Older People - City & South - Care,Nursing Care
Cambridgeshire County Council,17-Apr-20,51301353005,-663.51,HOME CLOSE LTD,CARE ESTABLISHMENT,OP - City & South Locality - Cost of Care,Older People - City & South - Care,Nursing Care
Cambridgeshire County Council,17-Apr-20,51301353005,-663.51,HOME CLOSE LTD,CARE ESTABLISHMENT,OP - City & South Locality - Cost of Care,Older People - City & South - Care,Nursing Care
Cambridgeshire County Council,17-Apr-20,51301353005,-663.51,HOME CLOSE LTD,CARE ESTABLISHMENT,OP - City & South Locality - Cost of Care,Older People - City & South - Care,Nursing Care
Cambridgeshire County Council,17-Apr-20,51301353005,-663.51,HOME CLOSE LTD,CARE ESTABLISHMENT,OP - City & South Locality - Cost of Care,Older People - City & South - Care,Nursing Care
Cambridgeshire County Council,17-Apr-20,51301353005,-663.51,HOME CLOSE LTD,CARE ESTABLISHMENT,OP - City & South Locality - Cost of Care,Older People - City & South - Care,Nursing Care
Cambridgeshire County Council,17-Apr-20,51301353005,-663.51,HOME CLOSE LTD,CARE ESTABLISHMENT,OP - City & South Locality - Cost of Care,Older People - City & South - Care,Nursing Care
Cambridgeshire County Council,17-Apr-20,51301353005,-663.51,HOME CLOSE LTD,CARE ESTABLISHMENT,OP - City & South Locality - Cost of Care,Older People - City & South - Care,Nursing Care
Cambridgeshire County Council,17-Apr-20,51301353005,-663.51,HOME CLOSE LTD,CARE ESTABLISHMENT,OP - City & South Locality - Cost of Care,Older People - City & South - Care,Nursing Care
Cambridgeshire County Council,17-Apr-20,51301353005,-663.51,HOME CLOSE LTD,CARE ESTABLISHMENT,OP - City & South Locality - Cost of Care,Older People - City & South - Care,Nursing Care
Cambridgeshire County Council,17-Apr-20,51301353005,-663.51,HOME CLOSE LTD,CARE ESTABLISHMENT,OP - City & South Locality - Cost of Care,Older People - City & South - Care,Nursing Care
Cambridgeshire County Council,17-Apr-20,51301353005,-663.51,HOME CLOSE LTD,CARE ESTABLISHMENT,OP - City & South Locality - Cost of Care,Older People - City & South - Care,Nursing Care
Cambridgeshire County Council,17-Apr-20,51301353842,-656.89,GLENNFIELD CARE CENTRE (OP),CARE ESTABLISHMENT,OPMH - Under 65,Older People Mental Health - Under 65's,Residential Care
Cambridgeshire County Council,17-Apr-20,51301352982,-654.35,HC-ONE,CARE ESTABLISHMENT,OP - Fenland Locality - Cost of Care,Older People - Fenland - Care,Nursing Care
Cambridgeshire County Council,17-Apr-20,51301352982,-654.35,HC-ONE,CARE ESTABLISHMENT,OP - Fenland Locality - Cost of Care,Older People - Fenland - Care,Nursing Care
Cambridgeshire County Council,17-Apr-20,51301352982,-654.35,HC-ONE,CARE ESTABLISHMENT,OP - Fenland Locality - Cost of Care,Older People - Fenland - Care,Nursing Care
Cambridgeshire County Council,17-Apr-20,51301352982,-654.35,HC-ONE,CARE ESTABLISHMENT,OP - Fenland Locality - Cost of Care,Older People - Fenland - Care,Nursing Care
Cambridgeshire County Council,03-Apr-20,51301347550,-652.10,AFFINITY TRUST,CARE ESTABLISHMENT,LD - Fenland Locality - Cost of Care,LD - Fenland  - Care,Domiciliary Care
Cambridgeshire County Council,03-Apr-20,51301347550,-652.10,AFFINITY TRUST,CARE ESTABLISHMENT,LD - Fenland Locality - Cost of Care,LD - Fenland  - Care,Domiciliary Care
Cambridgeshire County Council,03-Apr-20,51301347550,-652.10,AFFINITY TRUST,CARE ESTABLISHMENT,LD - Fenland Locality - Cost of Care,LD - Fenland  - Care,Domiciliary Care
Cambridgeshire County Council,03-Apr-20,51301347550,-652.10,AFFINITY TRUST,CARE ESTABLISHMENT,LD - Fenland Locality - Cost of Care,LD - Fenland  - Care,Domiciliary Care
Cambridgeshire County Council,03-Apr-20,51301347550,-652.10,AFFINITY TRUST,CARE ESTABLISHMENT,LD - Fenland Locality - Cost of Care,LD - Fenland  - Care,Domiciliary Care
Cambridgeshire County Council,03-Apr-20,51301347550,-652.10,AFFINITY TRUST,CARE ESTABLISHMENT,LD - Fenland Locality - Cost of Care,LD - Fenland  - Care,Domiciliary Care
Cambridgeshire County Council,03-Apr-20,51301347550,-652.10,AFFINITY TRUST,CARE ESTABLISHMENT,LD - Fenland Locality - Cost of Care,LD - Fenland  - Care,Domiciliary Care
Cambridgeshire County Council,03-Apr-20,51301347550,-652.10,AFFINITY TRUST,CARE ESTABLISHMENT,LD - Fenland Locality - Cost of Care,LD - Fenland  - Care,Domiciliary Care
Cambridgeshire County Council,03-Apr-20,51301347550,-652.10,AFFINITY TRUST,CARE ESTABLISHMENT,LD - Fenland Locality - Cost of Care,LD - Fenland  - Care,Domiciliary Care
Cambridgeshire County Council,03-Apr-20,51301347550,-652.10,AFFINITY TRUST,CARE ESTABLISHMENT,LD - Fenland Locality - Cost of Care,LD - Fenland  - Care,Domiciliary Care
Cambridgeshire County Council,03-Apr-20,51301347550,-652.10,AFFINITY TRUST,CARE ESTABLISHMENT,LD - Fenland Locality - Cost of Care,LD - Fenland  - Care,Domiciliary Care
Cambridgeshire County Council,03-Apr-20,51301347550,-652.10,AFFINITY TRUST,CARE ESTABLISHMENT,LD - Fenland Locality - Cost of Care,LD - Fenland  - Care,Domiciliary Care
Cambridgeshire County Council,03-Apr-20,51301347550,-652.10,AFFINITY TRUST,CARE ESTABLISHMENT,LD - Fenland Locality - Cost of Care,LD - Fenland  - Care,Domiciliary Care
Cambridgeshire County Council,03-Apr-20,51301347550,-652.10,AFFINITY TRUST,CARE ESTABLISHMENT,LD - Fenland Locality - Cost of Care,LD - Fenland  - Care,Domiciliary Care
Cambridgeshire County Council,03-Apr-20,51301347550,-652.10,AFFINITY TRUST,CARE ESTABLISHMENT,LD - Fenland Locality - Cost of Care,LD - Fenland  - Care,Domiciliary Care
Cambridgeshire County Council,03-Apr-20,51301347550,-652.10,AFFINITY TRUST,CARE ESTABLISHMENT,LD - Fenland Locality - Cost of Care,LD - Fenland  - Care,Domiciliary Care
Cambridgeshire County Council,03-Apr-20,51301347550,-652.10,AFFINITY TRUST,CARE ESTABLISHMENT,LD - Fenland Locality - Cost of Care,LD - Fenland  - Care,Domiciliary Care
Cambridgeshire County Council,17-Apr-20,51301352997,-650.00,ST GEORGE'S COURT,CARE ESTABLISHMENT,OP - City & South Locality - Cost of Care,Older People - City & South - Care,Residential Care
Cambridgeshire County Council,17-Apr-20,51301352997,-650.00,ST GEORGE'S COURT,CARE ESTABLISHMENT,OP - City & South Locality - Cost of Care,Older People - City & South - Care,Residential Care
Cambridgeshire County Council,17-Apr-20,51301352997,-650.00,ST GEORGE'S COURT,CARE ESTABLISHMENT,OP - City & South Locality - Cost of Care,Older People - City & South - Care,Residential Care
Cambridgeshire County Council,17-Apr-20,51301352997,-650.00,ST GEORGE'S COURT,CARE ESTABLISHMENT,OP - City & South Locality - Cost of Care,Older People - City & South - Care,Residential Care
Cambridgeshire County Council,17-Apr-20,51301352997,-650.00,ST GEORGE'S COURT,CARE ESTABLISHMENT,OP - City & South Locality - Cost of Care,Older People - City & South - Care,Residential Care
Cambridgeshire County Council,17-Apr-20,51301352997,-650.00,ST GEORGE'S COURT,CARE ESTABLISHMENT,OP - City & South Locality - Cost of Care,Older People - City & South - Care,Residential Care
Cambridgeshire County Council,03-Apr-20,51301347738,-647.01,THE BRAMBLES (SOHAM) LTD,CARE ESTABLISHMENT,LD - East Locality - Cost of Care,LD - East Cambs - Care,Residential Care
Cambridgeshire County Council,17-Apr-20,51301353816,-631.00,THE HILLINGS LIMITED,CARE ESTABLISHMENT,OP - Hunts Locality - Cost of Care,Hunts OP Team - Care,Residential Care
Cambridgeshire County Council,17-Apr-20,51301353816,-631.00,THE HILLINGS LIMITED,CARE ESTABLISHMENT,OP - Hunts Locality - Cost of Care,Hunts OP Team - Care,Residential Care
Cambridgeshire County Council,17-Apr-20,51301353816,-631.00,THE HILLINGS LIMITED,CARE ESTABLISHMENT,OP - Hunts Locality - Cost of Care,Hunts OP Team - Care,Residential Care
Cambridgeshire County Council,17-Apr-20,51301353816,-631.00,THE HILLINGS LIMITED,CARE ESTABLISHMENT,OP - Hunts Locality - Cost of Care,Hunts OP Team - Care,Residential Care
Cambridgeshire County Council,17-Apr-20,51301353800,-630.00,THE HILLINGS LIMITED,CARE ESTABLISHMENT,OP - Hunts Locality - Cost of Care,Hunts OP Team - Care,Residential Care
Cambridgeshire County Council,17-Apr-20,51301353800,-630.00,THE HILLINGS LIMITED,CARE ESTABLISHMENT,OP - Hunts Locality - Cost of Care,Hunts OP Team - Care,Residential Care
Cambridgeshire County Council,17-Apr-20,51301353800,-630.00,THE HILLINGS LIMITED,CARE ESTABLISHMENT,OP - Hunts Locality - Cost of Care,Hunts OP Team - Care,Residential Care
Cambridgeshire County Council,17-Apr-20,51301353800,-630.00,THE HILLINGS LIMITED,CARE ESTABLISHMENT,OP - Hunts Locality - Cost of Care,Hunts OP Team - Care,Residential Care
Cambridgeshire County Council,17-Apr-20,51301353322,-629.52,BARCHESTER HEALTHCARE HOMES LTD,CARE ESTABLISHMENT,OP - East Cambs Locality - Cost of Care,East Cambs - O P Team - Care,Nursing Care
Cambridgeshire County Council,16-Apr-20,51301352129,-625.87,VOYAGE (LICHFIELD),CARE ESTABLISHMENT,LD - Fenland Locality - Cost of Care,LD - Fenland  - Special Needs,Supported Living
Cambridgeshire County Council,16-Apr-20,51301352129,-625.87,VOYAGE (LICHFIELD),CARE ESTABLISHMENT,LD - Fenland Locality - Cost of Care,LD - Fenland  - Special Needs,Supported Living
Cambridgeshire County Council,16-Apr-20,51301352129,-625.87,VOYAGE (LICHFIELD),CARE ESTABLISHMENT,LD - Fenland Locality - Cost of Care,LD - Fenland  - Special Needs,Supported Living
Cambridgeshire County Council,16-Apr-20,51301352129,-625.87,VOYAGE (LICHFIELD),CARE ESTABLISHMENT,LD - Fenland Locality - Cost of Care,LD - Fenland  - Special Needs,Supported Living
Cambridgeshire County Council,16-Apr-20,51301352129,-625.87,VOYAGE (LICHFIELD),CARE ESTABLISHMENT,LD - Fenland Locality - Cost of Care,LD - Fenland  - Special Needs,Supported Living
Cambridgeshire County Council,16-Apr-20,51301352129,-625.87,VOYAGE (LICHFIELD),CARE ESTABLISHMENT,LD - Fenland Locality - Cost of Care,LD - Fenland  - Special Needs,Supported Living
Cambridgeshire County Council,16-Apr-20,51301352129,-625.87,VOYAGE (LICHFIELD),CARE ESTABLISHMENT,LD - Fenland Locality - Cost of Care,LD - Fenland  - Special Needs,Supported Living
Cambridgeshire County Council,16-Apr-20,51301352129,-625.87,VOYAGE (LICHFIELD),CARE ESTABLISHMENT,LD - Fenland Locality - Cost of Care,LD - Fenland  - Special Needs,Supported Living
Cambridgeshire County Council,16-Apr-20,51301352129,-625.87,VOYAGE (LICHFIELD),CARE ESTABLISHMENT,LD - Fenland Locality - Cost of Care,LD - Fenland  - Special Needs,Supported Living
Cambridgeshire County Council,16-Apr-20,51301352129,-625.87,VOYAGE (LICHFIELD),CARE ESTABLISHMENT,LD - Fenland Locality - Cost of Care,LD - Fenland  - Special Needs,Supported Living
Cambridgeshire County Council,16-Apr-20,51301352129,-625.87,VOYAGE (LICHFIELD),CARE ESTABLISHMENT,LD - Fenland Locality - Cost of Care,LD - Fenland  - Special Needs,Supported Living
Cambridgeshire County Council,16-Apr-20,51301352129,-625.87,VOYAGE (LICHFIELD),CARE ESTABLISHMENT,LD - Fenland Locality - Cost of Care,LD - Fenland  - Special Needs,Supported Living
Cambridgeshire County Council,16-Apr-20,51301352129,-625.87,VOYAGE (LICHFIELD),CARE ESTABLISHMENT,LD - Fenland Locality - Cost of Care,LD - Fenland  - Special Needs,Supported Living
Cambridgeshire County Council,16-Apr-20,51301352129,-625.87,VOYAGE (LICHFIELD),CARE ESTABLISHMENT,LD - Fenland Locality - Cost of Care,LD - Fenland  - Special Needs,Supported Living
Cambridgeshire County Council,16-Apr-20,51301352129,-625.87,VOYAGE (LICHFIELD),CARE ESTABLISHMENT,LD - Fenland Locality - Cost of Care,LD - Fenland  - Special Needs,Supported Living
Cambridgeshire County Council,16-Apr-20,51301352129,-625.87,VOYAGE (LICHFIELD),CARE ESTABLISHMENT,LD - Fenland Locality - Cost of Care,LD - Fenland  - Special Needs,Supported Living
Cambridgeshire County Council,16-Apr-20,51301352129,-625.87,VOYAGE (LICHFIELD),CARE ESTABLISHMENT,LD - Fenland Locality - Cost of Care,LD - Fenland  - Special Needs,Supported Living
Cambridgeshire County Council,16-Apr-20,51301352129,-625.87,VOYAGE (LICHFIELD),CARE ESTABLISHMENT,LD - Fenland Locality - Cost of Care,LD - Fenland  - Special Needs,Supported Living
Cambridgeshire County Council,16-Apr-20,51301352129,-625.87,VOYAGE (LICHFIELD),CARE ESTABLISHMENT,LD - Fenland Locality - Cost of Care,LD - Fenland  - Special Needs,Supported Living
Cambridgeshire County Council,16-Apr-20,51301352129,-625.87,VOYAGE (LICHFIELD),CARE ESTABLISHMENT,LD - Fenland Locality - Cost of Care,LD - Fenland  - Special Needs,Supported Living
Cambridgeshire County Council,16-Apr-20,51301352129,-625.87,VOYAGE (LICHFIELD),CARE ESTABLISHMENT,LD - Fenland Locality - Cost of Care,LD - Fenland  - Special Needs,Supported Living
Cambridgeshire County Council,09-Apr-20,51301349655,-625.34,MENCAP (32 KINGS LANE),CARE ESTABLISHMENT,LD - Hunts Locality - Cost of Care,LD - Huntingdonshire - Care,Residential Care
Cambridgeshire County Council,23-Apr-20,51301359524,-620.25,MENCAP (32 KINGS LANE),CARE ESTABLISHMENT,LD - Hunts Locality - Cost of Care,LD - Huntingdonshire - Care,Residential Care
Cambridgeshire County Council,20-Apr-20,51301355906,-614.52,QUALITY HOMECARE,CARE ESTABLISHMENT,Physical Disablity - Cost of Care,Countywide PD Service - Care,Domiciliary Care
Cambridgeshire County Council,20-Apr-20,51301355835,-614.52,QUALITY HOMECARE,CARE ESTABLISHMENT,OP - City & South Locality - Cost of Care,Older People - City & South - Care,Domiciliary Care
Cambridgeshire County Council,20-Apr-20,51301354667,-611.61,GUYATT HOUSE CARE LTD,CARE ESTABLISHMENT,LD - Young Adults Team,LD - Young Adults - Care,Supported Living
Cambridgeshire County Council,20-Apr-20,51301356177,-608.45,Beaumont HEALTHCARE LTD,CARE ESTABLISHMENT,OP - Hunts Locality - Cost of Care,Hunts OP Team - Care,Domiciliary Care
Cambridgeshire County Council,30-Apr-20,51301362592,-607.68,BLUEBIRD CARE NEWMARKET & FENLAND,CARE ESTABLISHMENT,OP - Fenland Locality - Cost of Care,Older People - Fenland - Care,Domiciliary Care
Cambridgeshire County Council,20-Apr-20,51301355697,-606.55,CAMBRIDGESHIRE HOMECARE (J&M CARE LTD),CARE ESTABLISHMENT,OP - East Cambs Locality - Cost of Care,East Cambs - O P Team - Care,Domiciliary Care
Cambridgeshire County Council,20-Apr-20,51301355697,-606.55,CAMBRIDGESHIRE HOMECARE (J&M CARE LTD),CARE ESTABLISHMENT,OP - East Cambs Locality - Cost of Care,East Cambs - O P Team - Care,Domiciliary Care
Cambridgeshire County Council,20-Apr-20,51301355697,-606.55,CAMBRIDGESHIRE HOMECARE (J&M CARE LTD),CARE ESTABLISHMENT,OP - East Cambs Locality - Cost of Care,East Cambs - O P Team - Care,Domiciliary Care
Cambridgeshire County Council,20-Apr-20,51301355697,-606.55,CAMBRIDGESHIRE HOMECARE (J&M CARE LTD),CARE ESTABLISHMENT,OP - East Cambs Locality - Cost of Care,East Cambs - O P Team - Care,Domiciliary Care
Cambridgeshire County Council,20-Apr-20,51301355697,-606.55,CAMBRIDGESHIRE HOMECARE (J&M CARE LTD),CARE ESTABLISHMENT,OP - East Cambs Locality - Cost of Care,East Cambs - O P Team - Care,Domiciliary Care
Cambridgeshire County Council,20-Apr-20,51301355697,-606.55,CAMBRIDGESHIRE HOMECARE (J&M CARE LTD),CARE ESTABLISHMENT,OP - East Cambs Locality - Cost of Care,East Cambs - O P Team - Care,Domiciliary Care
Cambridgeshire County Council,20-Apr-20,51301355697,-606.55,CAMBRIDGESHIRE HOMECARE (J&M CARE LTD),CARE ESTABLISHMENT,OP - East Cambs Locality - Cost of Care,East Cambs - O P Team - Care,Domiciliary Care
Cambridgeshire County Council,20-Apr-20,51301355697,-606.55,CAMBRIDGESHIRE HOMECARE (J&M CARE LTD),CARE ESTABLISHMENT,OP - East Cambs Locality - Cost of Care,East Cambs - O P Team - Care,Domiciliary Care
Cambridgeshire County Council,20-Apr-20,51301355697,-606.55,CAMBRIDGESHIRE HOMECARE (J&M CARE LTD),CARE ESTABLISHMENT,OP - East Cambs Locality - Cost of Care,East Cambs - O P Team - Care,Domiciliary Care
Cambridgeshire County Council,20-Apr-20,51301355697,-606.55,CAMBRIDGESHIRE HOMECARE (J&M CARE LTD),CARE ESTABLISHMENT,OP - East Cambs Locality - Cost of Care,East Cambs - O P Team - Care,Domiciliary Care
Cambridgeshire County Council,20-Apr-20,51301355697,-606.55,CAMBRIDGESHIRE HOMECARE (J&M CARE LTD),CARE ESTABLISHMENT,OP - East Cambs Locality - Cost of Care,East Cambs - O P Team - Care,Domiciliary Care
Cambridgeshire County Council,20-Apr-20,51301355697,-606.55,CAMBRIDGESHIRE HOMECARE (J&M CARE LTD),CARE ESTABLISHMENT,OP - East Cambs Locality - Cost of Care,East Cambs - O P Team - Care,Domiciliary Care
Cambridgeshire County Council,17-Apr-20,51301353084,-600.00,HILL HOUSE RESIDENTIAL HOME,CARE ESTABLISHMENT,OP - Hunts Locality - Cost of Care,Hunts OP Team - Care,Residential Care
Cambridgeshire County Council,17-Apr-20,51301353084,-600.00,HILL HOUSE RESIDENTIAL HOME,CARE ESTABLISHMENT,OP - Hunts Locality - Cost of Care,Hunts OP Team - Care,Residential Care
Cambridgeshire County Council,17-Apr-20,51301353108,-600.00,SWAN HOUSE NURSING & RESIDENTIAL HOME,CARE ESTABLISHMENT,OP - Fenland Locality - Cost of Care,Older People - Fenland - Care,Residential Care
Cambridgeshire County Council,17-Apr-20,51301353108,-600.00,SWAN HOUSE NURSING & RESIDENTIAL HOME,CARE ESTABLISHMENT,OP - Fenland Locality - Cost of Care,Older People - Fenland - Care,Residential Care
Cambridgeshire County Council,17-Apr-20,51301353108,-600.00,SWAN HOUSE NURSING & RESIDENTIAL HOME,CARE ESTABLISHMENT,OP - Fenland Locality - Cost of Care,Older People - Fenland - Care,Residential Care
Cambridgeshire County Council,17-Apr-20,51301353084,-600.00,HILL HOUSE RESIDENTIAL HOME,CARE ESTABLISHMENT,OP - Hunts Locality - Cost of Care,Hunts OP Team - Care,Residential Care
Cambridgeshire County Council,17-Apr-20,51301353084,-600.00,HILL HOUSE RESIDENTIAL HOME,CARE ESTABLISHMENT,OP - Hunts Locality - Cost of Care,Hunts OP Team - Care,Residential Care
Cambridgeshire County Council,17-Apr-20,51301301685,-600.00,GR GIBBS,CARE ESTABLISHMENT,OP - East Cambs Locality - Cost of Care,East Cambs - O P Team - Care,Residential Care
Cambridgeshire County Council,17-Apr-20,51301301685,-600.00,GR GIBBS,CARE ESTABLISHMENT,OP - East Cambs Locality - Cost of Care,East Cambs - O P Team - Care,Residential Care
Cambridgeshire County Council,17-Apr-20,51301354188,-600.00,KENEYDON HOUSE RESIDENTIAL CARE HOME,CARE ESTABLISHMENT,OP - Fenland Locality - Cost of Care,Older People - Fenland - Care,Residential Care
Cambridgeshire County Council,17-Apr-20,51301354188,-600.00,KENEYDON HOUSE RESIDENTIAL CARE HOME,CARE ESTABLISHMENT,OP - Fenland Locality - Cost of Care,Older People - Fenland - Care,Residential Care
Cambridgeshire County Council,17-Apr-20,51301354188,-600.00,KENEYDON HOUSE RESIDENTIAL CARE HOME,CARE ESTABLISHMENT,OP - Fenland Locality - Cost of Care,Older People - Fenland - Care,Residential Care
Cambridgeshire County Council,17-Apr-20,51301354188,-600.00,KENEYDON HOUSE RESIDENTIAL CARE HOME,CARE ESTABLISHMENT,OP - Fenland Locality - Cost of Care,Older People - Fenland - Care,Residential Care
Cambridgeshire County Council,17-Apr-20,51301354188,-600.00,KENEYDON HOUSE RESIDENTIAL CARE HOME,CARE ESTABLISHMENT,OP - Fenland Locality - Cost of Care,Older People - Fenland - Care,Residential Care
Cambridgeshire County Council,17-Apr-20,51301354188,-600.00,KENEYDON HOUSE RESIDENTIAL CARE HOME,CARE ESTABLISHMENT,OP - Fenland Locality - Cost of Care,Older People - Fenland - Care,Residential Care
Cambridgeshire County Council,17-Apr-20,51301354188,-600.00,KENEYDON HOUSE RESIDENTIAL CARE HOME,CARE ESTABLISHMENT,OP - Fenland Locality - Cost of Care,Older People - Fenland - Care,Residential Care
Cambridgeshire County Council,17-Apr-20,51301354188,-600.00,KENEYDON HOUSE RESIDENTIAL CARE HOME,CARE ESTABLISHMENT,OP - Fenland Locality - Cost of Care,Older People - Fenland - Care,Residential Care
Cambridgeshire County Council,17-Apr-20,51301354188,-600.00,KENEYDON HOUSE RESIDENTIAL CARE HOME,CARE ESTABLISHMENT,OP - Fenland Locality - Cost of Care,Older People - Fenland - Care,Residential Care
Cambridgeshire County Council,17-Apr-20,51301354188,-600.00,KENEYDON HOUSE RESIDENTIAL CARE HOME,CARE ESTABLISHMENT,OP - Fenland Locality - Cost of Care,Older People - Fenland - Care,Residential Care
Cambridgeshire County Council,23-Apr-20,51301359447,-600.00,COTTENHAM COURT NURSING HOME,CARE ESTABLISHMENT,OP - City & South Locality - Cost of Care,Older People - City & South - Care,Residential Care
Cambridgeshire County Council,23-Apr-20,51301359447,-600.00,COTTENHAM COURT NURSING HOME,CARE ESTABLISHMENT,OP - City & South Locality - Cost of Care,Older People - City & South - Care,Residential Care
Cambridgeshire County Council,23-Apr-20,51301359447,-600.00,COTTENHAM COURT NURSING HOME,CARE ESTABLISHMENT,OP - City & South Locality - Cost of Care,Older People - City & South - Care,Residential Care
Cambridgeshire County Council,23-Apr-20,51301359447,-600.00,COTTENHAM COURT NURSING HOME,CARE ESTABLISHMENT,OP - City & South Locality - Cost of Care,Older People - City & South - Care,Residential Care
Cambridgeshire County Council,23-Apr-20,51301359447,-600.00,COTTENHAM COURT NURSING HOME,CARE ESTABLISHMENT,OP - City & South Locality - Cost of Care,Older People - City & South - Care,Residential Care
Cambridgeshire County Council,23-Apr-20,51301359447,-600.00,COTTENHAM COURT NURSING HOME,CARE ESTABLISHMENT,OP - City & South Locality - Cost of Care,Older People - City & South - Care,Residential Care
Cambridgeshire County Council,23-Apr-20,51301359447,-600.00,COTTENHAM COURT NURSING HOME,CARE ESTABLISHMENT,OP - City & South Locality - Cost of Care,Older People - City & South - Care,Residential Care
Cambridgeshire County Council,23-Apr-20,51301359447,-600.00,COTTENHAM COURT NURSING HOME,CARE ESTABLISHMENT,OP - City & South Locality - Cost of Care,Older People - City & South - Care,Residential Care
Cambridgeshire County Council,23-Apr-20,51301359447,-600.00,COTTENHAM COURT NURSING HOME,CARE ESTABLISHMENT,OP - City & South Locality - Cost of Care,Older People - City & South - Care,Residential Care
Cambridgeshire County Council,23-Apr-20,51301359447,-600.00,COTTENHAM COURT NURSING HOME,CARE ESTABLISHMENT,OP - City & South Locality - Cost of Care,Older People - City & South - Care,Residential Care
Cambridgeshire County Council,23-Apr-20,51301359447,-600.00,COTTENHAM COURT NURSING HOME,CARE ESTABLISHMENT,OP - City & South Locality - Cost of Care,Older People - City & South - Care,Residential Care
Cambridgeshire County Council,23-Apr-20,51301359447,-600.00,COTTENHAM COURT NURSING HOME,CARE ESTABLISHMENT,OP - City & South Locality - Cost of Care,Older People - City & South - Care,Residential Care
Cambridgeshire County Council,23-Apr-20,51301359447,-600.00,COTTENHAM COURT NURSING HOME,CARE ESTABLISHMENT,OP - City & South Locality - Cost of Care,Older People - City & South - Care,Residential Care
Cambridgeshire County Council,20-Apr-20,51301355835,-597.45,QUALITY HOMECARE,CARE ESTABLISHMENT,OP - City & South Locality - Cost of Care,Older People - City & South - Care,Domiciliary Care
